{"text_format":"3","workbook":"xlsx","n_sheets":12,"sheets":["JAN","FEB","MAR","APR","MÁJ","JÚN","JÚL","AUG","SEP","OKT","NOV","DEC"],"not_rendered":{"defined_names":40},"read":"whole","date_system":"1900"}

{"sheet":"JAN","index":0,"n_rows":20,"n_cols":9,"rows_kept":20,"merged":[[16,2,17,2],[16,3,17,3],[17,4,19,8]]}
[null,"JAN","NE",{"$f":"UPPER(TEXT(D3,\"aaa\"))","v":"PO"},"UT","ST","ŠT","PI","SO"]
[null,{"$f":"YEAR(TODAY())","v":2018}]
[null,null,{"$f":"DniATýždne+DATE(KalendárnyRok,1,1)-WEEKDAY(DATE(KalendárnyRok,1,1),(ZačiatokTýždňa=\"PO\")+1)+1","v":"2017-12-31"},"2018-01-01","2018-01-02","2018-01-03","2018-01-04","2018-01-05","2018-01-06"]
[null,null,{"$f":"IF(DAY(DeňKalendára)=1,CONCATENATE(\"Týždeň \",WEEKNUM(DeňKalendára),\"/Deň \",DeňKalendára-DATE(YEAR(DeňKalendára),1,0)),CONCATENATE(\"Deň \",DeňKalendára-DATE(YEAR(DeňKalendára),1,0)))","v":"Deň 365"},{"$f":"IF(DAY(DeňKalendára)=1,CONCATENATE(\"Týždeň \",WEEKNUM(DeňKalendára),\"/Deň \",DeňKalendára-DATE(YEAR(DeňKalendára),1,0)),CONCATENATE(\"Deň \",DeňKalendára-DATE(YEAR(DeňKalendára),1,0)))","v":"Týždeň 1/Deň 1"},{"$f":"IF(DAY(DeňKalendára)=1,CONCATENATE(\"Týždeň \",WEEKNUM(DeňKalendára),\"/Deň \",DeňKalendára-DATE(YEAR(DeňKalendára),1,0)),CONCATENATE(\"Deň \",DeňKalendára-DATE(YEAR(DeňKalendára),1,0)))","v":"Deň 2"},{"$f":"IF(DAY(DeňKalendára)=1,CONCATENATE(\"Týždeň \",WEEKNUM(DeňKalendára),\"/Deň \",DeňKalendára-DATE(YEAR(DeňKalendára),1,0)),CONCATENATE(\"Deň \",DeňKalendára-DATE(YEAR(DeňKalendára),1,0)))","v":"Deň 3"},{"$f":"IF(DAY(DeňKalendára)=1,CONCATENATE(\"Týždeň \",WEEKNUM(DeňKalendára),\"/Deň \",DeňKalendára-DATE(YEAR(DeňKalendára),1,0)),CONCATENATE(\"Deň \",DeňKalendára-DATE(YEAR(DeňKalendára),1,0)))","v":"Deň 4"},{"$f":"IF(DAY(DeňKalendára)=1,CONCATENATE(\"Týždeň \",WEEKNUM(DeňKalendára),\"/Deň \",DeňKalendára-DATE(YEAR(DeňKalendára),1,0)),CONCATENATE(\"Deň \",DeňKalendára-DATE(YEAR(DeňKalendára),1,0)))","v":"Deň 5"},{"$f":"IF(DAY(DeňKalendára)=1,CONCATENATE(\"Týždeň \",WEEKNUM(DeňKalendára),\"/Deň \",DeňKalendára-DATE(YEAR(DeňKalendára),1,0)),CONCATENATE(\"Deň \",DeňKalendára-DATE(YEAR(DeňKalendára),1,0)))","v":"Deň 6"}]
[]
[null,null,{"$f":"DniATýždne+DATE(KalendárnyRok,1,1)-WEEKDAY(DATE(KalendárnyRok,1,1),(ZačiatokTýždňa=\"PO\")+1)+8","v":"2018-01-07"},"2018-01-08","2018-01-09","2018-01-10","2018-01-11","2018-01-12","2018-01-13"]
[null,null,{"$f":"IF(WEEKDAY(DeňKalendára)=HodnotaZačiatkuTýždňa,CONCATENATE(\"Týždeň \",WEEKNUM(DeňKalendára),\"/Deň \",DeňKalendára-DATE(YEAR(DeňKalendára),1,0)),CONCATENATE(\"Deň \",DeňKalendára-DATE(YEAR(DeňKalendára),1,0)))","v":"Týždeň 2/Deň 7"},{"$f":"IF(WEEKDAY(DeňKalendára)=HodnotaZačiatkuTýždňa,CONCATENATE(\"Týždeň \",WEEKNUM(DeňKalendára),\"/Deň \",DeňKalendára-DATE(YEAR(DeňKalendára),1,0)),CONCATENATE(\"Deň \",DeňKalendára-DATE(YEAR(DeňKalendára),1,0)))","v":"Deň 8"},{"$f":"IF(WEEKDAY(DeňKalendára)=HodnotaZačiatkuTýždňa,CONCATENATE(\"Týždeň \",WEEKNUM(DeňKalendára),\"/Deň \",DeňKalendára-DATE(YEAR(DeňKalendára),1,0)),CONCATENATE(\"Deň \",DeňKalendára-DATE(YEAR(DeňKalendára),1,0)))","v":"Deň 9"},{"$f":"IF(WEEKDAY(DeňKalendára)=HodnotaZačiatkuTýždňa,CONCATENATE(\"Týždeň \",WEEKNUM(DeňKalendára),\"/Deň \",DeňKalendára-DATE(YEAR(DeňKalendára),1,0)),CONCATENATE(\"Deň \",DeňKalendára-DATE(YEAR(DeňKalendára),1,0)))","v":"Deň 10"},{"$f":"IF(WEEKDAY(DeňKalendára)=HodnotaZačiatkuTýždňa,CONCATENATE(\"Týždeň \",WEEKNUM(DeňKalendára),\"/Deň \",DeňKalendára-DATE(YEAR(DeňKalendára),1,0)),CONCATENATE(\"Deň \",DeňKalendára-DATE(YEAR(DeňKalendára),1,0)))","v":"Deň 11"},{"$f":"IF(WEEKDAY(DeňKalendára)=HodnotaZačiatkuTýždňa,CONCATENATE(\"Týždeň \",WEEKNUM(DeňKalendára),\"/Deň \",DeňKalendára-DATE(YEAR(DeňKalendára),1,0)),CONCATENATE(\"Deň \",DeňKalendára-DATE(YEAR(DeňKalendára),1,0)))","v":"Deň 12"},{"$f":"IF(WEEKDAY(DeňKalendára)=HodnotaZačiatkuTýždňa,CONCATENATE(\"Týždeň \",WEEKNUM(DeňKalendára),\"/Deň \",DeňKalendára-DATE(YEAR(DeňKalendára),1,0)),CONCATENATE(\"Deň \",DeňKalendára-DATE(YEAR(DeňKalendára),1,0)))","v":"Deň 13"}]
[]
[null,null,{"$f":"DniATýždne+DATE(KalendárnyRok,1,1)-WEEKDAY(DATE(KalendárnyRok,1,1),(ZačiatokTýždňa=\"PO\")+1)+15","v":"2018-01-14"},"2018-01-15","2018-01-16","2018-01-17","2018-01-18","2018-01-19","2018-01-20"]
[null,null,{"$f":"IF(WEEKDAY(DeňKalendára)=HodnotaZačiatkuTýždňa,CONCATENATE(\"Týždeň \",WEEKNUM(DeňKalendára),\"/Deň \",DeňKalendára-DATE(YEAR(DeňKalendára),1,0)),CONCATENATE(\"Deň \",DeňKalendára-DATE(YEAR(DeňKalendára),1,0)))","v":"Týždeň 3/Deň 14"},{"$f":"IF(WEEKDAY(DeňKalendára)=HodnotaZačiatkuTýždňa,CONCATENATE(\"Týždeň \",WEEKNUM(DeňKalendára),\"/Deň \",DeňKalendára-DATE(YEAR(DeňKalendára),1,0)),CONCATENATE(\"Deň \",DeňKalendára-DATE(YEAR(DeňKalendára),1,0)))","v":"Deň 15"},{"$f":"IF(WEEKDAY(DeňKalendára)=HodnotaZačiatkuTýždňa,CONCATENATE(\"Týždeň \",WEEKNUM(DeňKalendára),\"/Deň \",DeňKalendára-DATE(YEAR(DeňKalendára),1,0)),CONCATENATE(\"Deň \",DeňKalendára-DATE(YEAR(DeňKalendára),1,0)))","v":"Deň 16"},{"$f":"IF(WEEKDAY(DeňKalendára)=HodnotaZačiatkuTýždňa,CONCATENATE(\"Týždeň \",WEEKNUM(DeňKalendára),\"/Deň \",DeňKalendára-DATE(YEAR(DeňKalendára),1,0)),CONCATENATE(\"Deň \",DeňKalendára-DATE(YEAR(DeňKalendára),1,0)))","v":"Deň 17"},{"$f":"IF(WEEKDAY(DeňKalendára)=HodnotaZačiatkuTýždňa,CONCATENATE(\"Týždeň \",WEEKNUM(DeňKalendára),\"/Deň \",DeňKalendára-DATE(YEAR(DeňKalendára),1,0)),CONCATENATE(\"Deň \",DeňKalendára-DATE(YEAR(DeňKalendára),1,0)))","v":"Deň 18"},{"$f":"IF(WEEKDAY(DeňKalendára)=HodnotaZačiatkuTýždňa,CONCATENATE(\"Týždeň \",WEEKNUM(DeňKalendára),\"/Deň \",DeňKalendára-DATE(YEAR(DeňKalendára),1,0)),CONCATENATE(\"Deň \",DeňKalendára-DATE(YEAR(DeňKalendára),1,0)))","v":"Deň 19"},{"$f":"IF(WEEKDAY(DeňKalendára)=HodnotaZačiatkuTýždňa,CONCATENATE(\"Týždeň \",WEEKNUM(DeňKalendára),\"/Deň \",DeňKalendára-DATE(YEAR(DeňKalendára),1,0)),CONCATENATE(\"Deň \",DeňKalendára-DATE(YEAR(DeňKalendára),1,0)))","v":"Deň 20"}]
[]
[null,null,{"$f":"DniATýždne+DATE(KalendárnyRok,1,1)-WEEKDAY(DATE(KalendárnyRok,1,1),(ZačiatokTýždňa=\"PO\")+1)+22","v":"2018-01-21"},"2018-01-22","2018-01-23","2018-01-24","2018-01-25","2018-01-26","2018-01-27"]
[null,null,{"$f":"IF(WEEKDAY(DeňKalendára)=HodnotaZačiatkuTýždňa,CONCATENATE(\"Týždeň \",WEEKNUM(DeňKalendára),\"/Deň \",DeňKalendára-DATE(YEAR(DeňKalendára),1,0)),CONCATENATE(\"Deň \",DeňKalendára-DATE(YEAR(DeňKalendára),1,0)))","v":"Týždeň 4/Deň 21"},{"$f":"IF(WEEKDAY(DeňKalendára)=HodnotaZačiatkuTýždňa,CONCATENATE(\"Týždeň \",WEEKNUM(DeňKalendára),\"/Deň \",DeňKalendára-DATE(YEAR(DeňKalendára),1,0)),CONCATENATE(\"Deň \",DeňKalendára-DATE(YEAR(DeňKalendára),1,0)))","v":"Deň 22"},{"$f":"IF(WEEKDAY(DeňKalendára)=HodnotaZačiatkuTýždňa,CONCATENATE(\"Týždeň \",WEEKNUM(DeňKalendára),\"/Deň \",DeňKalendára-DATE(YEAR(DeňKalendára),1,0)),CONCATENATE(\"Deň \",DeňKalendára-DATE(YEAR(DeňKalendára),1,0)))","v":"Deň 23"},{"$f":"IF(WEEKDAY(DeňKalendára)=HodnotaZačiatkuTýždňa,CONCATENATE(\"Týždeň \",WEEKNUM(DeňKalendára),\"/Deň \",DeňKalendára-DATE(YEAR(DeňKalendára),1,0)),CONCATENATE(\"Deň \",DeňKalendára-DATE(YEAR(DeňKalendára),1,0)))","v":"Deň 24"},{"$f":"IF(WEEKDAY(DeňKalendára)=HodnotaZačiatkuTýždňa,CONCATENATE(\"Týždeň \",WEEKNUM(DeňKalendára),\"/Deň \",DeňKalendára-DATE(YEAR(DeňKalendára),1,0)),CONCATENATE(\"Deň \",DeňKalendára-DATE(YEAR(DeňKalendára),1,0)))","v":"Deň 25"},{"$f":"IF(WEEKDAY(DeňKalendára)=HodnotaZačiatkuTýždňa,CONCATENATE(\"Týždeň \",WEEKNUM(DeňKalendára),\"/Deň \",DeňKalendára-DATE(YEAR(DeňKalendára),1,0)),CONCATENATE(\"Deň \",DeňKalendára-DATE(YEAR(DeňKalendára),1,0)))","v":"Deň 26"},{"$f":"IF(WEEKDAY(DeňKalendára)=HodnotaZačiatkuTýždňa,CONCATENATE(\"Týždeň \",WEEKNUM(DeňKalendára),\"/Deň \",DeňKalendára-DATE(YEAR(DeňKalendára),1,0)),CONCATENATE(\"Deň \",DeňKalendára-DATE(YEAR(DeňKalendára),1,0)))","v":"Deň 27"}]
[]
[null,null,{"$f":"DniATýždne+DATE(KalendárnyRok,1,1)-WEEKDAY(DATE(KalendárnyRok,1,1),(ZačiatokTýždňa=\"PO\")+1)+29","v":"2018-01-28"},"2018-01-29","2018-01-30","2018-01-31","2018-02-01","2018-02-02","2018-02-03"]
[null,null,{"$f":"IF(WEEKDAY(DeňKalendára)=HodnotaZačiatkuTýždňa,CONCATENATE(\"Týždeň \",WEEKNUM(DeňKalendára),\"/Deň \",DeňKalendára-DATE(YEAR(DeňKalendára),1,0)),CONCATENATE(\"Deň \",DeňKalendára-DATE(YEAR(DeňKalendára),1,0)))","v":"Týždeň 5/Deň 28"},{"$f":"IF(WEEKDAY(DeňKalendára)=HodnotaZačiatkuTýždňa,CONCATENATE(\"Týždeň \",WEEKNUM(DeňKalendára),\"/Deň \",DeňKalendára-DATE(YEAR(DeňKalendára),1,0)),CONCATENATE(\"Deň \",DeňKalendára-DATE(YEAR(DeňKalendára),1,0)))","v":"Deň 29"},{"$f":"IF(WEEKDAY(DeňKalendára)=HodnotaZačiatkuTýždňa,CONCATENATE(\"Týždeň \",WEEKNUM(DeňKalendára),\"/Deň \",DeňKalendára-DATE(YEAR(DeňKalendára),1,0)),CONCATENATE(\"Deň \",DeňKalendára-DATE(YEAR(DeňKalendára),1,0)))","v":"Deň 30"},{"$f":"IF(WEEKDAY(DeňKalendára)=HodnotaZačiatkuTýždňa,CONCATENATE(\"Týždeň \",WEEKNUM(DeňKalendára),\"/Deň \",DeňKalendára-DATE(YEAR(DeňKalendára),1,0)),CONCATENATE(\"Deň \",DeňKalendára-DATE(YEAR(DeňKalendára),1,0)))","v":"Deň 31"},{"$f":"IF(WEEKDAY(DeňKalendára)=HodnotaZačiatkuTýždňa,CONCATENATE(\"Týždeň \",WEEKNUM(DeňKalendára),\"/Deň \",DeňKalendára-DATE(YEAR(DeňKalendára),1,0)),CONCATENATE(\"Deň \",DeňKalendára-DATE(YEAR(DeňKalendára),1,0)))","v":"Deň 32"},{"$f":"IF(WEEKDAY(DeňKalendára)=HodnotaZačiatkuTýždňa,CONCATENATE(\"Týždeň \",WEEKNUM(DeňKalendára),\"/Deň \",DeňKalendára-DATE(YEAR(DeňKalendára),1,0)),CONCATENATE(\"Deň \",DeňKalendára-DATE(YEAR(DeňKalendára),1,0)))","v":"Deň 33"},{"$f":"IF(WEEKDAY(DeňKalendára)=HodnotaZačiatkuTýždňa,CONCATENATE(\"Týždeň \",WEEKNUM(DeňKalendára),\"/Deň \",DeňKalendára-DATE(YEAR(DeňKalendára),1,0)),CONCATENATE(\"Deň \",DeňKalendára-DATE(YEAR(DeňKalendára),1,0)))","v":"Deň 34"}]
[{"$nulls":4},"POZNÁMKY"]
[]
[null,null,{"$f":"DniATýždne+DATE(KalendárnyRok,1,1)-WEEKDAY(DATE(KalendárnyRok,1,1),(ZačiatokTýždňa=\"PO\")+1)+36","v":"2018-02-04"},"2018-02-05"]
[null,null,{"$f":"IF(WEEKDAY(DeňKalendára)=HodnotaZačiatkuTýždňa,CONCATENATE(\"Týždeň \",WEEKNUM(DeňKalendára),\"/Deň \",DeňKalendára-DATE(YEAR(DeňKalendára),1,0)),CONCATENATE(\"Deň \",DeňKalendára-DATE(YEAR(DeňKalendára),1,0)))","v":"Týždeň 6/Deň 35"},{"$f":"IF(WEEKDAY(DeňKalendára)=HodnotaZačiatkuTýždňa,CONCATENATE(\"Týždeň \",WEEKNUM(DeňKalendára),\"/Deň \",DeňKalendára-DATE(YEAR(DeňKalendára),1,0)),CONCATENATE(\"Deň \",DeňKalendára-DATE(YEAR(DeňKalendára),1,0)))","v":"Deň 36"}]

{"sheet":"FEB","index":1,"n_rows":20,"n_cols":9,"rows_kept":20,"merged":[[16,2,17,2],[17,4,19,8]]}
[null,"FEB",{"$f":"UPPER(TEXT(ZačiatokTýždňa,\"aaa\"))","v":"NE"},{"$f":"UPPER(TEXT(D3,\"aaa\"))","v":"PO"},"UT","ST","ŠT","PI","SO"]
[null,{"$f":"KalendárnyRok","v":2018}]
[null,null,{"$f":"DniATýždne+DATE(KalendárnyRok,2,1)-WEEKDAY(DATE(KalendárnyRok,2,1),(ZačiatokTýždňa=\"PO\")+1)+1","v":"2018-01-28"},"2018-01-29","2018-01-30","2018-01-31","2018-02-01","2018-02-02","2018-02-03"]
[null,null,{"$f":"IF(DAY(DeňKalendára)=1,CONCATENATE(\"Týždeň \",WEEKNUM(DeňKalendára),\"/Deň \",DeňKalendára-DATE(YEAR(DeňKalendára),1,0)),CONCATENATE(\"Deň \",DeňKalendára-DATE(YEAR(DeňKalendára),1,0)))","v":"Deň 28"},{"$f":"IF(DAY(DeňKalendára)=1,CONCATENATE(\"Týždeň \",WEEKNUM(DeňKalendára),\"/Deň \",DeňKalendára-DATE(YEAR(DeňKalendára),1,0)),CONCATENATE(\"Deň \",DeňKalendára-DATE(YEAR(DeňKalendára),1,0)))","v":"Deň 29"},{"$f":"IF(DAY(DeňKalendára)=1,CONCATENATE(\"Týždeň \",WEEKNUM(DeňKalendára),\"/Deň \",DeňKalendára-DATE(YEAR(DeňKalendára),1,0)),CONCATENATE(\"Deň \",DeňKalendára-DATE(YEAR(DeňKalendára),1,0)))","v":"Deň 30"},{"$f":"IF(DAY(DeňKalendára)=1,CONCATENATE(\"Týždeň \",WEEKNUM(DeňKalendára),\"/Deň \",DeňKalendára-DATE(YEAR(DeňKalendára),1,0)),CONCATENATE(\"Deň \",DeňKalendára-DATE(YEAR(DeňKalendára),1,0)))","v":"Deň 31"},{"$f":"IF(DAY(DeňKalendára)=1,CONCATENATE(\"Týždeň \",WEEKNUM(DeňKalendára),\"/Deň \",DeňKalendára-DATE(YEAR(DeňKalendára),1,0)),CONCATENATE(\"Deň \",DeňKalendára-DATE(YEAR(DeňKalendára),1,0)))","v":"Týždeň 5/Deň 32"},{"$f":"IF(DAY(DeňKalendára)=1,CONCATENATE(\"Týždeň \",WEEKNUM(DeňKalendára),\"/Deň \",DeňKalendára-DATE(YEAR(DeňKalendára),1,0)),CONCATENATE(\"Deň \",DeňKalendára-DATE(YEAR(DeňKalendára),1,0)))","v":"Deň 33"},{"$f":"IF(DAY(DeňKalendára)=1,CONCATENATE(\"Týždeň \",WEEKNUM(DeňKalendára),\"/Deň \",DeňKalendára-DATE(YEAR(DeňKalendára),1,0)),CONCATENATE(\"Deň \",DeňKalendára-DATE(YEAR(DeňKalendára),1,0)))","v":"Deň 34"}]
[]
[null,null,{"$f":"DniATýždne+DATE(KalendárnyRok,2,1)-WEEKDAY(DATE(KalendárnyRok,2,1),(ZačiatokTýždňa=\"PO\")+1)+8","v":"2018-02-04"},"2018-02-05","2018-02-06","2018-02-07","2018-02-08","2018-02-09","2018-02-10"]
[null,null,{"$f":"IF(WEEKDAY(DeňKalendára)=HodnotaZačiatkuTýždňa,CONCATENATE(\"Týždeň \",WEEKNUM(DeňKalendára),\"/Deň \",DeňKalendára-DATE(YEAR(DeňKalendára),1,0)),CONCATENATE(\"Deň \",DeňKalendára-DATE(YEAR(DeňKalendára),1,0)))","v":"Týždeň 6/Deň 35"},{"$f":"IF(WEEKDAY(DeňKalendára)=HodnotaZačiatkuTýždňa,CONCATENATE(\"Týždeň \",WEEKNUM(DeňKalendára),\"/Deň \",DeňKalendára-DATE(YEAR(DeňKalendára),1,0)),CONCATENATE(\"Deň \",DeňKalendára-DATE(YEAR(DeňKalendára),1,0)))","v":"Deň 36"},{"$f":"IF(WEEKDAY(DeňKalendára)=HodnotaZačiatkuTýždňa,CONCATENATE(\"Týždeň \",WEEKNUM(DeňKalendára),\"/Deň \",DeňKalendára-DATE(YEAR(DeňKalendára),1,0)),CONCATENATE(\"Deň \",DeňKalendára-DATE(YEAR(DeňKalendára),1,0)))","v":"Deň 37"},{"$f":"IF(WEEKDAY(DeňKalendára)=HodnotaZačiatkuTýždňa,CONCATENATE(\"Týždeň \",WEEKNUM(DeňKalendára),\"/Deň \",DeňKalendára-DATE(YEAR(DeňKalendára),1,0)),CONCATENATE(\"Deň \",DeňKalendára-DATE(YEAR(DeňKalendára),1,0)))","v":"Deň 38"},{"$f":"IF(WEEKDAY(DeňKalendára)=HodnotaZačiatkuTýždňa,CONCATENATE(\"Týždeň \",WEEKNUM(DeňKalendára),\"/Deň \",DeňKalendára-DATE(YEAR(DeňKalendára),1,0)),CONCATENATE(\"Deň \",DeňKalendára-DATE(YEAR(DeňKalendára),1,0)))","v":"Deň 39"},{"$f":"IF(WEEKDAY(DeňKalendára)=HodnotaZačiatkuTýždňa,CONCATENATE(\"Týždeň \",WEEKNUM(DeňKalendára),\"/Deň \",DeňKalendára-DATE(YEAR(DeňKalendára),1,0)),CONCATENATE(\"Deň \",DeňKalendára-DATE(YEAR(DeňKalendára),1,0)))","v":"Deň 40"},{"$f":"IF(WEEKDAY(DeňKalendára)=HodnotaZačiatkuTýždňa,CONCATENATE(\"Týždeň \",WEEKNUM(DeňKalendára),\"/Deň \",DeňKalendára-DATE(YEAR(DeňKalendára),1,0)),CONCATENATE(\"Deň \",DeňKalendára-DATE(YEAR(DeňKalendára),1,0)))","v":"Deň 41"}]
[]
[null,null,{"$f":"DniATýždne+DATE(KalendárnyRok,2,1)-WEEKDAY(DATE(KalendárnyRok,2,1),(ZačiatokTýždňa=\"PO\")+1)+15","v":"2018-02-11"},"2018-02-12","2018-02-13","2018-02-14","2018-02-15","2018-02-16","2018-02-17"]
[null,null,{"$f":"IF(WEEKDAY(DeňKalendára)=HodnotaZačiatkuTýždňa,CONCATENATE(\"Týždeň \",WEEKNUM(DeňKalendára),\"/Deň \",DeňKalendára-DATE(YEAR(DeňKalendára),1,0)),CONCATENATE(\"Deň \",DeňKalendára-DATE(YEAR(DeňKalendára),1,0)))","v":"Týždeň 7/Deň 42"},{"$f":"IF(WEEKDAY(DeňKalendára)=HodnotaZačiatkuTýždňa,CONCATENATE(\"Týždeň \",WEEKNUM(DeňKalendára),\"/Deň \",DeňKalendára-DATE(YEAR(DeňKalendára),1,0)),CONCATENATE(\"Deň \",DeňKalendára-DATE(YEAR(DeňKalendára),1,0)))","v":"Deň 43"},{"$f":"IF(WEEKDAY(DeňKalendára)=HodnotaZačiatkuTýždňa,CONCATENATE(\"Týždeň \",WEEKNUM(DeňKalendára),\"/Deň \",DeňKalendára-DATE(YEAR(DeňKalendára),1,0)),CONCATENATE(\"Deň \",DeňKalendára-DATE(YEAR(DeňKalendára),1,0)))","v":"Deň 44"},{"$f":"IF(WEEKDAY(DeňKalendára)=HodnotaZačiatkuTýždňa,CONCATENATE(\"Týždeň \",WEEKNUM(DeňKalendára),\"/Deň \",DeňKalendára-DATE(YEAR(DeňKalendára),1,0)),CONCATENATE(\"Deň \",DeňKalendára-DATE(YEAR(DeňKalendára),1,0)))","v":"Deň 45"},{"$f":"IF(WEEKDAY(DeňKalendára)=HodnotaZačiatkuTýždňa,CONCATENATE(\"Týždeň \",WEEKNUM(DeňKalendára),\"/Deň \",DeňKalendára-DATE(YEAR(DeňKalendára),1,0)),CONCATENATE(\"Deň \",DeňKalendára-DATE(YEAR(DeňKalendára),1,0)))","v":"Deň 46"},{"$f":"IF(WEEKDAY(DeňKalendára)=HodnotaZačiatkuTýždňa,CONCATENATE(\"Týždeň \",WEEKNUM(DeňKalendára),\"/Deň \",DeňKalendára-DATE(YEAR(DeňKalendára),1,0)),CONCATENATE(\"Deň \",DeňKalendára-DATE(YEAR(DeňKalendára),1,0)))","v":"Deň 47"},{"$f":"IF(WEEKDAY(DeňKalendára)=HodnotaZačiatkuTýždňa,CONCATENATE(\"Týždeň \",WEEKNUM(DeňKalendára),\"/Deň \",DeňKalendára-DATE(YEAR(DeňKalendára),1,0)),CONCATENATE(\"Deň \",DeňKalendára-DATE(YEAR(DeňKalendára),1,0)))","v":"Deň 48"}]
[]
[null,null,{"$f":"DniATýždne+DATE(KalendárnyRok,2,1)-WEEKDAY(DATE(KalendárnyRok,2,1),(ZačiatokTýždňa=\"PO\")+1)+22","v":"2018-02-18"},"2018-02-19","2018-02-20","2018-02-21","2018-02-22","2018-02-23","2018-02-24"]
[null,null,{"$f":"IF(WEEKDAY(DeňKalendára)=HodnotaZačiatkuTýždňa,CONCATENATE(\"Týždeň \",WEEKNUM(DeňKalendára),\"/Deň \",DeňKalendára-DATE(YEAR(DeňKalendára),1,0)),CONCATENATE(\"Deň \",DeňKalendára-DATE(YEAR(DeňKalendára),1,0)))","v":"Týždeň 8/Deň 49"},{"$f":"IF(WEEKDAY(DeňKalendára)=HodnotaZačiatkuTýždňa,CONCATENATE(\"Týždeň \",WEEKNUM(DeňKalendára),\"/Deň \",DeňKalendára-DATE(YEAR(DeňKalendára),1,0)),CONCATENATE(\"Deň \",DeňKalendára-DATE(YEAR(DeňKalendára),1,0)))","v":"Deň 50"},{"$f":"IF(WEEKDAY(DeňKalendára)=HodnotaZačiatkuTýždňa,CONCATENATE(\"Týždeň \",WEEKNUM(DeňKalendára),\"/Deň \",DeňKalendára-DATE(YEAR(DeňKalendára),1,0)),CONCATENATE(\"Deň \",DeňKalendára-DATE(YEAR(DeňKalendára),1,0)))","v":"Deň 51"},{"$f":"IF(WEEKDAY(DeňKalendára)=HodnotaZačiatkuTýždňa,CONCATENATE(\"Týždeň \",WEEKNUM(DeňKalendára),\"/Deň \",DeňKalendára-DATE(YEAR(DeňKalendára),1,0)),CONCATENATE(\"Deň \",DeňKalendára-DATE(YEAR(DeňKalendára),1,0)))","v":"Deň 52"},{"$f":"IF(WEEKDAY(DeňKalendára)=HodnotaZačiatkuTýždňa,CONCATENATE(\"Týždeň \",WEEKNUM(DeňKalendára),\"/Deň \",DeňKalendára-DATE(YEAR(DeňKalendára),1,0)),CONCATENATE(\"Deň \",DeňKalendára-DATE(YEAR(DeňKalendára),1,0)))","v":"Deň 53"},{"$f":"IF(WEEKDAY(DeňKalendára)=HodnotaZačiatkuTýždňa,CONCATENATE(\"Týždeň \",WEEKNUM(DeňKalendára),\"/Deň \",DeňKalendára-DATE(YEAR(DeňKalendára),1,0)),CONCATENATE(\"Deň \",DeňKalendára-DATE(YEAR(DeňKalendára),1,0)))","v":"Deň 54"},{"$f":"IF(WEEKDAY(DeňKalendára)=HodnotaZačiatkuTýždňa,CONCATENATE(\"Týždeň \",WEEKNUM(DeňKalendára),\"/Deň \",DeňKalendára-DATE(YEAR(DeňKalendára),1,0)),CONCATENATE(\"Deň \",DeňKalendára-DATE(YEAR(DeňKalendára),1,0)))","v":"Deň 55"}]
[]
[null,null,{"$f":"DniATýždne+DATE(KalendárnyRok,2,1)-WEEKDAY(DATE(KalendárnyRok,2,1),(ZačiatokTýždňa=\"PO\")+1)+29","v":"2018-02-25"},"2018-02-26","2018-02-27","2018-02-28","2018-03-01","2018-03-02","2018-03-03"]
[null,null,{"$f":"IF(WEEKDAY(DeňKalendára)=HodnotaZačiatkuTýždňa,CONCATENATE(\"Týždeň \",WEEKNUM(DeňKalendára),\"/Deň \",DeňKalendára-DATE(YEAR(DeňKalendára),1,0)),CONCATENATE(\"Deň \",DeňKalendára-DATE(YEAR(DeňKalendára),1,0)))","v":"Týždeň 9/Deň 56"},{"$f":"IF(WEEKDAY(DeňKalendára)=HodnotaZačiatkuTýždňa,CONCATENATE(\"Týždeň \",WEEKNUM(DeňKalendára),\"/Deň \",DeňKalendára-DATE(YEAR(DeňKalendára),1,0)),CONCATENATE(\"Deň \",DeňKalendára-DATE(YEAR(DeňKalendára),1,0)))","v":"Deň 57"},{"$f":"IF(WEEKDAY(DeňKalendára)=HodnotaZačiatkuTýždňa,CONCATENATE(\"Týždeň \",WEEKNUM(DeňKalendára),\"/Deň \",DeňKalendára-DATE(YEAR(DeňKalendára),1,0)),CONCATENATE(\"Deň \",DeňKalendára-DATE(YEAR(DeňKalendára),1,0)))","v":"Deň 58"},{"$f":"IF(WEEKDAY(DeňKalendára)=HodnotaZačiatkuTýždňa,CONCATENATE(\"Týždeň \",WEEKNUM(DeňKalendára),\"/Deň \",DeňKalendára-DATE(YEAR(DeňKalendára),1,0)),CONCATENATE(\"Deň \",DeňKalendára-DATE(YEAR(DeňKalendára),1,0)))","v":"Deň 59"},{"$f":"IF(WEEKDAY(DeňKalendára)=HodnotaZačiatkuTýždňa,CONCATENATE(\"Týždeň \",WEEKNUM(DeňKalendára),\"/Deň \",DeňKalendára-DATE(YEAR(DeňKalendára),1,0)),CONCATENATE(\"Deň \",DeňKalendára-DATE(YEAR(DeňKalendára),1,0)))","v":"Deň 60"},{"$f":"IF(WEEKDAY(DeňKalendára)=HodnotaZačiatkuTýždňa,CONCATENATE(\"Týždeň \",WEEKNUM(DeňKalendára),\"/Deň \",DeňKalendára-DATE(YEAR(DeňKalendára),1,0)),CONCATENATE(\"Deň \",DeňKalendára-DATE(YEAR(DeňKalendára),1,0)))","v":"Deň 61"},{"$f":"IF(WEEKDAY(DeňKalendára)=HodnotaZačiatkuTýždňa,CONCATENATE(\"Týždeň \",WEEKNUM(DeňKalendára),\"/Deň \",DeňKalendára-DATE(YEAR(DeňKalendára),1,0)),CONCATENATE(\"Deň \",DeňKalendára-DATE(YEAR(DeňKalendára),1,0)))","v":"Deň 62"}]
[{"$nulls":4},"POZNÁMKY"]
[]
[null,null,{"$f":"DniATýždne+DATE(KalendárnyRok,2,1)-WEEKDAY(DATE(KalendárnyRok,2,1),(ZačiatokTýždňa=\"PO\")+1)+36","v":"2018-03-04"},"2018-03-05"]
[null,null,{"$f":"IF(WEEKDAY(DeňKalendára)=HodnotaZačiatkuTýždňa,CONCATENATE(\"Týždeň \",WEEKNUM(DeňKalendára),\"/Deň \",DeňKalendára-DATE(YEAR(DeňKalendára),1,0)),CONCATENATE(\"Deň \",DeňKalendára-DATE(YEAR(DeňKalendára),1,0)))","v":"Týždeň 10/Deň 63"},{"$f":"IF(WEEKDAY(DeňKalendára)=HodnotaZačiatkuTýždňa,CONCATENATE(\"Týždeň \",WEEKNUM(DeňKalendára),\"/Deň \",DeňKalendára-DATE(YEAR(DeňKalendára),1,0)),CONCATENATE(\"Deň \",DeňKalendára-DATE(YEAR(DeňKalendára),1,0)))","v":"Deň 64"}]

{"sheet":"MAR","index":2,"n_rows":20,"n_cols":9,"rows_kept":20,"merged":[[16,2,17,2],[17,4,19,8]]}
[null,"MAR",{"$f":"UPPER(TEXT(ZačiatokTýždňa,\"aaa\"))","v":"NE"},{"$f":"UPPER(TEXT(D3,\"aaa\"))","v":"PO"},"UT","ST","ŠT","PI","SO"]
[null,{"$f":"KalendárnyRok","v":2018}]
[null,null,{"$f":"DniATýždne+DATE(KalendárnyRok,3,1)-WEEKDAY(DATE(KalendárnyRok,3,1),(ZačiatokTýždňa=\"PO\")+1)+1","v":"2018-02-25"},"2018-02-26","2018-02-27","2018-02-28","2018-03-01","2018-03-02","2018-03-03"]
[null,null,{"$f":"IF(DAY(DeňKalendára)=1,CONCATENATE(\"Týždeň \",WEEKNUM(DeňKalendára),\"/Deň \",DeňKalendára-DATE(YEAR(DeňKalendára),1,0)),CONCATENATE(\"Deň \",DeňKalendára-DATE(YEAR(DeňKalendára),1,0)))","v":"Deň 56"},{"$f":"IF(DAY(DeňKalendára)=1,CONCATENATE(\"Týždeň \",WEEKNUM(DeňKalendára),\"/Deň \",DeňKalendára-DATE(YEAR(DeňKalendára),1,0)),CONCATENATE(\"Deň \",DeňKalendára-DATE(YEAR(DeňKalendára),1,0)))","v":"Deň 57"},{"$f":"IF(DAY(DeňKalendára)=1,CONCATENATE(\"Týždeň \",WEEKNUM(DeňKalendára),\"/Deň \",DeňKalendára-DATE(YEAR(DeňKalendára),1,0)),CONCATENATE(\"Deň \",DeňKalendára-DATE(YEAR(DeňKalendára),1,0)))","v":"Deň 58"},{"$f":"IF(DAY(DeňKalendára)=1,CONCATENATE(\"Týždeň \",WEEKNUM(DeňKalendára),\"/Deň \",DeňKalendára-DATE(YEAR(DeňKalendára),1,0)),CONCATENATE(\"Deň \",DeňKalendára-DATE(YEAR(DeňKalendára),1,0)))","v":"Deň 59"},{"$f":"IF(DAY(DeňKalendára)=1,CONCATENATE(\"Týždeň \",WEEKNUM(DeňKalendára),\"/Deň \",DeňKalendára-DATE(YEAR(DeňKalendára),1,0)),CONCATENATE(\"Deň \",DeňKalendára-DATE(YEAR(DeňKalendára),1,0)))","v":"Týždeň 9/Deň 60"},{"$f":"IF(DAY(DeňKalendára)=1,CONCATENATE(\"Týždeň \",WEEKNUM(DeňKalendára),\"/Deň \",DeňKalendára-DATE(YEAR(DeňKalendára),1,0)),CONCATENATE(\"Deň \",DeňKalendára-DATE(YEAR(DeňKalendára),1,0)))","v":"Deň 61"},{"$f":"IF(DAY(DeňKalendára)=1,CONCATENATE(\"Týždeň \",WEEKNUM(DeňKalendára),\"/Deň \",DeňKalendára-DATE(YEAR(DeňKalendára),1,0)),CONCATENATE(\"Deň \",DeňKalendára-DATE(YEAR(DeňKalendára),1,0)))","v":"Deň 62"}]
[]
[null,null,{"$f":"DniATýždne+DATE(KalendárnyRok,3,1)-WEEKDAY(DATE(KalendárnyRok,3,1),(ZačiatokTýždňa=\"PO\")+1)+8","v":"2018-03-04"},"2018-03-05","2018-03-06","2018-03-07","2018-03-08","2018-03-09","2018-03-10"]
[null,null,{"$f":"IF(WEEKDAY(DeňKalendára)=HodnotaZačiatkuTýždňa,CONCATENATE(\"Týždeň \",WEEKNUM(DeňKalendára),\"/Deň \",DeňKalendára-DATE(YEAR(DeňKalendára),1,0)),CONCATENATE(\"Deň \",DeňKalendára-DATE(YEAR(DeňKalendára),1,0)))","v":"Týždeň 10/Deň 63"},{"$f":"IF(WEEKDAY(DeňKalendára)=HodnotaZačiatkuTýždňa,CONCATENATE(\"Týždeň \",WEEKNUM(DeňKalendára),\"/Deň \",DeňKalendára-DATE(YEAR(DeňKalendára),1,0)),CONCATENATE(\"Deň \",DeňKalendára-DATE(YEAR(DeňKalendára),1,0)))","v":"Deň 64"},{"$f":"IF(WEEKDAY(DeňKalendára)=HodnotaZačiatkuTýždňa,CONCATENATE(\"Týždeň \",WEEKNUM(DeňKalendára),\"/Deň \",DeňKalendára-DATE(YEAR(DeňKalendára),1,0)),CONCATENATE(\"Deň \",DeňKalendára-DATE(YEAR(DeňKalendára),1,0)))","v":"Deň 65"},{"$f":"IF(WEEKDAY(DeňKalendára)=HodnotaZačiatkuTýždňa,CONCATENATE(\"Týždeň \",WEEKNUM(DeňKalendára),\"/Deň \",DeňKalendára-DATE(YEAR(DeňKalendára),1,0)),CONCATENATE(\"Deň \",DeňKalendára-DATE(YEAR(DeňKalendára),1,0)))","v":"Deň 66"},{"$f":"IF(WEEKDAY(DeňKalendára)=HodnotaZačiatkuTýždňa,CONCATENATE(\"Týždeň \",WEEKNUM(DeňKalendára),\"/Deň \",DeňKalendára-DATE(YEAR(DeňKalendára),1,0)),CONCATENATE(\"Deň \",DeňKalendára-DATE(YEAR(DeňKalendára),1,0)))","v":"Deň 67"},{"$f":"IF(WEEKDAY(DeňKalendára)=HodnotaZačiatkuTýždňa,CONCATENATE(\"Týždeň \",WEEKNUM(DeňKalendára),\"/Deň \",DeňKalendára-DATE(YEAR(DeňKalendára),1,0)),CONCATENATE(\"Deň \",DeňKalendára-DATE(YEAR(DeňKalendára),1,0)))","v":"Deň 68"},{"$f":"IF(WEEKDAY(DeňKalendára)=HodnotaZačiatkuTýždňa,CONCATENATE(\"Týždeň \",WEEKNUM(DeňKalendára),\"/Deň \",DeňKalendára-DATE(YEAR(DeňKalendára),1,0)),CONCATENATE(\"Deň \",DeňKalendára-DATE(YEAR(DeňKalendára),1,0)))","v":"Deň 69"}]
[]
[null,null,{"$f":"DniATýždne+DATE(KalendárnyRok,3,1)-WEEKDAY(DATE(KalendárnyRok,3,1),(ZačiatokTýždňa=\"PO\")+1)+15","v":"2018-03-11"},"2018-03-12","2018-03-13","2018-03-14","2018-03-15","2018-03-16","2018-03-17"]
[null,null,{"$f":"IF(WEEKDAY(DeňKalendára)=HodnotaZačiatkuTýždňa,CONCATENATE(\"Týždeň \",WEEKNUM(DeňKalendára),\"/Deň \",DeňKalendára-DATE(YEAR(DeňKalendára),1,0)),CONCATENATE(\"Deň \",DeňKalendára-DATE(YEAR(DeňKalendára),1,0)))","v":"Týždeň 11/Deň 70"},{"$f":"IF(WEEKDAY(DeňKalendára)=HodnotaZačiatkuTýždňa,CONCATENATE(\"Týždeň \",WEEKNUM(DeňKalendára),\"/Deň \",DeňKalendára-DATE(YEAR(DeňKalendára),1,0)),CONCATENATE(\"Deň \",DeňKalendára-DATE(YEAR(DeňKalendára),1,0)))","v":"Deň 71"},{"$f":"IF(WEEKDAY(DeňKalendára)=HodnotaZačiatkuTýždňa,CONCATENATE(\"Týždeň \",WEEKNUM(DeňKalendára),\"/Deň \",DeňKalendára-DATE(YEAR(DeňKalendára),1,0)),CONCATENATE(\"Deň \",DeňKalendára-DATE(YEAR(DeňKalendára),1,0)))","v":"Deň 72"},{"$f":"IF(WEEKDAY(DeňKalendára)=HodnotaZačiatkuTýždňa,CONCATENATE(\"Týždeň \",WEEKNUM(DeňKalendára),\"/Deň \",DeňKalendára-DATE(YEAR(DeňKalendára),1,0)),CONCATENATE(\"Deň \",DeňKalendára-DATE(YEAR(DeňKalendára),1,0)))","v":"Deň 73"},{"$f":"IF(WEEKDAY(DeňKalendára)=HodnotaZačiatkuTýždňa,CONCATENATE(\"Týždeň \",WEEKNUM(DeňKalendára),\"/Deň \",DeňKalendára-DATE(YEAR(DeňKalendára),1,0)),CONCATENATE(\"Deň \",DeňKalendára-DATE(YEAR(DeňKalendára),1,0)))","v":"Deň 74"},{"$f":"IF(WEEKDAY(DeňKalendára)=HodnotaZačiatkuTýždňa,CONCATENATE(\"Týždeň \",WEEKNUM(DeňKalendára),\"/Deň \",DeňKalendára-DATE(YEAR(DeňKalendára),1,0)),CONCATENATE(\"Deň \",DeňKalendára-DATE(YEAR(DeňKalendára),1,0)))","v":"Deň 75"},{"$f":"IF(WEEKDAY(DeňKalendára)=HodnotaZačiatkuTýždňa,CONCATENATE(\"Týždeň \",WEEKNUM(DeňKalendára),\"/Deň \",DeňKalendára-DATE(YEAR(DeňKalendára),1,0)),CONCATENATE(\"Deň \",DeňKalendára-DATE(YEAR(DeňKalendára),1,0)))","v":"Deň 76"}]
[]
[null,null,{"$f":"DniATýždne+DATE(KalendárnyRok,3,1)-WEEKDAY(DATE(KalendárnyRok,3,1),(ZačiatokTýždňa=\"PO\")+1)+22","v":"2018-03-18"},"2018-03-19","2018-03-20","2018-03-21","2018-03-22","2018-03-23","2018-03-24"]
[null,null,{"$f":"IF(WEEKDAY(DeňKalendára)=HodnotaZačiatkuTýždňa,CONCATENATE(\"Týždeň \",WEEKNUM(DeňKalendára),\"/Deň \",DeňKalendára-DATE(YEAR(DeňKalendára),1,0)),CONCATENATE(\"Deň \",DeňKalendára-DATE(YEAR(DeňKalendára),1,0)))","v":"Týždeň 12/Deň 77"},{"$f":"IF(WEEKDAY(DeňKalendára)=HodnotaZačiatkuTýždňa,CONCATENATE(\"Týždeň \",WEEKNUM(DeňKalendára),\"/Deň \",DeňKalendára-DATE(YEAR(DeňKalendára),1,0)),CONCATENATE(\"Deň \",DeňKalendára-DATE(YEAR(DeňKalendára),1,0)))","v":"Deň 78"},{"$f":"IF(WEEKDAY(DeňKalendára)=HodnotaZačiatkuTýždňa,CONCATENATE(\"Týždeň \",WEEKNUM(DeňKalendára),\"/Deň \",DeňKalendára-DATE(YEAR(DeňKalendára),1,0)),CONCATENATE(\"Deň \",DeňKalendára-DATE(YEAR(DeňKalendára),1,0)))","v":"Deň 79"},{"$f":"IF(WEEKDAY(DeňKalendára)=HodnotaZačiatkuTýždňa,CONCATENATE(\"Týždeň \",WEEKNUM(DeňKalendára),\"/Deň \",DeňKalendára-DATE(YEAR(DeňKalendára),1,0)),CONCATENATE(\"Deň \",DeňKalendára-DATE(YEAR(DeňKalendára),1,0)))","v":"Deň 80"},{"$f":"IF(WEEKDAY(DeňKalendára)=HodnotaZačiatkuTýždňa,CONCATENATE(\"Týždeň \",WEEKNUM(DeňKalendára),\"/Deň \",DeňKalendára-DATE(YEAR(DeňKalendára),1,0)),CONCATENATE(\"Deň \",DeňKalendára-DATE(YEAR(DeňKalendára),1,0)))","v":"Deň 81"},{"$f":"IF(WEEKDAY(DeňKalendára)=HodnotaZačiatkuTýždňa,CONCATENATE(\"Týždeň \",WEEKNUM(DeňKalendára),\"/Deň \",DeňKalendára-DATE(YEAR(DeňKalendára),1,0)),CONCATENATE(\"Deň \",DeňKalendára-DATE(YEAR(DeňKalendára),1,0)))","v":"Deň 82"},{"$f":"IF(WEEKDAY(DeňKalendára)=HodnotaZačiatkuTýždňa,CONCATENATE(\"Týždeň \",WEEKNUM(DeňKalendára),\"/Deň \",DeňKalendára-DATE(YEAR(DeňKalendára),1,0)),CONCATENATE(\"Deň \",DeňKalendára-DATE(YEAR(DeňKalendára),1,0)))","v":"Deň 83"}]
[]
[null,null,{"$f":"DniATýždne+DATE(KalendárnyRok,3,1)-WEEKDAY(DATE(KalendárnyRok,3,1),(ZačiatokTýždňa=\"PO\")+1)+29","v":"2018-03-25"},"2018-03-26","2018-03-27","2018-03-28","2018-03-29","2018-03-30","2018-03-31"]
[null,null,{"$f":"IF(WEEKDAY(DeňKalendára)=HodnotaZačiatkuTýždňa,CONCATENATE(\"Týždeň \",WEEKNUM(DeňKalendára),\"/Deň \",DeňKalendára-DATE(YEAR(DeňKalendára),1,0)),CONCATENATE(\"Deň \",DeňKalendára-DATE(YEAR(DeňKalendára),1,0)))","v":"Týždeň 13/Deň 84"},{"$f":"IF(WEEKDAY(DeňKalendára)=HodnotaZačiatkuTýždňa,CONCATENATE(\"Týždeň \",WEEKNUM(DeňKalendára),\"/Deň \",DeňKalendára-DATE(YEAR(DeňKalendára),1,0)),CONCATENATE(\"Deň \",DeňKalendára-DATE(YEAR(DeňKalendára),1,0)))","v":"Deň 85"},{"$f":"IF(WEEKDAY(DeňKalendára)=HodnotaZačiatkuTýždňa,CONCATENATE(\"Týždeň \",WEEKNUM(DeňKalendára),\"/Deň \",DeňKalendára-DATE(YEAR(DeňKalendára),1,0)),CONCATENATE(\"Deň \",DeňKalendára-DATE(YEAR(DeňKalendára),1,0)))","v":"Deň 86"},{"$f":"IF(WEEKDAY(DeňKalendára)=HodnotaZačiatkuTýždňa,CONCATENATE(\"Týždeň \",WEEKNUM(DeňKalendára),\"/Deň \",DeňKalendára-DATE(YEAR(DeňKalendára),1,0)),CONCATENATE(\"Deň \",DeňKalendára-DATE(YEAR(DeňKalendára),1,0)))","v":"Deň 87"},{"$f":"IF(WEEKDAY(DeňKalendára)=HodnotaZačiatkuTýždňa,CONCATENATE(\"Týždeň \",WEEKNUM(DeňKalendára),\"/Deň \",DeňKalendára-DATE(YEAR(DeňKalendára),1,0)),CONCATENATE(\"Deň \",DeňKalendára-DATE(YEAR(DeňKalendára),1,0)))","v":"Deň 88"},{"$f":"IF(WEEKDAY(DeňKalendára)=HodnotaZačiatkuTýždňa,CONCATENATE(\"Týždeň \",WEEKNUM(DeňKalendára),\"/Deň \",DeňKalendára-DATE(YEAR(DeňKalendára),1,0)),CONCATENATE(\"Deň \",DeňKalendára-DATE(YEAR(DeňKalendára),1,0)))","v":"Deň 89"},{"$f":"IF(WEEKDAY(DeňKalendára)=HodnotaZačiatkuTýždňa,CONCATENATE(\"Týždeň \",WEEKNUM(DeňKalendára),\"/Deň \",DeňKalendára-DATE(YEAR(DeňKalendára),1,0)),CONCATENATE(\"Deň \",DeňKalendára-DATE(YEAR(DeňKalendára),1,0)))","v":"Deň 90"}]
[{"$nulls":4},"POZNÁMKY"]
[]
[null,null,{"$f":"DniATýždne+DATE(KalendárnyRok,3,1)-WEEKDAY(DATE(KalendárnyRok,3,1),(ZačiatokTýždňa=\"PO\")+1)+36","v":"2018-04-01"},"2018-04-02"]
[null,null,{"$f":"IF(WEEKDAY(DeňKalendára)=HodnotaZačiatkuTýždňa,CONCATENATE(\"Týždeň \",WEEKNUM(DeňKalendára),\"/Deň \",DeňKalendára-DATE(YEAR(DeňKalendára),1,0)),CONCATENATE(\"Deň \",DeňKalendára-DATE(YEAR(DeňKalendára),1,0)))","v":"Týždeň 14/Deň 91"},{"$f":"IF(WEEKDAY(DeňKalendára)=HodnotaZačiatkuTýždňa,CONCATENATE(\"Týždeň \",WEEKNUM(DeňKalendára),\"/Deň \",DeňKalendára-DATE(YEAR(DeňKalendára),1,0)),CONCATENATE(\"Deň \",DeňKalendára-DATE(YEAR(DeňKalendára),1,0)))","v":"Deň 92"}]

{"sheet":"APR","index":3,"n_rows":20,"n_cols":9,"rows_kept":20,"merged":[[16,2,17,2],[17,4,19,8]]}
[null,"APR",{"$f":"UPPER(TEXT(ZačiatokTýždňa,\"aaa\"))","v":"NE"},{"$f":"UPPER(TEXT(D3,\"aaa\"))","v":"PO"},"UT","ST","ŠT","PI","SO"]
[null,{"$f":"KalendárnyRok","v":2018}]
[null,null,{"$f":"DniATýždne+DATE(KalendárnyRok,4,1)-WEEKDAY(DATE(KalendárnyRok,4,1),(ZačiatokTýždňa=\"PO\")+1)+1","v":"2018-04-01"},"2018-04-02","2018-04-03","2018-04-04","2018-04-05","2018-04-06","2018-04-07"]
[null,null,{"$f":"IF(DAY(DeňKalendára)=1,CONCATENATE(\"Týždeň \",WEEKNUM(DeňKalendára),\"/Deň \",DeňKalendára-DATE(YEAR(DeňKalendára),1,0)),CONCATENATE(\"Deň \",DeňKalendára-DATE(YEAR(DeňKalendára),1,0)))","v":"Týždeň 14/Deň 91"},{"$f":"IF(DAY(DeňKalendára)=1,CONCATENATE(\"Týždeň \",WEEKNUM(DeňKalendára),\"/Deň \",DeňKalendára-DATE(YEAR(DeňKalendára),1,0)),CONCATENATE(\"Deň \",DeňKalendára-DATE(YEAR(DeňKalendára),1,0)))","v":"Deň 92"},{"$f":"IF(DAY(DeňKalendára)=1,CONCATENATE(\"Týždeň \",WEEKNUM(DeňKalendára),\"/Deň \",DeňKalendára-DATE(YEAR(DeňKalendára),1,0)),CONCATENATE(\"Deň \",DeňKalendára-DATE(YEAR(DeňKalendára),1,0)))","v":"Deň 93"},{"$f":"IF(DAY(DeňKalendára)=1,CONCATENATE(\"Týždeň \",WEEKNUM(DeňKalendára),\"/Deň \",DeňKalendára-DATE(YEAR(DeňKalendára),1,0)),CONCATENATE(\"Deň \",DeňKalendára-DATE(YEAR(DeňKalendára),1,0)))","v":"Deň 94"},{"$f":"IF(DAY(DeňKalendára)=1,CONCATENATE(\"Týždeň \",WEEKNUM(DeňKalendára),\"/Deň \",DeňKalendára-DATE(YEAR(DeňKalendára),1,0)),CONCATENATE(\"Deň \",DeňKalendára-DATE(YEAR(DeňKalendára),1,0)))","v":"Deň 95"},{"$f":"IF(DAY(DeňKalendára)=1,CONCATENATE(\"Týždeň \",WEEKNUM(DeňKalendára),\"/Deň \",DeňKalendára-DATE(YEAR(DeňKalendára),1,0)),CONCATENATE(\"Deň \",DeňKalendára-DATE(YEAR(DeňKalendára),1,0)))","v":"Deň 96"},{"$f":"IF(DAY(DeňKalendára)=1,CONCATENATE(\"Týždeň \",WEEKNUM(DeňKalendára),\"/Deň \",DeňKalendára-DATE(YEAR(DeňKalendára),1,0)),CONCATENATE(\"Deň \",DeňKalendára-DATE(YEAR(DeňKalendára),1,0)))","v":"Deň 97"}]
[]
[null,null,{"$f":"DniATýždne+DATE(KalendárnyRok,4,1)-WEEKDAY(DATE(KalendárnyRok,4,1),(ZačiatokTýždňa=\"PO\")+1)+8","v":"2018-04-08"},"2018-04-09","2018-04-10","2018-04-11","2018-04-12","2018-04-13","2018-04-14"]
[null,null,{"$f":"IF(WEEKDAY(DeňKalendára)=HodnotaZačiatkuTýždňa,CONCATENATE(\"Týždeň \",WEEKNUM(DeňKalendára),\"/Deň \",DeňKalendára-DATE(YEAR(DeňKalendára),1,0)),CONCATENATE(\"Deň \",DeňKalendára-DATE(YEAR(DeňKalendára),1,0)))","v":"Týždeň 15/Deň 98"},{"$f":"IF(WEEKDAY(DeňKalendára)=HodnotaZačiatkuTýždňa,CONCATENATE(\"Týždeň \",WEEKNUM(DeňKalendára),\"/Deň \",DeňKalendára-DATE(YEAR(DeňKalendára),1,0)),CONCATENATE(\"Deň \",DeňKalendára-DATE(YEAR(DeňKalendára),1,0)))","v":"Deň 99"},{"$f":"IF(WEEKDAY(DeňKalendára)=HodnotaZačiatkuTýždňa,CONCATENATE(\"Týždeň \",WEEKNUM(DeňKalendára),\"/Deň \",DeňKalendára-DATE(YEAR(DeňKalendára),1,0)),CONCATENATE(\"Deň \",DeňKalendára-DATE(YEAR(DeňKalendára),1,0)))","v":"Deň 100"},{"$f":"IF(WEEKDAY(DeňKalendára)=HodnotaZačiatkuTýždňa,CONCATENATE(\"Týždeň \",WEEKNUM(DeňKalendára),\"/Deň \",DeňKalendára-DATE(YEAR(DeňKalendára),1,0)),CONCATENATE(\"Deň \",DeňKalendára-DATE(YEAR(DeňKalendára),1,0)))","v":"Deň 101"},{"$f":"IF(WEEKDAY(DeňKalendára)=HodnotaZačiatkuTýždňa,CONCATENATE(\"Týždeň \",WEEKNUM(DeňKalendára),\"/Deň \",DeňKalendára-DATE(YEAR(DeňKalendára),1,0)),CONCATENATE(\"Deň \",DeňKalendára-DATE(YEAR(DeňKalendára),1,0)))","v":"Deň 102"},{"$f":"IF(WEEKDAY(DeňKalendára)=HodnotaZačiatkuTýždňa,CONCATENATE(\"Týždeň \",WEEKNUM(DeňKalendára),\"/Deň \",DeňKalendára-DATE(YEAR(DeňKalendára),1,0)),CONCATENATE(\"Deň \",DeňKalendára-DATE(YEAR(DeňKalendára),1,0)))","v":"Deň 103"},{"$f":"IF(WEEKDAY(DeňKalendára)=HodnotaZačiatkuTýždňa,CONCATENATE(\"Týždeň \",WEEKNUM(DeňKalendára),\"/Deň \",DeňKalendára-DATE(YEAR(DeňKalendára),1,0)),CONCATENATE(\"Deň \",DeňKalendára-DATE(YEAR(DeňKalendára),1,0)))","v":"Deň 104"}]
[]
[null,null,{"$f":"DniATýždne+DATE(KalendárnyRok,4,1)-WEEKDAY(DATE(KalendárnyRok,4,1),(ZačiatokTýždňa=\"PO\")+1)+15","v":"2018-04-15"},"2018-04-16","2018-04-17","2018-04-18","2018-04-19","2018-04-20","2018-04-21"]
[null,null,{"$f":"IF(WEEKDAY(DeňKalendára)=HodnotaZačiatkuTýždňa,CONCATENATE(\"Týždeň \",WEEKNUM(DeňKalendára),\"/Deň \",DeňKalendára-DATE(YEAR(DeňKalendára),1,0)),CONCATENATE(\"Deň \",DeňKalendára-DATE(YEAR(DeňKalendára),1,0)))","v":"Týždeň 16/Deň 105"},{"$f":"IF(WEEKDAY(DeňKalendára)=HodnotaZačiatkuTýždňa,CONCATENATE(\"Týždeň \",WEEKNUM(DeňKalendára),\"/Deň \",DeňKalendára-DATE(YEAR(DeňKalendára),1,0)),CONCATENATE(\"Deň \",DeňKalendára-DATE(YEAR(DeňKalendára),1,0)))","v":"Deň 106"},{"$f":"IF(WEEKDAY(DeňKalendára)=HodnotaZačiatkuTýždňa,CONCATENATE(\"Týždeň \",WEEKNUM(DeňKalendára),\"/Deň \",DeňKalendára-DATE(YEAR(DeňKalendára),1,0)),CONCATENATE(\"Deň \",DeňKalendára-DATE(YEAR(DeňKalendára),1,0)))","v":"Deň 107"},{"$f":"IF(WEEKDAY(DeňKalendára)=HodnotaZačiatkuTýždňa,CONCATENATE(\"Týždeň \",WEEKNUM(DeňKalendára),\"/Deň \",DeňKalendára-DATE(YEAR(DeňKalendára),1,0)),CONCATENATE(\"Deň \",DeňKalendára-DATE(YEAR(DeňKalendára),1,0)))","v":"Deň 108"},{"$f":"IF(WEEKDAY(DeňKalendára)=HodnotaZačiatkuTýždňa,CONCATENATE(\"Týždeň \",WEEKNUM(DeňKalendára),\"/Deň \",DeňKalendára-DATE(YEAR(DeňKalendára),1,0)),CONCATENATE(\"Deň \",DeňKalendára-DATE(YEAR(DeňKalendára),1,0)))","v":"Deň 109"},{"$f":"IF(WEEKDAY(DeňKalendára)=HodnotaZačiatkuTýždňa,CONCATENATE(\"Týždeň \",WEEKNUM(DeňKalendára),\"/Deň \",DeňKalendára-DATE(YEAR(DeňKalendára),1,0)),CONCATENATE(\"Deň \",DeňKalendára-DATE(YEAR(DeňKalendára),1,0)))","v":"Deň 110"},{"$f":"IF(WEEKDAY(DeňKalendára)=HodnotaZačiatkuTýždňa,CONCATENATE(\"Týždeň \",WEEKNUM(DeňKalendára),\"/Deň \",DeňKalendára-DATE(YEAR(DeňKalendára),1,0)),CONCATENATE(\"Deň \",DeňKalendára-DATE(YEAR(DeňKalendára),1,0)))","v":"Deň 111"}]
[]
[null,null,{"$f":"DniATýždne+DATE(KalendárnyRok,4,1)-WEEKDAY(DATE(KalendárnyRok,4,1),(ZačiatokTýždňa=\"PO\")+1)+22","v":"2018-04-22"},"2018-04-23","2018-04-24","2018-04-25","2018-04-26","2018-04-27","2018-04-28"]
[null,null,{"$f":"IF(WEEKDAY(DeňKalendára)=HodnotaZačiatkuTýždňa,CONCATENATE(\"Týždeň \",WEEKNUM(DeňKalendára),\"/Deň \",DeňKalendára-DATE(YEAR(DeňKalendára),1,0)),CONCATENATE(\"Deň \",DeňKalendára-DATE(YEAR(DeňKalendára),1,0)))","v":"Týždeň 17/Deň 112"},{"$f":"IF(WEEKDAY(DeňKalendára)=HodnotaZačiatkuTýždňa,CONCATENATE(\"Týždeň \",WEEKNUM(DeňKalendára),\"/Deň \",DeňKalendára-DATE(YEAR(DeňKalendára),1,0)),CONCATENATE(\"Deň \",DeňKalendára-DATE(YEAR(DeňKalendára),1,0)))","v":"Deň 113"},{"$f":"IF(WEEKDAY(DeňKalendára)=HodnotaZačiatkuTýždňa,CONCATENATE(\"Týždeň \",WEEKNUM(DeňKalendára),\"/Deň \",DeňKalendára-DATE(YEAR(DeňKalendára),1,0)),CONCATENATE(\"Deň \",DeňKalendára-DATE(YEAR(DeňKalendára),1,0)))","v":"Deň 114"},{"$f":"IF(WEEKDAY(DeňKalendára)=HodnotaZačiatkuTýždňa,CONCATENATE(\"Týždeň \",WEEKNUM(DeňKalendára),\"/Deň \",DeňKalendára-DATE(YEAR(DeňKalendára),1,0)),CONCATENATE(\"Deň \",DeňKalendára-DATE(YEAR(DeňKalendára),1,0)))","v":"Deň 115"},{"$f":"IF(WEEKDAY(DeňKalendára)=HodnotaZačiatkuTýždňa,CONCATENATE(\"Týždeň \",WEEKNUM(DeňKalendára),\"/Deň \",DeňKalendára-DATE(YEAR(DeňKalendára),1,0)),CONCATENATE(\"Deň \",DeňKalendára-DATE(YEAR(DeňKalendára),1,0)))","v":"Deň 116"},{"$f":"IF(WEEKDAY(DeňKalendára)=HodnotaZačiatkuTýždňa,CONCATENATE(\"Týždeň \",WEEKNUM(DeňKalendára),\"/Deň \",DeňKalendára-DATE(YEAR(DeňKalendára),1,0)),CONCATENATE(\"Deň \",DeňKalendára-DATE(YEAR(DeňKalendára),1,0)))","v":"Deň 117"},{"$f":"IF(WEEKDAY(DeňKalendára)=HodnotaZačiatkuTýždňa,CONCATENATE(\"Týždeň \",WEEKNUM(DeňKalendára),\"/Deň \",DeňKalendára-DATE(YEAR(DeňKalendára),1,0)),CONCATENATE(\"Deň \",DeňKalendára-DATE(YEAR(DeňKalendára),1,0)))","v":"Deň 118"}]
[]
[null,null,{"$f":"DniATýždne+DATE(KalendárnyRok,4,1)-WEEKDAY(DATE(KalendárnyRok,4,1),(ZačiatokTýždňa=\"PO\")+1)+29","v":"2018-04-29"},"2018-04-30","2018-05-01","2018-05-02","2018-05-03","2018-05-04","2018-05-05"]
[null,null,{"$f":"IF(WEEKDAY(DeňKalendára)=HodnotaZačiatkuTýždňa,CONCATENATE(\"Týždeň \",WEEKNUM(DeňKalendára),\"/Deň \",DeňKalendára-DATE(YEAR(DeňKalendára),1,0)),CONCATENATE(\"Deň \",DeňKalendára-DATE(YEAR(DeňKalendára),1,0)))","v":"Týždeň 18/Deň 119"},{"$f":"IF(WEEKDAY(DeňKalendára)=HodnotaZačiatkuTýždňa,CONCATENATE(\"Týždeň \",WEEKNUM(DeňKalendára),\"/Deň \",DeňKalendára-DATE(YEAR(DeňKalendára),1,0)),CONCATENATE(\"Deň \",DeňKalendára-DATE(YEAR(DeňKalendára),1,0)))","v":"Deň 120"},{"$f":"IF(WEEKDAY(DeňKalendára)=HodnotaZačiatkuTýždňa,CONCATENATE(\"Týždeň \",WEEKNUM(DeňKalendára),\"/Deň \",DeňKalendára-DATE(YEAR(DeňKalendára),1,0)),CONCATENATE(\"Deň \",DeňKalendára-DATE(YEAR(DeňKalendára),1,0)))","v":"Deň 121"},{"$f":"IF(WEEKDAY(DeňKalendára)=HodnotaZačiatkuTýždňa,CONCATENATE(\"Týždeň \",WEEKNUM(DeňKalendára),\"/Deň \",DeňKalendára-DATE(YEAR(DeňKalendára),1,0)),CONCATENATE(\"Deň \",DeňKalendára-DATE(YEAR(DeňKalendára),1,0)))","v":"Deň 122"},{"$f":"IF(WEEKDAY(DeňKalendára)=HodnotaZačiatkuTýždňa,CONCATENATE(\"Týždeň \",WEEKNUM(DeňKalendára),\"/Deň \",DeňKalendára-DATE(YEAR(DeňKalendára),1,0)),CONCATENATE(\"Deň \",DeňKalendára-DATE(YEAR(DeňKalendára),1,0)))","v":"Deň 123"},{"$f":"IF(WEEKDAY(DeňKalendára)=HodnotaZačiatkuTýždňa,CONCATENATE(\"Týždeň \",WEEKNUM(DeňKalendára),\"/Deň \",DeňKalendára-DATE(YEAR(DeňKalendára),1,0)),CONCATENATE(\"Deň \",DeňKalendára-DATE(YEAR(DeňKalendára),1,0)))","v":"Deň 124"},{"$f":"IF(WEEKDAY(DeňKalendára)=HodnotaZačiatkuTýždňa,CONCATENATE(\"Týždeň \",WEEKNUM(DeňKalendára),\"/Deň \",DeňKalendára-DATE(YEAR(DeňKalendára),1,0)),CONCATENATE(\"Deň \",DeňKalendára-DATE(YEAR(DeňKalendára),1,0)))","v":"Deň 125"}]
[{"$nulls":4},"POZNÁMKY"]
[]
[null,null,{"$f":"DniATýždne+DATE(KalendárnyRok,4,1)-WEEKDAY(DATE(KalendárnyRok,4,1),(ZačiatokTýždňa=\"PO\")+1)+36","v":"2018-05-06"},"2018-05-07"]
[null,null,{"$f":"IF(WEEKDAY(DeňKalendára)=HodnotaZačiatkuTýždňa,CONCATENATE(\"Týždeň \",WEEKNUM(DeňKalendára),\"/Deň \",DeňKalendára-DATE(YEAR(DeňKalendára),1,0)),CONCATENATE(\"Deň \",DeňKalendára-DATE(YEAR(DeňKalendára),1,0)))","v":"Týždeň 19/Deň 126"},{"$f":"IF(WEEKDAY(DeňKalendára)=HodnotaZačiatkuTýždňa,CONCATENATE(\"Týždeň \",WEEKNUM(DeňKalendára),\"/Deň \",DeňKalendára-DATE(YEAR(DeňKalendára),1,0)),CONCATENATE(\"Deň \",DeňKalendára-DATE(YEAR(DeňKalendára),1,0)))","v":"Deň 127"}]

{"sheet":"MÁJ","index":4,"n_rows":20,"n_cols":9,"rows_kept":20,"merged":[[16,2,17,2],[17,4,19,8]]}
[null,"MÁJ",{"$f":"UPPER(TEXT(ZačiatokTýždňa,\"aaa\"))","v":"NE"},{"$f":"UPPER(TEXT(D3,\"aaa\"))","v":"PO"},"UT","ST","ŠT","PI","SO"]
[null,{"$f":"KalendárnyRok","v":2018}]
[null,null,{"$f":"DniATýždne+DATE(KalendárnyRok,5,1)-WEEKDAY(DATE(KalendárnyRok,5,1),(ZačiatokTýždňa=\"PO\")+1)+1","v":"2018-04-29"},"2018-04-30","2018-05-01","2018-05-02","2018-05-03","2018-05-04","2018-05-05"]
[null,null,{"$f":"IF(DAY(DeňKalendára)=1,CONCATENATE(\"Týždeň \",WEEKNUM(DeňKalendára),\"/Deň \",DeňKalendára-DATE(YEAR(DeňKalendára),1,0)),CONCATENATE(\"Deň \",DeňKalendára-DATE(YEAR(DeňKalendára),1,0)))","v":"Deň 119"},{"$f":"IF(DAY(DeňKalendára)=1,CONCATENATE(\"Týždeň \",WEEKNUM(DeňKalendára),\"/Deň \",DeňKalendára-DATE(YEAR(DeňKalendára),1,0)),CONCATENATE(\"Deň \",DeňKalendára-DATE(YEAR(DeňKalendára),1,0)))","v":"Deň 120"},{"$f":"IF(DAY(DeňKalendára)=1,CONCATENATE(\"Týždeň \",WEEKNUM(DeňKalendára),\"/Deň \",DeňKalendára-DATE(YEAR(DeňKalendára),1,0)),CONCATENATE(\"Deň \",DeňKalendára-DATE(YEAR(DeňKalendára),1,0)))","v":"Týždeň 18/Deň 121"},{"$f":"IF(DAY(DeňKalendára)=1,CONCATENATE(\"Týždeň \",WEEKNUM(DeňKalendára),\"/Deň \",DeňKalendára-DATE(YEAR(DeňKalendára),1,0)),CONCATENATE(\"Deň \",DeňKalendára-DATE(YEAR(DeňKalendára),1,0)))","v":"Deň 122"},{"$f":"IF(DAY(DeňKalendára)=1,CONCATENATE(\"Týždeň \",WEEKNUM(DeňKalendára),\"/Deň \",DeňKalendára-DATE(YEAR(DeňKalendára),1,0)),CONCATENATE(\"Deň \",DeňKalendára-DATE(YEAR(DeňKalendára),1,0)))","v":"Deň 123"},{"$f":"IF(DAY(DeňKalendára)=1,CONCATENATE(\"Týždeň \",WEEKNUM(DeňKalendára),\"/Deň \",DeňKalendára-DATE(YEAR(DeňKalendára),1,0)),CONCATENATE(\"Deň \",DeňKalendára-DATE(YEAR(DeňKalendára),1,0)))","v":"Deň 124"},{"$f":"IF(DAY(DeňKalendára)=1,CONCATENATE(\"Týždeň \",WEEKNUM(DeňKalendára),\"/Deň \",DeňKalendára-DATE(YEAR(DeňKalendára),1,0)),CONCATENATE(\"Deň \",DeňKalendára-DATE(YEAR(DeňKalendára),1,0)))","v":"Deň 125"}]
[]
[null,null,{"$f":"DniATýždne+DATE(KalendárnyRok,5,1)-WEEKDAY(DATE(KalendárnyRok,5,1),(ZačiatokTýždňa=\"PO\")+1)+8","v":"2018-05-06"},"2018-05-07","2018-05-08","2018-05-09","2018-05-10","2018-05-11","2018-05-12"]
[null,null,{"$f":"IF(WEEKDAY(DeňKalendára)=HodnotaZačiatkuTýždňa,CONCATENATE(\"Týždeň \",WEEKNUM(DeňKalendára),\"/Deň \",DeňKalendára-DATE(YEAR(DeňKalendára),1,0)),CONCATENATE(\"Deň \",DeňKalendára-DATE(YEAR(DeňKalendára),1,0)))","v":"Týždeň 19/Deň 126"},{"$f":"IF(WEEKDAY(DeňKalendára)=HodnotaZačiatkuTýždňa,CONCATENATE(\"Týždeň \",WEEKNUM(DeňKalendára),\"/Deň \",DeňKalendára-DATE(YEAR(DeňKalendára),1,0)),CONCATENATE(\"Deň \",DeňKalendára-DATE(YEAR(DeňKalendára),1,0)))","v":"Deň 127"},{"$f":"IF(WEEKDAY(DeňKalendára)=HodnotaZačiatkuTýždňa,CONCATENATE(\"Týždeň \",WEEKNUM(DeňKalendára),\"/Deň \",DeňKalendára-DATE(YEAR(DeňKalendára),1,0)),CONCATENATE(\"Deň \",DeňKalendára-DATE(YEAR(DeňKalendára),1,0)))","v":"Deň 128"},{"$f":"IF(WEEKDAY(DeňKalendára)=HodnotaZačiatkuTýždňa,CONCATENATE(\"Týždeň \",WEEKNUM(DeňKalendára),\"/Deň \",DeňKalendára-DATE(YEAR(DeňKalendára),1,0)),CONCATENATE(\"Deň \",DeňKalendára-DATE(YEAR(DeňKalendára),1,0)))","v":"Deň 129"},{"$f":"IF(WEEKDAY(DeňKalendára)=HodnotaZačiatkuTýždňa,CONCATENATE(\"Týždeň \",WEEKNUM(DeňKalendára),\"/Deň \",DeňKalendára-DATE(YEAR(DeňKalendára),1,0)),CONCATENATE(\"Deň \",DeňKalendára-DATE(YEAR(DeňKalendára),1,0)))","v":"Deň 130"},{"$f":"IF(WEEKDAY(DeňKalendára)=HodnotaZačiatkuTýždňa,CONCATENATE(\"Týždeň \",WEEKNUM(DeňKalendára),\"/Deň \",DeňKalendára-DATE(YEAR(DeňKalendára),1,0)),CONCATENATE(\"Deň \",DeňKalendára-DATE(YEAR(DeňKalendára),1,0)))","v":"Deň 131"},{"$f":"IF(WEEKDAY(DeňKalendára)=HodnotaZačiatkuTýždňa,CONCATENATE(\"Týždeň \",WEEKNUM(DeňKalendára),\"/Deň \",DeňKalendára-DATE(YEAR(DeňKalendára),1,0)),CONCATENATE(\"Deň \",DeňKalendára-DATE(YEAR(DeňKalendára),1,0)))","v":"Deň 132"}]
[]
[null,null,{"$f":"DniATýždne+DATE(KalendárnyRok,5,1)-WEEKDAY(DATE(KalendárnyRok,5,1),(ZačiatokTýždňa=\"PO\")+1)+15","v":"2018-05-13"},"2018-05-14","2018-05-15","2018-05-16","2018-05-17","2018-05-18","2018-05-19"]
[null,null,{"$f":"IF(WEEKDAY(DeňKalendára)=HodnotaZačiatkuTýždňa,CONCATENATE(\"Týždeň \",WEEKNUM(DeňKalendára),\"/Deň \",DeňKalendára-DATE(YEAR(DeňKalendára),1,0)),CONCATENATE(\"Deň \",DeňKalendára-DATE(YEAR(DeňKalendára),1,0)))","v":"Týždeň 20/Deň 133"},{"$f":"IF(WEEKDAY(DeňKalendára)=HodnotaZačiatkuTýždňa,CONCATENATE(\"Týždeň \",WEEKNUM(DeňKalendára),\"/Deň \",DeňKalendára-DATE(YEAR(DeňKalendára),1,0)),CONCATENATE(\"Deň \",DeňKalendára-DATE(YEAR(DeňKalendára),1,0)))","v":"Deň 134"},{"$f":"IF(WEEKDAY(DeňKalendára)=HodnotaZačiatkuTýždňa,CONCATENATE(\"Týždeň \",WEEKNUM(DeňKalendára),\"/Deň \",DeňKalendára-DATE(YEAR(DeňKalendára),1,0)),CONCATENATE(\"Deň \",DeňKalendára-DATE(YEAR(DeňKalendára),1,0)))","v":"Deň 135"},{"$f":"IF(WEEKDAY(DeňKalendára)=HodnotaZačiatkuTýždňa,CONCATENATE(\"Týždeň \",WEEKNUM(DeňKalendára),\"/Deň \",DeňKalendára-DATE(YEAR(DeňKalendára),1,0)),CONCATENATE(\"Deň \",DeňKalendára-DATE(YEAR(DeňKalendára),1,0)))","v":"Deň 136"},{"$f":"IF(WEEKDAY(DeňKalendára)=HodnotaZačiatkuTýždňa,CONCATENATE(\"Týždeň \",WEEKNUM(DeňKalendára),\"/Deň \",DeňKalendára-DATE(YEAR(DeňKalendára),1,0)),CONCATENATE(\"Deň \",DeňKalendára-DATE(YEAR(DeňKalendára),1,0)))","v":"Deň 137"},{"$f":"IF(WEEKDAY(DeňKalendára)=HodnotaZačiatkuTýždňa,CONCATENATE(\"Týždeň \",WEEKNUM(DeňKalendára),\"/Deň \",DeňKalendára-DATE(YEAR(DeňKalendára),1,0)),CONCATENATE(\"Deň \",DeňKalendára-DATE(YEAR(DeňKalendára),1,0)))","v":"Deň 138"},{"$f":"IF(WEEKDAY(DeňKalendára)=HodnotaZačiatkuTýždňa,CONCATENATE(\"Týždeň \",WEEKNUM(DeňKalendára),\"/Deň \",DeňKalendára-DATE(YEAR(DeňKalendára),1,0)),CONCATENATE(\"Deň \",DeňKalendára-DATE(YEAR(DeňKalendára),1,0)))","v":"Deň 139"}]
[]
[null,null,{"$f":"DniATýždne+DATE(KalendárnyRok,5,1)-WEEKDAY(DATE(KalendárnyRok,5,1),(ZačiatokTýždňa=\"PO\")+1)+22","v":"2018-05-20"},"2018-05-21","2018-05-22","2018-05-23","2018-05-24","2018-05-25","2018-05-26"]
[null,null,{"$f":"IF(WEEKDAY(DeňKalendára)=HodnotaZačiatkuTýždňa,CONCATENATE(\"Týždeň \",WEEKNUM(DeňKalendára),\"/Deň \",DeňKalendára-DATE(YEAR(DeňKalendára),1,0)),CONCATENATE(\"Deň \",DeňKalendára-DATE(YEAR(DeňKalendára),1,0)))","v":"Týždeň 21/Deň 140"},{"$f":"IF(WEEKDAY(DeňKalendára)=HodnotaZačiatkuTýždňa,CONCATENATE(\"Týždeň \",WEEKNUM(DeňKalendára),\"/Deň \",DeňKalendára-DATE(YEAR(DeňKalendára),1,0)),CONCATENATE(\"Deň \",DeňKalendára-DATE(YEAR(DeňKalendára),1,0)))","v":"Deň 141"},{"$f":"IF(WEEKDAY(DeňKalendára)=HodnotaZačiatkuTýždňa,CONCATENATE(\"Týždeň \",WEEKNUM(DeňKalendára),\"/Deň \",DeňKalendára-DATE(YEAR(DeňKalendára),1,0)),CONCATENATE(\"Deň \",DeňKalendára-DATE(YEAR(DeňKalendára),1,0)))","v":"Deň 142"},{"$f":"IF(WEEKDAY(DeňKalendára)=HodnotaZačiatkuTýždňa,CONCATENATE(\"Týždeň \",WEEKNUM(DeňKalendára),\"/Deň \",DeňKalendára-DATE(YEAR(DeňKalendára),1,0)),CONCATENATE(\"Deň \",DeňKalendára-DATE(YEAR(DeňKalendára),1,0)))","v":"Deň 143"},{"$f":"IF(WEEKDAY(DeňKalendára)=HodnotaZačiatkuTýždňa,CONCATENATE(\"Týždeň \",WEEKNUM(DeňKalendára),\"/Deň \",DeňKalendára-DATE(YEAR(DeňKalendára),1,0)),CONCATENATE(\"Deň \",DeňKalendára-DATE(YEAR(DeňKalendára),1,0)))","v":"Deň 144"},{"$f":"IF(WEEKDAY(DeňKalendára)=HodnotaZačiatkuTýždňa,CONCATENATE(\"Týždeň \",WEEKNUM(DeňKalendára),\"/Deň \",DeňKalendára-DATE(YEAR(DeňKalendára),1,0)),CONCATENATE(\"Deň \",DeňKalendára-DATE(YEAR(DeňKalendára),1,0)))","v":"Deň 145"},{"$f":"IF(WEEKDAY(DeňKalendára)=HodnotaZačiatkuTýždňa,CONCATENATE(\"Týždeň \",WEEKNUM(DeňKalendára),\"/Deň \",DeňKalendára-DATE(YEAR(DeňKalendára),1,0)),CONCATENATE(\"Deň \",DeňKalendára-DATE(YEAR(DeňKalendára),1,0)))","v":"Deň 146"}]
[]
[null,null,{"$f":"DniATýždne+DATE(KalendárnyRok,5,1)-WEEKDAY(DATE(KalendárnyRok,5,1),(ZačiatokTýždňa=\"PO\")+1)+29","v":"2018-05-27"},"2018-05-28","2018-05-29","2018-05-30","2018-05-31","2018-06-01","2018-06-02"]
[null,null,{"$f":"IF(WEEKDAY(DeňKalendára)=HodnotaZačiatkuTýždňa,CONCATENATE(\"Týždeň \",WEEKNUM(DeňKalendára),\"/Deň \",DeňKalendára-DATE(YEAR(DeňKalendára),1,0)),CONCATENATE(\"Deň \",DeňKalendára-DATE(YEAR(DeňKalendára),1,0)))","v":"Týždeň 22/Deň 147"},{"$f":"IF(WEEKDAY(DeňKalendára)=HodnotaZačiatkuTýždňa,CONCATENATE(\"Týždeň \",WEEKNUM(DeňKalendára),\"/Deň \",DeňKalendára-DATE(YEAR(DeňKalendára),1,0)),CONCATENATE(\"Deň \",DeňKalendára-DATE(YEAR(DeňKalendára),1,0)))","v":"Deň 148"},{"$f":"IF(WEEKDAY(DeňKalendára)=HodnotaZačiatkuTýždňa,CONCATENATE(\"Týždeň \",WEEKNUM(DeňKalendára),\"/Deň \",DeňKalendára-DATE(YEAR(DeňKalendára),1,0)),CONCATENATE(\"Deň \",DeňKalendára-DATE(YEAR(DeňKalendára),1,0)))","v":"Deň 149"},{"$f":"IF(WEEKDAY(DeňKalendára)=HodnotaZačiatkuTýždňa,CONCATENATE(\"Týždeň \",WEEKNUM(DeňKalendára),\"/Deň \",DeňKalendára-DATE(YEAR(DeňKalendára),1,0)),CONCATENATE(\"Deň \",DeňKalendára-DATE(YEAR(DeňKalendára),1,0)))","v":"Deň 150"},{"$f":"IF(WEEKDAY(DeňKalendára)=HodnotaZačiatkuTýždňa,CONCATENATE(\"Týždeň \",WEEKNUM(DeňKalendára),\"/Deň \",DeňKalendára-DATE(YEAR(DeňKalendára),1,0)),CONCATENATE(\"Deň \",DeňKalendára-DATE(YEAR(DeňKalendára),1,0)))","v":"Deň 151"},{"$f":"IF(WEEKDAY(DeňKalendára)=HodnotaZačiatkuTýždňa,CONCATENATE(\"Týždeň \",WEEKNUM(DeňKalendára),\"/Deň \",DeňKalendára-DATE(YEAR(DeňKalendára),1,0)),CONCATENATE(\"Deň \",DeňKalendára-DATE(YEAR(DeňKalendára),1,0)))","v":"Deň 152"},{"$f":"IF(WEEKDAY(DeňKalendára)=HodnotaZačiatkuTýždňa,CONCATENATE(\"Týždeň \",WEEKNUM(DeňKalendára),\"/Deň \",DeňKalendára-DATE(YEAR(DeňKalendára),1,0)),CONCATENATE(\"Deň \",DeňKalendára-DATE(YEAR(DeňKalendára),1,0)))","v":"Deň 153"}]
[{"$nulls":4},"POZNÁMKY"]
[]
[null,null,{"$f":"DniATýždne+DATE(KalendárnyRok,5,1)-WEEKDAY(DATE(KalendárnyRok,5,1),(ZačiatokTýždňa=\"PO\")+1)+36","v":"2018-06-03"},"2018-06-04"]
[null,null,{"$f":"IF(WEEKDAY(DeňKalendára)=HodnotaZačiatkuTýždňa,CONCATENATE(\"Týždeň \",WEEKNUM(DeňKalendára),\"/Deň \",DeňKalendára-DATE(YEAR(DeňKalendára),1,0)),CONCATENATE(\"Deň \",DeňKalendára-DATE(YEAR(DeňKalendára),1,0)))","v":"Týždeň 23/Deň 154"},{"$f":"IF(WEEKDAY(DeňKalendára)=HodnotaZačiatkuTýždňa,CONCATENATE(\"Týždeň \",WEEKNUM(DeňKalendára),\"/Deň \",DeňKalendára-DATE(YEAR(DeňKalendára),1,0)),CONCATENATE(\"Deň \",DeňKalendára-DATE(YEAR(DeňKalendára),1,0)))","v":"Deň 155"}]

{"sheet":"JÚN","index":5,"n_rows":20,"n_cols":9,"rows_kept":20,"merged":[[16,2,17,2],[17,4,19,8]]}
[null,"JÚN",{"$f":"UPPER(TEXT(ZačiatokTýždňa,\"aaa\"))","v":"NE"},{"$f":"UPPER(TEXT(D3,\"aaa\"))","v":"PO"},"UT","ST","ŠT","PI","SO"]
[null,{"$f":"KalendárnyRok","v":2018}]
[null,null,{"$f":"DniATýždne+DATE(KalendárnyRok,6,1)-WEEKDAY(DATE(KalendárnyRok,6,1),(ZačiatokTýždňa=\"PO\")+1)+1","v":"2018-05-27"},"2018-05-28","2018-05-29","2018-05-30","2018-05-31","2018-06-01","2018-06-02"]
[null,null,{"$f":"IF(DAY(DeňKalendára)=1,CONCATENATE(\"Týždeň \",WEEKNUM(DeňKalendára),\"/Deň \",DeňKalendára-DATE(YEAR(DeňKalendára),1,0)),CONCATENATE(\"Deň \",DeňKalendára-DATE(YEAR(DeňKalendára),1,0)))","v":"Deň 147"},{"$f":"IF(DAY(DeňKalendára)=1,CONCATENATE(\"Týždeň \",WEEKNUM(DeňKalendára),\"/Deň \",DeňKalendára-DATE(YEAR(DeňKalendára),1,0)),CONCATENATE(\"Deň \",DeňKalendára-DATE(YEAR(DeňKalendára),1,0)))","v":"Deň 148"},{"$f":"IF(DAY(DeňKalendára)=1,CONCATENATE(\"Týždeň \",WEEKNUM(DeňKalendára),\"/Deň \",DeňKalendára-DATE(YEAR(DeňKalendára),1,0)),CONCATENATE(\"Deň \",DeňKalendára-DATE(YEAR(DeňKalendára),1,0)))","v":"Deň 149"},{"$f":"IF(DAY(DeňKalendára)=1,CONCATENATE(\"Týždeň \",WEEKNUM(DeňKalendára),\"/Deň \",DeňKalendára-DATE(YEAR(DeňKalendára),1,0)),CONCATENATE(\"Deň \",DeňKalendára-DATE(YEAR(DeňKalendára),1,0)))","v":"Deň 150"},{"$f":"IF(DAY(DeňKalendára)=1,CONCATENATE(\"Týždeň \",WEEKNUM(DeňKalendára),\"/Deň \",DeňKalendára-DATE(YEAR(DeňKalendára),1,0)),CONCATENATE(\"Deň \",DeňKalendára-DATE(YEAR(DeňKalendára),1,0)))","v":"Deň 151"},{"$f":"IF(DAY(DeňKalendára)=1,CONCATENATE(\"Týždeň \",WEEKNUM(DeňKalendára),\"/Deň \",DeňKalendára-DATE(YEAR(DeňKalendára),1,0)),CONCATENATE(\"Deň \",DeňKalendára-DATE(YEAR(DeňKalendára),1,0)))","v":"Týždeň 22/Deň 152"},{"$f":"IF(DAY(DeňKalendára)=1,CONCATENATE(\"Týždeň \",WEEKNUM(DeňKalendára),\"/Deň \",DeňKalendára-DATE(YEAR(DeňKalendára),1,0)),CONCATENATE(\"Deň \",DeňKalendára-DATE(YEAR(DeňKalendára),1,0)))","v":"Deň 153"}]
[]
[null,null,{"$f":"DniATýždne+DATE(KalendárnyRok,6,1)-WEEKDAY(DATE(KalendárnyRok,6,1),(ZačiatokTýždňa=\"PO\")+1)+8","v":"2018-06-03"},"2018-06-04","2018-06-05","2018-06-06","2018-06-07","2018-06-08","2018-06-09"]
[null,null,{"$f":"IF(WEEKDAY(DeňKalendára)=HodnotaZačiatkuTýždňa,CONCATENATE(\"Týždeň \",WEEKNUM(DeňKalendára),\"/Deň \",DeňKalendára-DATE(YEAR(DeňKalendára),1,0)),CONCATENATE(\"Deň \",DeňKalendára-DATE(YEAR(DeňKalendára),1,0)))","v":"Týždeň 23/Deň 154"},{"$f":"IF(WEEKDAY(DeňKalendára)=HodnotaZačiatkuTýždňa,CONCATENATE(\"Týždeň \",WEEKNUM(DeňKalendára),\"/Deň \",DeňKalendára-DATE(YEAR(DeňKalendára),1,0)),CONCATENATE(\"Deň \",DeňKalendára-DATE(YEAR(DeňKalendára),1,0)))","v":"Deň 155"},{"$f":"IF(WEEKDAY(DeňKalendára)=HodnotaZačiatkuTýždňa,CONCATENATE(\"Týždeň \",WEEKNUM(DeňKalendára),\"/Deň \",DeňKalendára-DATE(YEAR(DeňKalendára),1,0)),CONCATENATE(\"Deň \",DeňKalendára-DATE(YEAR(DeňKalendára),1,0)))","v":"Deň 156"},{"$f":"IF(WEEKDAY(DeňKalendára)=HodnotaZačiatkuTýždňa,CONCATENATE(\"Týždeň \",WEEKNUM(DeňKalendára),\"/Deň \",DeňKalendára-DATE(YEAR(DeňKalendára),1,0)),CONCATENATE(\"Deň \",DeňKalendára-DATE(YEAR(DeňKalendára),1,0)))","v":"Deň 157"},{"$f":"IF(WEEKDAY(DeňKalendára)=HodnotaZačiatkuTýždňa,CONCATENATE(\"Týždeň \",WEEKNUM(DeňKalendára),\"/Deň \",DeňKalendára-DATE(YEAR(DeňKalendára),1,0)),CONCATENATE(\"Deň \",DeňKalendára-DATE(YEAR(DeňKalendára),1,0)))","v":"Deň 158"},{"$f":"IF(WEEKDAY(DeňKalendára)=HodnotaZačiatkuTýždňa,CONCATENATE(\"Týždeň \",WEEKNUM(DeňKalendára),\"/Deň \",DeňKalendára-DATE(YEAR(DeňKalendára),1,0)),CONCATENATE(\"Deň \",DeňKalendára-DATE(YEAR(DeňKalendára),1,0)))","v":"Deň 159"},{"$f":"IF(WEEKDAY(DeňKalendára)=HodnotaZačiatkuTýždňa,CONCATENATE(\"Týždeň \",WEEKNUM(DeňKalendára),\"/Deň \",DeňKalendára-DATE(YEAR(DeňKalendára),1,0)),CONCATENATE(\"Deň \",DeňKalendára-DATE(YEAR(DeňKalendára),1,0)))","v":"Deň 160"}]
[]
[null,null,{"$f":"DniATýždne+DATE(KalendárnyRok,6,1)-WEEKDAY(DATE(KalendárnyRok,6,1),(ZačiatokTýždňa=\"PO\")+1)+15","v":"2018-06-10"},"2018-06-11","2018-06-12","2018-06-13","2018-06-14","2018-06-15","2018-06-16"]
[null,null,{"$f":"IF(WEEKDAY(DeňKalendára)=HodnotaZačiatkuTýždňa,CONCATENATE(\"Týždeň \",WEEKNUM(DeňKalendára),\"/Deň \",DeňKalendára-DATE(YEAR(DeňKalendára),1,0)),CONCATENATE(\"Deň \",DeňKalendára-DATE(YEAR(DeňKalendára),1,0)))","v":"Týždeň 24/Deň 161"},{"$f":"IF(WEEKDAY(DeňKalendára)=HodnotaZačiatkuTýždňa,CONCATENATE(\"Týždeň \",WEEKNUM(DeňKalendára),\"/Deň \",DeňKalendára-DATE(YEAR(DeňKalendára),1,0)),CONCATENATE(\"Deň \",DeňKalendára-DATE(YEAR(DeňKalendára),1,0)))","v":"Deň 162"},{"$f":"IF(WEEKDAY(DeňKalendára)=HodnotaZačiatkuTýždňa,CONCATENATE(\"Týždeň \",WEEKNUM(DeňKalendára),\"/Deň \",DeňKalendára-DATE(YEAR(DeňKalendára),1,0)),CONCATENATE(\"Deň \",DeňKalendára-DATE(YEAR(DeňKalendára),1,0)))","v":"Deň 163"},{"$f":"IF(WEEKDAY(DeňKalendára)=HodnotaZačiatkuTýždňa,CONCATENATE(\"Týždeň \",WEEKNUM(DeňKalendára),\"/Deň \",DeňKalendára-DATE(YEAR(DeňKalendára),1,0)),CONCATENATE(\"Deň \",DeňKalendára-DATE(YEAR(DeňKalendára),1,0)))","v":"Deň 164"},{"$f":"IF(WEEKDAY(DeňKalendára)=HodnotaZačiatkuTýždňa,CONCATENATE(\"Týždeň \",WEEKNUM(DeňKalendára),\"/Deň \",DeňKalendára-DATE(YEAR(DeňKalendára),1,0)),CONCATENATE(\"Deň \",DeňKalendára-DATE(YEAR(DeňKalendára),1,0)))","v":"Deň 165"},{"$f":"IF(WEEKDAY(DeňKalendára)=HodnotaZačiatkuTýždňa,CONCATENATE(\"Týždeň \",WEEKNUM(DeňKalendára),\"/Deň \",DeňKalendára-DATE(YEAR(DeňKalendára),1,0)),CONCATENATE(\"Deň \",DeňKalendára-DATE(YEAR(DeňKalendára),1,0)))","v":"Deň 166"},{"$f":"IF(WEEKDAY(DeňKalendára)=HodnotaZačiatkuTýždňa,CONCATENATE(\"Týždeň \",WEEKNUM(DeňKalendára),\"/Deň \",DeňKalendára-DATE(YEAR(DeňKalendára),1,0)),CONCATENATE(\"Deň \",DeňKalendára-DATE(YEAR(DeňKalendára),1,0)))","v":"Deň 167"}]
[]
[null,null,{"$f":"DniATýždne+DATE(KalendárnyRok,6,1)-WEEKDAY(DATE(KalendárnyRok,6,1),(ZačiatokTýždňa=\"PO\")+1)+22","v":"2018-06-17"},"2018-06-18","2018-06-19","2018-06-20","2018-06-21","2018-06-22","2018-06-23"]
[null,null,{"$f":"IF(WEEKDAY(DeňKalendára)=HodnotaZačiatkuTýždňa,CONCATENATE(\"Týždeň \",WEEKNUM(DeňKalendára),\"/Deň \",DeňKalendára-DATE(YEAR(DeňKalendára),1,0)),CONCATENATE(\"Deň \",DeňKalendára-DATE(YEAR(DeňKalendára),1,0)))","v":"Týždeň 25/Deň 168"},{"$f":"IF(WEEKDAY(DeňKalendára)=HodnotaZačiatkuTýždňa,CONCATENATE(\"Týždeň \",WEEKNUM(DeňKalendára),\"/Deň \",DeňKalendára-DATE(YEAR(DeňKalendára),1,0)),CONCATENATE(\"Deň \",DeňKalendára-DATE(YEAR(DeňKalendára),1,0)))","v":"Deň 169"},{"$f":"IF(WEEKDAY(DeňKalendára)=HodnotaZačiatkuTýždňa,CONCATENATE(\"Týždeň \",WEEKNUM(DeňKalendára),\"/Deň \",DeňKalendára-DATE(YEAR(DeňKalendára),1,0)),CONCATENATE(\"Deň \",DeňKalendára-DATE(YEAR(DeňKalendára),1,0)))","v":"Deň 170"},{"$f":"IF(WEEKDAY(DeňKalendára)=HodnotaZačiatkuTýždňa,CONCATENATE(\"Týždeň \",WEEKNUM(DeňKalendára),\"/Deň \",DeňKalendára-DATE(YEAR(DeňKalendára),1,0)),CONCATENATE(\"Deň \",DeňKalendára-DATE(YEAR(DeňKalendára),1,0)))","v":"Deň 171"},{"$f":"IF(WEEKDAY(DeňKalendára)=HodnotaZačiatkuTýždňa,CONCATENATE(\"Týždeň \",WEEKNUM(DeňKalendára),\"/Deň \",DeňKalendára-DATE(YEAR(DeňKalendára),1,0)),CONCATENATE(\"Deň \",DeňKalendára-DATE(YEAR(DeňKalendára),1,0)))","v":"Deň 172"},{"$f":"IF(WEEKDAY(DeňKalendára)=HodnotaZačiatkuTýždňa,CONCATENATE(\"Týždeň \",WEEKNUM(DeňKalendára),\"/Deň \",DeňKalendára-DATE(YEAR(DeňKalendára),1,0)),CONCATENATE(\"Deň \",DeňKalendára-DATE(YEAR(DeňKalendára),1,0)))","v":"Deň 173"},{"$f":"IF(WEEKDAY(DeňKalendára)=HodnotaZačiatkuTýždňa,CONCATENATE(\"Týždeň \",WEEKNUM(DeňKalendára),\"/Deň \",DeňKalendára-DATE(YEAR(DeňKalendára),1,0)),CONCATENATE(\"Deň \",DeňKalendára-DATE(YEAR(DeňKalendára),1,0)))","v":"Deň 174"}]
[]
[null,null,{"$f":"DniATýždne+DATE(KalendárnyRok,6,1)-WEEKDAY(DATE(KalendárnyRok,6,1),(ZačiatokTýždňa=\"PO\")+1)+29","v":"2018-06-24"},"2018-06-25","2018-06-26","2018-06-27","2018-06-28","2018-06-29","2018-06-30"]
[null,null,{"$f":"IF(WEEKDAY(DeňKalendára)=HodnotaZačiatkuTýždňa,CONCATENATE(\"Týždeň \",WEEKNUM(DeňKalendára),\"/Deň \",DeňKalendára-DATE(YEAR(DeňKalendára),1,0)),CONCATENATE(\"Deň \",DeňKalendára-DATE(YEAR(DeňKalendára),1,0)))","v":"Týždeň 26/Deň 175"},{"$f":"IF(WEEKDAY(DeňKalendára)=HodnotaZačiatkuTýždňa,CONCATENATE(\"Týždeň \",WEEKNUM(DeňKalendára),\"/Deň \",DeňKalendára-DATE(YEAR(DeňKalendára),1,0)),CONCATENATE(\"Deň \",DeňKalendára-DATE(YEAR(DeňKalendára),1,0)))","v":"Deň 176"},{"$f":"IF(WEEKDAY(DeňKalendára)=HodnotaZačiatkuTýždňa,CONCATENATE(\"Týždeň \",WEEKNUM(DeňKalendára),\"/Deň \",DeňKalendára-DATE(YEAR(DeňKalendára),1,0)),CONCATENATE(\"Deň \",DeňKalendára-DATE(YEAR(DeňKalendára),1,0)))","v":"Deň 177"},{"$f":"IF(WEEKDAY(DeňKalendára)=HodnotaZačiatkuTýždňa,CONCATENATE(\"Týždeň \",WEEKNUM(DeňKalendára),\"/Deň \",DeňKalendára-DATE(YEAR(DeňKalendára),1,0)),CONCATENATE(\"Deň \",DeňKalendára-DATE(YEAR(DeňKalendára),1,0)))","v":"Deň 178"},{"$f":"IF(WEEKDAY(DeňKalendára)=HodnotaZačiatkuTýždňa,CONCATENATE(\"Týždeň \",WEEKNUM(DeňKalendára),\"/Deň \",DeňKalendára-DATE(YEAR(DeňKalendára),1,0)),CONCATENATE(\"Deň \",DeňKalendára-DATE(YEAR(DeňKalendára),1,0)))","v":"Deň 179"},{"$f":"IF(WEEKDAY(DeňKalendára)=HodnotaZačiatkuTýždňa,CONCATENATE(\"Týždeň \",WEEKNUM(DeňKalendára),\"/Deň \",DeňKalendára-DATE(YEAR(DeňKalendára),1,0)),CONCATENATE(\"Deň \",DeňKalendára-DATE(YEAR(DeňKalendára),1,0)))","v":"Deň 180"},{"$f":"IF(WEEKDAY(DeňKalendára)=HodnotaZačiatkuTýždňa,CONCATENATE(\"Týždeň \",WEEKNUM(DeňKalendára),\"/Deň \",DeňKalendára-DATE(YEAR(DeňKalendára),1,0)),CONCATENATE(\"Deň \",DeňKalendára-DATE(YEAR(DeňKalendára),1,0)))","v":"Deň 181"}]
[{"$nulls":4},"POZNÁMKY"]
[]
[null,null,{"$f":"DniATýždne+DATE(KalendárnyRok,6,1)-WEEKDAY(DATE(KalendárnyRok,6,1),(ZačiatokTýždňa=\"PO\")+1)+36","v":"2018-07-01"},"2018-07-02"]
[null,null,{"$f":"IF(WEEKDAY(DeňKalendára)=HodnotaZačiatkuTýždňa,CONCATENATE(\"Týždeň \",WEEKNUM(DeňKalendára),\"/Deň \",DeňKalendára-DATE(YEAR(DeňKalendára),1,0)),CONCATENATE(\"Deň \",DeňKalendára-DATE(YEAR(DeňKalendára),1,0)))","v":"Týždeň 27/Deň 182"},{"$f":"IF(WEEKDAY(DeňKalendára)=HodnotaZačiatkuTýždňa,CONCATENATE(\"Týždeň \",WEEKNUM(DeňKalendára),\"/Deň \",DeňKalendára-DATE(YEAR(DeňKalendára),1,0)),CONCATENATE(\"Deň \",DeňKalendára-DATE(YEAR(DeňKalendára),1,0)))","v":"Deň 183"}]

{"sheet":"JÚL","index":6,"n_rows":20,"n_cols":9,"rows_kept":20,"merged":[[16,2,17,2],[17,4,19,8]]}
[null,"JÚL",{"$f":"UPPER(TEXT(ZačiatokTýždňa,\"aaa\"))","v":"NE"},{"$f":"UPPER(TEXT(D3,\"aaa\"))","v":"PO"},"UT","ST","ŠT","PI","SO"]
[null,{"$f":"KalendárnyRok","v":2018}]
[null,null,{"$f":"DniATýždne+DATE(KalendárnyRok,7,1)-WEEKDAY(DATE(KalendárnyRok,7,1),(ZačiatokTýždňa=\"PO\")+1)+1","v":"2018-07-01"},"2018-07-02","2018-07-03","2018-07-04","2018-07-05","2018-07-06","2018-07-07"]
[null,null,{"$f":"IF(DAY(DeňKalendára)=1,CONCATENATE(\"Týždeň \",WEEKNUM(DeňKalendára),\"/Deň \",DeňKalendára-DATE(YEAR(DeňKalendára),1,0)),CONCATENATE(\"Deň \",DeňKalendára-DATE(YEAR(DeňKalendára),1,0)))","v":"Týždeň 27/Deň 182"},{"$f":"IF(DAY(DeňKalendára)=1,CONCATENATE(\"Týždeň \",WEEKNUM(DeňKalendára),\"/Deň \",DeňKalendára-DATE(YEAR(DeňKalendára),1,0)),CONCATENATE(\"Deň \",DeňKalendára-DATE(YEAR(DeňKalendára),1,0)))","v":"Deň 183"},{"$f":"IF(DAY(DeňKalendára)=1,CONCATENATE(\"Týždeň \",WEEKNUM(DeňKalendára),\"/Deň \",DeňKalendára-DATE(YEAR(DeňKalendára),1,0)),CONCATENATE(\"Deň \",DeňKalendára-DATE(YEAR(DeňKalendára),1,0)))","v":"Deň 184"},{"$f":"IF(DAY(DeňKalendára)=1,CONCATENATE(\"Týždeň \",WEEKNUM(DeňKalendára),\"/Deň \",DeňKalendára-DATE(YEAR(DeňKalendára),1,0)),CONCATENATE(\"Deň \",DeňKalendára-DATE(YEAR(DeňKalendára),1,0)))","v":"Deň 185"},{"$f":"IF(DAY(DeňKalendára)=1,CONCATENATE(\"Týždeň \",WEEKNUM(DeňKalendára),\"/Deň \",DeňKalendára-DATE(YEAR(DeňKalendára),1,0)),CONCATENATE(\"Deň \",DeňKalendára-DATE(YEAR(DeňKalendára),1,0)))","v":"Deň 186"},{"$f":"IF(DAY(DeňKalendára)=1,CONCATENATE(\"Týždeň \",WEEKNUM(DeňKalendára),\"/Deň \",DeňKalendára-DATE(YEAR(DeňKalendára),1,0)),CONCATENATE(\"Deň \",DeňKalendára-DATE(YEAR(DeňKalendára),1,0)))","v":"Deň 187"},{"$f":"IF(DAY(DeňKalendára)=1,CONCATENATE(\"Týždeň \",WEEKNUM(DeňKalendára),\"/Deň \",DeňKalendára-DATE(YEAR(DeňKalendára),1,0)),CONCATENATE(\"Deň \",DeňKalendára-DATE(YEAR(DeňKalendára),1,0)))","v":"Deň 188"}]
[]
[null,null,{"$f":"DniATýždne+DATE(KalendárnyRok,7,1)-WEEKDAY(DATE(KalendárnyRok,7,1),(ZačiatokTýždňa=\"PO\")+1)+8","v":"2018-07-08"},"2018-07-09","2018-07-10","2018-07-11","2018-07-12","2018-07-13","2018-07-14"]
[null,null,{"$f":"IF(WEEKDAY(DeňKalendára)=HodnotaZačiatkuTýždňa,CONCATENATE(\"Týždeň \",WEEKNUM(DeňKalendára),\"/Deň \",DeňKalendára-DATE(YEAR(DeňKalendára),1,0)),CONCATENATE(\"Deň \",DeňKalendára-DATE(YEAR(DeňKalendára),1,0)))","v":"Týždeň 28/Deň 189"},{"$f":"IF(WEEKDAY(DeňKalendára)=HodnotaZačiatkuTýždňa,CONCATENATE(\"Týždeň \",WEEKNUM(DeňKalendára),\"/Deň \",DeňKalendára-DATE(YEAR(DeňKalendára),1,0)),CONCATENATE(\"Deň \",DeňKalendára-DATE(YEAR(DeňKalendára),1,0)))","v":"Deň 190"},{"$f":"IF(WEEKDAY(DeňKalendára)=HodnotaZačiatkuTýždňa,CONCATENATE(\"Týždeň \",WEEKNUM(DeňKalendára),\"/Deň \",DeňKalendára-DATE(YEAR(DeňKalendára),1,0)),CONCATENATE(\"Deň \",DeňKalendára-DATE(YEAR(DeňKalendára),1,0)))","v":"Deň 191"},{"$f":"IF(WEEKDAY(DeňKalendára)=HodnotaZačiatkuTýždňa,CONCATENATE(\"Týždeň \",WEEKNUM(DeňKalendára),\"/Deň \",DeňKalendára-DATE(YEAR(DeňKalendára),1,0)),CONCATENATE(\"Deň \",DeňKalendára-DATE(YEAR(DeňKalendára),1,0)))","v":"Deň 192"},{"$f":"IF(WEEKDAY(DeňKalendára)=HodnotaZačiatkuTýždňa,CONCATENATE(\"Týždeň \",WEEKNUM(DeňKalendára),\"/Deň \",DeňKalendára-DATE(YEAR(DeňKalendára),1,0)),CONCATENATE(\"Deň \",DeňKalendára-DATE(YEAR(DeňKalendára),1,0)))","v":"Deň 193"},{"$f":"IF(WEEKDAY(DeňKalendára)=HodnotaZačiatkuTýždňa,CONCATENATE(\"Týždeň \",WEEKNUM(DeňKalendára),\"/Deň \",DeňKalendára-DATE(YEAR(DeňKalendára),1,0)),CONCATENATE(\"Deň \",DeňKalendára-DATE(YEAR(DeňKalendára),1,0)))","v":"Deň 194"},{"$f":"IF(WEEKDAY(DeňKalendára)=HodnotaZačiatkuTýždňa,CONCATENATE(\"Týždeň \",WEEKNUM(DeňKalendára),\"/Deň \",DeňKalendára-DATE(YEAR(DeňKalendára),1,0)),CONCATENATE(\"Deň \",DeňKalendára-DATE(YEAR(DeňKalendára),1,0)))","v":"Deň 195"}]
[]
[null,null,{"$f":"DniATýždne+DATE(KalendárnyRok,7,1)-WEEKDAY(DATE(KalendárnyRok,7,1),(ZačiatokTýždňa=\"PO\")+1)+15","v":"2018-07-15"},"2018-07-16","2018-07-17","2018-07-18","2018-07-19","2018-07-20","2018-07-21"]
[null,null,{"$f":"IF(WEEKDAY(DeňKalendára)=HodnotaZačiatkuTýždňa,CONCATENATE(\"Týždeň \",WEEKNUM(DeňKalendára),\"/Deň \",DeňKalendára-DATE(YEAR(DeňKalendára),1,0)),CONCATENATE(\"Deň \",DeňKalendára-DATE(YEAR(DeňKalendára),1,0)))","v":"Týždeň 29/Deň 196"},{"$f":"IF(WEEKDAY(DeňKalendára)=HodnotaZačiatkuTýždňa,CONCATENATE(\"Týždeň \",WEEKNUM(DeňKalendára),\"/Deň \",DeňKalendára-DATE(YEAR(DeňKalendára),1,0)),CONCATENATE(\"Deň \",DeňKalendára-DATE(YEAR(DeňKalendára),1,0)))","v":"Deň 197"},{"$f":"IF(WEEKDAY(DeňKalendára)=HodnotaZačiatkuTýždňa,CONCATENATE(\"Týždeň \",WEEKNUM(DeňKalendára),\"/Deň \",DeňKalendára-DATE(YEAR(DeňKalendára),1,0)),CONCATENATE(\"Deň \",DeňKalendára-DATE(YEAR(DeňKalendára),1,0)))","v":"Deň 198"},{"$f":"IF(WEEKDAY(DeňKalendára)=HodnotaZačiatkuTýždňa,CONCATENATE(\"Týždeň \",WEEKNUM(DeňKalendára),\"/Deň \",DeňKalendára-DATE(YEAR(DeňKalendára),1,0)),CONCATENATE(\"Deň \",DeňKalendára-DATE(YEAR(DeňKalendára),1,0)))","v":"Deň 199"},{"$f":"IF(WEEKDAY(DeňKalendára)=HodnotaZačiatkuTýždňa,CONCATENATE(\"Týždeň \",WEEKNUM(DeňKalendára),\"/Deň \",DeňKalendára-DATE(YEAR(DeňKalendára),1,0)),CONCATENATE(\"Deň \",DeňKalendára-DATE(YEAR(DeňKalendára),1,0)))","v":"Deň 200"},{"$f":"IF(WEEKDAY(DeňKalendára)=HodnotaZačiatkuTýždňa,CONCATENATE(\"Týždeň \",WEEKNUM(DeňKalendára),\"/Deň \",DeňKalendára-DATE(YEAR(DeňKalendára),1,0)),CONCATENATE(\"Deň \",DeňKalendára-DATE(YEAR(DeňKalendára),1,0)))","v":"Deň 201"},{"$f":"IF(WEEKDAY(DeňKalendára)=HodnotaZačiatkuTýždňa,CONCATENATE(\"Týždeň \",WEEKNUM(DeňKalendára),\"/Deň \",DeňKalendára-DATE(YEAR(DeňKalendára),1,0)),CONCATENATE(\"Deň \",DeňKalendára-DATE(YEAR(DeňKalendára),1,0)))","v":"Deň 202"}]
[]
[null,null,{"$f":"DniATýždne+DATE(KalendárnyRok,7,1)-WEEKDAY(DATE(KalendárnyRok,7,1),(ZačiatokTýždňa=\"PO\")+1)+22","v":"2018-07-22"},"2018-07-23","2018-07-24","2018-07-25","2018-07-26","2018-07-27","2018-07-28"]
[null,null,{"$f":"IF(WEEKDAY(DeňKalendára)=HodnotaZačiatkuTýždňa,CONCATENATE(\"Týždeň \",WEEKNUM(DeňKalendára),\"/Deň \",DeňKalendára-DATE(YEAR(DeňKalendára),1,0)),CONCATENATE(\"Deň \",DeňKalendára-DATE(YEAR(DeňKalendára),1,0)))","v":"Týždeň 30/Deň 203"},{"$f":"IF(WEEKDAY(DeňKalendára)=HodnotaZačiatkuTýždňa,CONCATENATE(\"Týždeň \",WEEKNUM(DeňKalendára),\"/Deň \",DeňKalendára-DATE(YEAR(DeňKalendára),1,0)),CONCATENATE(\"Deň \",DeňKalendára-DATE(YEAR(DeňKalendára),1,0)))","v":"Deň 204"},{"$f":"IF(WEEKDAY(DeňKalendára)=HodnotaZačiatkuTýždňa,CONCATENATE(\"Týždeň \",WEEKNUM(DeňKalendára),\"/Deň \",DeňKalendára-DATE(YEAR(DeňKalendára),1,0)),CONCATENATE(\"Deň \",DeňKalendára-DATE(YEAR(DeňKalendára),1,0)))","v":"Deň 205"},{"$f":"IF(WEEKDAY(DeňKalendára)=HodnotaZačiatkuTýždňa,CONCATENATE(\"Týždeň \",WEEKNUM(DeňKalendára),\"/Deň \",DeňKalendára-DATE(YEAR(DeňKalendára),1,0)),CONCATENATE(\"Deň \",DeňKalendára-DATE(YEAR(DeňKalendára),1,0)))","v":"Deň 206"},{"$f":"IF(WEEKDAY(DeňKalendára)=HodnotaZačiatkuTýždňa,CONCATENATE(\"Týždeň \",WEEKNUM(DeňKalendára),\"/Deň \",DeňKalendára-DATE(YEAR(DeňKalendára),1,0)),CONCATENATE(\"Deň \",DeňKalendára-DATE(YEAR(DeňKalendára),1,0)))","v":"Deň 207"},{"$f":"IF(WEEKDAY(DeňKalendára)=HodnotaZačiatkuTýždňa,CONCATENATE(\"Týždeň \",WEEKNUM(DeňKalendára),\"/Deň \",DeňKalendára-DATE(YEAR(DeňKalendára),1,0)),CONCATENATE(\"Deň \",DeňKalendára-DATE(YEAR(DeňKalendára),1,0)))","v":"Deň 208"},{"$f":"IF(WEEKDAY(DeňKalendára)=HodnotaZačiatkuTýždňa,CONCATENATE(\"Týždeň \",WEEKNUM(DeňKalendára),\"/Deň \",DeňKalendára-DATE(YEAR(DeňKalendára),1,0)),CONCATENATE(\"Deň \",DeňKalendára-DATE(YEAR(DeňKalendára),1,0)))","v":"Deň 209"}]
[]
[null,null,{"$f":"DniATýždne+DATE(KalendárnyRok,7,1)-WEEKDAY(DATE(KalendárnyRok,7,1),(ZačiatokTýždňa=\"PO\")+1)+29","v":"2018-07-29"},"2018-07-30","2018-07-31","2018-08-01","2018-08-02","2018-08-03","2018-08-04"]
[null,null,{"$f":"IF(WEEKDAY(DeňKalendára)=HodnotaZačiatkuTýždňa,CONCATENATE(\"Týždeň \",WEEKNUM(DeňKalendára),\"/Deň \",DeňKalendára-DATE(YEAR(DeňKalendára),1,0)),CONCATENATE(\"Deň \",DeňKalendára-DATE(YEAR(DeňKalendára),1,0)))","v":"Týždeň 31/Deň 210"},{"$f":"IF(WEEKDAY(DeňKalendára)=HodnotaZačiatkuTýždňa,CONCATENATE(\"Týždeň \",WEEKNUM(DeňKalendára),\"/Deň \",DeňKalendára-DATE(YEAR(DeňKalendára),1,0)),CONCATENATE(\"Deň \",DeňKalendára-DATE(YEAR(DeňKalendára),1,0)))","v":"Deň 211"},{"$f":"IF(WEEKDAY(DeňKalendára)=HodnotaZačiatkuTýždňa,CONCATENATE(\"Týždeň \",WEEKNUM(DeňKalendára),\"/Deň \",DeňKalendára-DATE(YEAR(DeňKalendára),1,0)),CONCATENATE(\"Deň \",DeňKalendára-DATE(YEAR(DeňKalendára),1,0)))","v":"Deň 212"},{"$f":"IF(WEEKDAY(DeňKalendára)=HodnotaZačiatkuTýždňa,CONCATENATE(\"Týždeň \",WEEKNUM(DeňKalendára),\"/Deň \",DeňKalendára-DATE(YEAR(DeňKalendára),1,0)),CONCATENATE(\"Deň \",DeňKalendára-DATE(YEAR(DeňKalendára),1,0)))","v":"Deň 213"},{"$f":"IF(WEEKDAY(DeňKalendára)=HodnotaZačiatkuTýždňa,CONCATENATE(\"Týždeň \",WEEKNUM(DeňKalendára),\"/Deň \",DeňKalendára-DATE(YEAR(DeňKalendára),1,0)),CONCATENATE(\"Deň \",DeňKalendára-DATE(YEAR(DeňKalendára),1,0)))","v":"Deň 214"},{"$f":"IF(WEEKDAY(DeňKalendára)=HodnotaZačiatkuTýždňa,CONCATENATE(\"Týždeň \",WEEKNUM(DeňKalendára),\"/Deň \",DeňKalendára-DATE(YEAR(DeňKalendára),1,0)),CONCATENATE(\"Deň \",DeňKalendára-DATE(YEAR(DeňKalendára),1,0)))","v":"Deň 215"},{"$f":"IF(WEEKDAY(DeňKalendára)=HodnotaZačiatkuTýždňa,CONCATENATE(\"Týždeň \",WEEKNUM(DeňKalendára),\"/Deň \",DeňKalendára-DATE(YEAR(DeňKalendára),1,0)),CONCATENATE(\"Deň \",DeňKalendára-DATE(YEAR(DeňKalendára),1,0)))","v":"Deň 216"}]
[{"$nulls":4},"POZNÁMKY"]
[]
[null,null,{"$f":"DniATýždne+DATE(KalendárnyRok,7,1)-WEEKDAY(DATE(KalendárnyRok,7,1),(ZačiatokTýždňa=\"PO\")+1)+36","v":"2018-08-05"},"2018-08-06"]
[null,null,{"$f":"IF(WEEKDAY(DeňKalendára)=HodnotaZačiatkuTýždňa,CONCATENATE(\"Týždeň \",WEEKNUM(DeňKalendára),\"/Deň \",DeňKalendára-DATE(YEAR(DeňKalendára),1,0)),CONCATENATE(\"Deň \",DeňKalendára-DATE(YEAR(DeňKalendára),1,0)))","v":"Týždeň 32/Deň 217"},{"$f":"IF(WEEKDAY(DeňKalendára)=HodnotaZačiatkuTýždňa,CONCATENATE(\"Týždeň \",WEEKNUM(DeňKalendára),\"/Deň \",DeňKalendára-DATE(YEAR(DeňKalendára),1,0)),CONCATENATE(\"Deň \",DeňKalendára-DATE(YEAR(DeňKalendára),1,0)))","v":"Deň 218"}]

{"sheet":"AUG","index":7,"n_rows":20,"n_cols":9,"rows_kept":20,"merged":[[16,2,17,2],[17,4,19,8]]}
[null,"AUG",{"$f":"UPPER(TEXT(ZačiatokTýždňa,\"aaa\"))","v":"NE"},{"$f":"UPPER(TEXT(D3,\"aaa\"))","v":"PO"},"UT","ST","ŠT","PI","SO"]
[null,{"$f":"KalendárnyRok","v":2018}]
[null,null,{"$f":"DniATýždne+DATE(KalendárnyRok,8,1)-WEEKDAY(DATE(KalendárnyRok,8,1),(ZačiatokTýždňa=\"PO\")+1)+1","v":"2018-07-29"},"2018-07-30","2018-07-31","2018-08-01","2018-08-02","2018-08-03","2018-08-04"]
[null,null,{"$f":"IF(DAY(DeňKalendára)=1,CONCATENATE(\"Týždeň \",WEEKNUM(DeňKalendára),\"/Deň \",DeňKalendára-DATE(YEAR(DeňKalendára),1,0)),CONCATENATE(\"Deň \",DeňKalendára-DATE(YEAR(DeňKalendára),1,0)))","v":"Deň 210"},{"$f":"IF(DAY(DeňKalendára)=1,CONCATENATE(\"Týždeň \",WEEKNUM(DeňKalendára),\"/Deň \",DeňKalendára-DATE(YEAR(DeňKalendára),1,0)),CONCATENATE(\"Deň \",DeňKalendára-DATE(YEAR(DeňKalendára),1,0)))","v":"Deň 211"},{"$f":"IF(DAY(DeňKalendára)=1,CONCATENATE(\"Týždeň \",WEEKNUM(DeňKalendára),\"/Deň \",DeňKalendára-DATE(YEAR(DeňKalendára),1,0)),CONCATENATE(\"Deň \",DeňKalendára-DATE(YEAR(DeňKalendára),1,0)))","v":"Deň 212"},{"$f":"IF(DAY(DeňKalendára)=1,CONCATENATE(\"Týždeň \",WEEKNUM(DeňKalendára),\"/Deň \",DeňKalendára-DATE(YEAR(DeňKalendára),1,0)),CONCATENATE(\"Deň \",DeňKalendára-DATE(YEAR(DeňKalendára),1,0)))","v":"Týždeň 31/Deň 213"},{"$f":"IF(DAY(DeňKalendára)=1,CONCATENATE(\"Týždeň \",WEEKNUM(DeňKalendára),\"/Deň \",DeňKalendára-DATE(YEAR(DeňKalendára),1,0)),CONCATENATE(\"Deň \",DeňKalendára-DATE(YEAR(DeňKalendára),1,0)))","v":"Deň 214"},{"$f":"IF(DAY(DeňKalendára)=1,CONCATENATE(\"Týždeň \",WEEKNUM(DeňKalendára),\"/Deň \",DeňKalendára-DATE(YEAR(DeňKalendára),1,0)),CONCATENATE(\"Deň \",DeňKalendára-DATE(YEAR(DeňKalendára),1,0)))","v":"Deň 215"},{"$f":"IF(DAY(DeňKalendára)=1,CONCATENATE(\"Týždeň \",WEEKNUM(DeňKalendára),\"/Deň \",DeňKalendára-DATE(YEAR(DeňKalendára),1,0)),CONCATENATE(\"Deň \",DeňKalendára-DATE(YEAR(DeňKalendára),1,0)))","v":"Deň 216"}]
[]
[null,null,{"$f":"DniATýždne+DATE(KalendárnyRok,8,1)-WEEKDAY(DATE(KalendárnyRok,8,1),(ZačiatokTýždňa=\"PO\")+1)+8","v":"2018-08-05"},"2018-08-06","2018-08-07","2018-08-08","2018-08-09","2018-08-10","2018-08-11"]
[null,null,{"$f":"IF(WEEKDAY(DeňKalendára)=HodnotaZačiatkuTýždňa,CONCATENATE(\"Týždeň \",WEEKNUM(DeňKalendára),\"/Deň \",DeňKalendára-DATE(YEAR(DeňKalendára),1,0)),CONCATENATE(\"Deň \",DeňKalendára-DATE(YEAR(DeňKalendára),1,0)))","v":"Týždeň 32/Deň 217"},{"$f":"IF(WEEKDAY(DeňKalendára)=HodnotaZačiatkuTýždňa,CONCATENATE(\"Týždeň \",WEEKNUM(DeňKalendára),\"/Deň \",DeňKalendára-DATE(YEAR(DeňKalendára),1,0)),CONCATENATE(\"Deň \",DeňKalendára-DATE(YEAR(DeňKalendára),1,0)))","v":"Deň 218"},{"$f":"IF(WEEKDAY(DeňKalendára)=HodnotaZačiatkuTýždňa,CONCATENATE(\"Týždeň \",WEEKNUM(DeňKalendára),\"/Deň \",DeňKalendára-DATE(YEAR(DeňKalendára),1,0)),CONCATENATE(\"Deň \",DeňKalendára-DATE(YEAR(DeňKalendára),1,0)))","v":"Deň 219"},{"$f":"IF(WEEKDAY(DeňKalendára)=HodnotaZačiatkuTýždňa,CONCATENATE(\"Týždeň \",WEEKNUM(DeňKalendára),\"/Deň \",DeňKalendára-DATE(YEAR(DeňKalendára),1,0)),CONCATENATE(\"Deň \",DeňKalendára-DATE(YEAR(DeňKalendára),1,0)))","v":"Deň 220"},{"$f":"IF(WEEKDAY(DeňKalendára)=HodnotaZačiatkuTýždňa,CONCATENATE(\"Týždeň \",WEEKNUM(DeňKalendára),\"/Deň \",DeňKalendára-DATE(YEAR(DeňKalendára),1,0)),CONCATENATE(\"Deň \",DeňKalendára-DATE(YEAR(DeňKalendára),1,0)))","v":"Deň 221"},{"$f":"IF(WEEKDAY(DeňKalendára)=HodnotaZačiatkuTýždňa,CONCATENATE(\"Týždeň \",WEEKNUM(DeňKalendára),\"/Deň \",DeňKalendára-DATE(YEAR(DeňKalendára),1,0)),CONCATENATE(\"Deň \",DeňKalendára-DATE(YEAR(DeňKalendára),1,0)))","v":"Deň 222"},{"$f":"IF(WEEKDAY(DeňKalendára)=HodnotaZačiatkuTýždňa,CONCATENATE(\"Týždeň \",WEEKNUM(DeňKalendára),\"/Deň \",DeňKalendára-DATE(YEAR(DeňKalendára),1,0)),CONCATENATE(\"Deň \",DeňKalendára-DATE(YEAR(DeňKalendára),1,0)))","v":"Deň 223"}]
[]
[null,null,{"$f":"DniATýždne+DATE(KalendárnyRok,8,1)-WEEKDAY(DATE(KalendárnyRok,8,1),(ZačiatokTýždňa=\"PO\")+1)+15","v":"2018-08-12"},"2018-08-13","2018-08-14","2018-08-15","2018-08-16","2018-08-17","2018-08-18"]
[null,null,{"$f":"IF(WEEKDAY(DeňKalendára)=HodnotaZačiatkuTýždňa,CONCATENATE(\"Týždeň \",WEEKNUM(DeňKalendára),\"/Deň \",DeňKalendára-DATE(YEAR(DeňKalendára),1,0)),CONCATENATE(\"Deň \",DeňKalendára-DATE(YEAR(DeňKalendára),1,0)))","v":"Týždeň 33/Deň 224"},{"$f":"IF(WEEKDAY(DeňKalendára)=HodnotaZačiatkuTýždňa,CONCATENATE(\"Týždeň \",WEEKNUM(DeňKalendára),\"/Deň \",DeňKalendára-DATE(YEAR(DeňKalendára),1,0)),CONCATENATE(\"Deň \",DeňKalendára-DATE(YEAR(DeňKalendára),1,0)))","v":"Deň 225"},{"$f":"IF(WEEKDAY(DeňKalendára)=HodnotaZačiatkuTýždňa,CONCATENATE(\"Týždeň \",WEEKNUM(DeňKalendára),\"/Deň \",DeňKalendára-DATE(YEAR(DeňKalendára),1,0)),CONCATENATE(\"Deň \",DeňKalendára-DATE(YEAR(DeňKalendára),1,0)))","v":"Deň 226"},{"$f":"IF(WEEKDAY(DeňKalendára)=HodnotaZačiatkuTýždňa,CONCATENATE(\"Týždeň \",WEEKNUM(DeňKalendára),\"/Deň \",DeňKalendára-DATE(YEAR(DeňKalendára),1,0)),CONCATENATE(\"Deň \",DeňKalendára-DATE(YEAR(DeňKalendára),1,0)))","v":"Deň 227"},{"$f":"IF(WEEKDAY(DeňKalendára)=HodnotaZačiatkuTýždňa,CONCATENATE(\"Týždeň \",WEEKNUM(DeňKalendára),\"/Deň \",DeňKalendára-DATE(YEAR(DeňKalendára),1,0)),CONCATENATE(\"Deň \",DeňKalendára-DATE(YEAR(DeňKalendára),1,0)))","v":"Deň 228"},{"$f":"IF(WEEKDAY(DeňKalendára)=HodnotaZačiatkuTýždňa,CONCATENATE(\"Týždeň \",WEEKNUM(DeňKalendára),\"/Deň \",DeňKalendára-DATE(YEAR(DeňKalendára),1,0)),CONCATENATE(\"Deň \",DeňKalendára-DATE(YEAR(DeňKalendára),1,0)))","v":"Deň 229"},{"$f":"IF(WEEKDAY(DeňKalendára)=HodnotaZačiatkuTýždňa,CONCATENATE(\"Týždeň \",WEEKNUM(DeňKalendára),\"/Deň \",DeňKalendára-DATE(YEAR(DeňKalendára),1,0)),CONCATENATE(\"Deň \",DeňKalendára-DATE(YEAR(DeňKalendára),1,0)))","v":"Deň 230"}]
[]
[null,null,{"$f":"DniATýždne+DATE(KalendárnyRok,8,1)-WEEKDAY(DATE(KalendárnyRok,8,1),(ZačiatokTýždňa=\"PO\")+1)+22","v":"2018-08-19"},"2018-08-20","2018-08-21","2018-08-22","2018-08-23","2018-08-24","2018-08-25"]
[null,null,{"$f":"IF(WEEKDAY(DeňKalendára)=HodnotaZačiatkuTýždňa,CONCATENATE(\"Týždeň \",WEEKNUM(DeňKalendára),\"/Deň \",DeňKalendára-DATE(YEAR(DeňKalendára),1,0)),CONCATENATE(\"Deň \",DeňKalendára-DATE(YEAR(DeňKalendára),1,0)))","v":"Týždeň 34/Deň 231"},{"$f":"IF(WEEKDAY(DeňKalendára)=HodnotaZačiatkuTýždňa,CONCATENATE(\"Týždeň \",WEEKNUM(DeňKalendára),\"/Deň \",DeňKalendára-DATE(YEAR(DeňKalendára),1,0)),CONCATENATE(\"Deň \",DeňKalendára-DATE(YEAR(DeňKalendára),1,0)))","v":"Deň 232"},{"$f":"IF(WEEKDAY(DeňKalendára)=HodnotaZačiatkuTýždňa,CONCATENATE(\"Týždeň \",WEEKNUM(DeňKalendára),\"/Deň \",DeňKalendára-DATE(YEAR(DeňKalendára),1,0)),CONCATENATE(\"Deň \",DeňKalendára-DATE(YEAR(DeňKalendára),1,0)))","v":"Deň 233"},{"$f":"IF(WEEKDAY(DeňKalendára)=HodnotaZačiatkuTýždňa,CONCATENATE(\"Týždeň \",WEEKNUM(DeňKalendára),\"/Deň \",DeňKalendára-DATE(YEAR(DeňKalendára),1,0)),CONCATENATE(\"Deň \",DeňKalendára-DATE(YEAR(DeňKalendára),1,0)))","v":"Deň 234"},{"$f":"IF(WEEKDAY(DeňKalendára)=HodnotaZačiatkuTýždňa,CONCATENATE(\"Týždeň \",WEEKNUM(DeňKalendára),\"/Deň \",DeňKalendára-DATE(YEAR(DeňKalendára),1,0)),CONCATENATE(\"Deň \",DeňKalendára-DATE(YEAR(DeňKalendára),1,0)))","v":"Deň 235"},{"$f":"IF(WEEKDAY(DeňKalendára)=HodnotaZačiatkuTýždňa,CONCATENATE(\"Týždeň \",WEEKNUM(DeňKalendára),\"/Deň \",DeňKalendára-DATE(YEAR(DeňKalendára),1,0)),CONCATENATE(\"Deň \",DeňKalendára-DATE(YEAR(DeňKalendára),1,0)))","v":"Deň 236"},{"$f":"IF(WEEKDAY(DeňKalendára)=HodnotaZačiatkuTýždňa,CONCATENATE(\"Týždeň \",WEEKNUM(DeňKalendára),\"/Deň \",DeňKalendára-DATE(YEAR(DeňKalendára),1,0)),CONCATENATE(\"Deň \",DeňKalendára-DATE(YEAR(DeňKalendára),1,0)))","v":"Deň 237"}]
[]
[null,null,{"$f":"DniATýždne+DATE(KalendárnyRok,8,1)-WEEKDAY(DATE(KalendárnyRok,8,1),(ZačiatokTýždňa=\"PO\")+1)+29","v":"2018-08-26"},"2018-08-27","2018-08-28","2018-08-29","2018-08-30","2018-08-31","2018-09-01"]
[null,null,{"$f":"IF(WEEKDAY(DeňKalendára)=HodnotaZačiatkuTýždňa,CONCATENATE(\"Týždeň \",WEEKNUM(DeňKalendára),\"/Deň \",DeňKalendára-DATE(YEAR(DeňKalendára),1,0)),CONCATENATE(\"Deň \",DeňKalendára-DATE(YEAR(DeňKalendára),1,0)))","v":"Týždeň 35/Deň 238"},{"$f":"IF(WEEKDAY(DeňKalendára)=HodnotaZačiatkuTýždňa,CONCATENATE(\"Týždeň \",WEEKNUM(DeňKalendára),\"/Deň \",DeňKalendára-DATE(YEAR(DeňKalendára),1,0)),CONCATENATE(\"Deň \",DeňKalendára-DATE(YEAR(DeňKalendára),1,0)))","v":"Deň 239"},{"$f":"IF(WEEKDAY(DeňKalendára)=HodnotaZačiatkuTýždňa,CONCATENATE(\"Týždeň \",WEEKNUM(DeňKalendára),\"/Deň \",DeňKalendára-DATE(YEAR(DeňKalendára),1,0)),CONCATENATE(\"Deň \",DeňKalendára-DATE(YEAR(DeňKalendára),1,0)))","v":"Deň 240"},{"$f":"IF(WEEKDAY(DeňKalendára)=HodnotaZačiatkuTýždňa,CONCATENATE(\"Týždeň \",WEEKNUM(DeňKalendára),\"/Deň \",DeňKalendára-DATE(YEAR(DeňKalendára),1,0)),CONCATENATE(\"Deň \",DeňKalendára-DATE(YEAR(DeňKalendára),1,0)))","v":"Deň 241"},{"$f":"IF(WEEKDAY(DeňKalendára)=HodnotaZačiatkuTýždňa,CONCATENATE(\"Týždeň \",WEEKNUM(DeňKalendára),\"/Deň \",DeňKalendára-DATE(YEAR(DeňKalendára),1,0)),CONCATENATE(\"Deň \",DeňKalendára-DATE(YEAR(DeňKalendára),1,0)))","v":"Deň 242"},{"$f":"IF(WEEKDAY(DeňKalendára)=HodnotaZačiatkuTýždňa,CONCATENATE(\"Týždeň \",WEEKNUM(DeňKalendára),\"/Deň \",DeňKalendára-DATE(YEAR(DeňKalendára),1,0)),CONCATENATE(\"Deň \",DeňKalendára-DATE(YEAR(DeňKalendára),1,0)))","v":"Deň 243"},{"$f":"IF(WEEKDAY(DeňKalendára)=HodnotaZačiatkuTýždňa,CONCATENATE(\"Týždeň \",WEEKNUM(DeňKalendára),\"/Deň \",DeňKalendára-DATE(YEAR(DeňKalendára),1,0)),CONCATENATE(\"Deň \",DeňKalendára-DATE(YEAR(DeňKalendára),1,0)))","v":"Deň 244"}]
[{"$nulls":4},"POZNÁMKY"]
[]
[null,null,{"$f":"DniATýždne+DATE(KalendárnyRok,8,1)-WEEKDAY(DATE(KalendárnyRok,8,1),(ZačiatokTýždňa=\"PO\")+1)+36","v":"2018-09-02"},"2018-09-03"]
[null,null,{"$f":"IF(WEEKDAY(DeňKalendára)=HodnotaZačiatkuTýždňa,CONCATENATE(\"Týždeň \",WEEKNUM(DeňKalendára),\"/Deň \",DeňKalendára-DATE(YEAR(DeňKalendára),1,0)),CONCATENATE(\"Deň \",DeňKalendára-DATE(YEAR(DeňKalendára),1,0)))","v":"Týždeň 36/Deň 245"},{"$f":"IF(WEEKDAY(DeňKalendára)=HodnotaZačiatkuTýždňa,CONCATENATE(\"Týždeň \",WEEKNUM(DeňKalendára),\"/Deň \",DeňKalendára-DATE(YEAR(DeňKalendára),1,0)),CONCATENATE(\"Deň \",DeňKalendára-DATE(YEAR(DeňKalendára),1,0)))","v":"Deň 246"}]

{"sheet":"SEP","index":8,"n_rows":20,"n_cols":9,"rows_kept":20,"merged":[[16,2,17,2],[17,4,19,8]]}
[null,"SEP",{"$f":"UPPER(TEXT(ZačiatokTýždňa,\"aaa\"))","v":"NE"},{"$f":"UPPER(TEXT(D3,\"aaa\"))","v":"PO"},"UT","ST","ŠT","PI","SO"]
[null,{"$f":"KalendárnyRok","v":2018}]
[null,null,{"$f":"DniATýždne+DATE(KalendárnyRok,9,1)-WEEKDAY(DATE(KalendárnyRok,9,1),(ZačiatokTýždňa=\"PO\")+1)+1","v":"2018-08-26"},"2018-08-27","2018-08-28","2018-08-29","2018-08-30","2018-08-31","2018-09-01"]
[null,null,{"$f":"IF(DAY(DeňKalendára)=1,CONCATENATE(\"Týždeň \",WEEKNUM(DeňKalendára),\"/Deň \",DeňKalendára-DATE(YEAR(DeňKalendára),1,0)),CONCATENATE(\"Deň \",DeňKalendára-DATE(YEAR(DeňKalendára),1,0)))","v":"Deň 238"},{"$f":"IF(DAY(DeňKalendára)=1,CONCATENATE(\"Týždeň \",WEEKNUM(DeňKalendára),\"/Deň \",DeňKalendára-DATE(YEAR(DeňKalendára),1,0)),CONCATENATE(\"Deň \",DeňKalendára-DATE(YEAR(DeňKalendára),1,0)))","v":"Deň 239"},{"$f":"IF(DAY(DeňKalendára)=1,CONCATENATE(\"Týždeň \",WEEKNUM(DeňKalendára),\"/Deň \",DeňKalendára-DATE(YEAR(DeňKalendára),1,0)),CONCATENATE(\"Deň \",DeňKalendára-DATE(YEAR(DeňKalendára),1,0)))","v":"Deň 240"},{"$f":"IF(DAY(DeňKalendára)=1,CONCATENATE(\"Týždeň \",WEEKNUM(DeňKalendára),\"/Deň \",DeňKalendára-DATE(YEAR(DeňKalendára),1,0)),CONCATENATE(\"Deň \",DeňKalendára-DATE(YEAR(DeňKalendára),1,0)))","v":"Deň 241"},{"$f":"IF(DAY(DeňKalendára)=1,CONCATENATE(\"Týždeň \",WEEKNUM(DeňKalendára),\"/Deň \",DeňKalendára-DATE(YEAR(DeňKalendára),1,0)),CONCATENATE(\"Deň \",DeňKalendára-DATE(YEAR(DeňKalendára),1,0)))","v":"Deň 242"},{"$f":"IF(DAY(DeňKalendára)=1,CONCATENATE(\"Týždeň \",WEEKNUM(DeňKalendára),\"/Deň \",DeňKalendára-DATE(YEAR(DeňKalendára),1,0)),CONCATENATE(\"Deň \",DeňKalendára-DATE(YEAR(DeňKalendára),1,0)))","v":"Deň 243"},{"$f":"IF(DAY(DeňKalendára)=1,CONCATENATE(\"Týždeň \",WEEKNUM(DeňKalendára),\"/Deň \",DeňKalendára-DATE(YEAR(DeňKalendára),1,0)),CONCATENATE(\"Deň \",DeňKalendára-DATE(YEAR(DeňKalendára),1,0)))","v":"Týždeň 35/Deň 244"}]
[]
[null,null,{"$f":"DniATýždne+DATE(KalendárnyRok,9,1)-WEEKDAY(DATE(KalendárnyRok,9,1),(ZačiatokTýždňa=\"PO\")+1)+8","v":"2018-09-02"},"2018-09-03","2018-09-04","2018-09-05","2018-09-06","2018-09-07","2018-09-08"]
[null,null,{"$f":"IF(WEEKDAY(DeňKalendára)=HodnotaZačiatkuTýždňa,CONCATENATE(\"Týždeň \",WEEKNUM(DeňKalendára),\"/Deň \",DeňKalendára-DATE(YEAR(DeňKalendára),1,0)),CONCATENATE(\"Deň \",DeňKalendára-DATE(YEAR(DeňKalendára),1,0)))","v":"Týždeň 36/Deň 245"},{"$f":"IF(WEEKDAY(DeňKalendára)=HodnotaZačiatkuTýždňa,CONCATENATE(\"Týždeň \",WEEKNUM(DeňKalendára),\"/Deň \",DeňKalendára-DATE(YEAR(DeňKalendára),1,0)),CONCATENATE(\"Deň \",DeňKalendára-DATE(YEAR(DeňKalendára),1,0)))","v":"Deň 246"},{"$f":"IF(WEEKDAY(DeňKalendára)=HodnotaZačiatkuTýždňa,CONCATENATE(\"Týždeň \",WEEKNUM(DeňKalendára),\"/Deň \",DeňKalendára-DATE(YEAR(DeňKalendára),1,0)),CONCATENATE(\"Deň \",DeňKalendára-DATE(YEAR(DeňKalendára),1,0)))","v":"Deň 247"},{"$f":"IF(WEEKDAY(DeňKalendára)=HodnotaZačiatkuTýždňa,CONCATENATE(\"Týždeň \",WEEKNUM(DeňKalendára),\"/Deň \",DeňKalendára-DATE(YEAR(DeňKalendára),1,0)),CONCATENATE(\"Deň \",DeňKalendára-DATE(YEAR(DeňKalendára),1,0)))","v":"Deň 248"},{"$f":"IF(WEEKDAY(DeňKalendára)=HodnotaZačiatkuTýždňa,CONCATENATE(\"Týždeň \",WEEKNUM(DeňKalendára),\"/Deň \",DeňKalendára-DATE(YEAR(DeňKalendára),1,0)),CONCATENATE(\"Deň \",DeňKalendára-DATE(YEAR(DeňKalendára),1,0)))","v":"Deň 249"},{"$f":"IF(WEEKDAY(DeňKalendára)=HodnotaZačiatkuTýždňa,CONCATENATE(\"Týždeň \",WEEKNUM(DeňKalendára),\"/Deň \",DeňKalendára-DATE(YEAR(DeňKalendára),1,0)),CONCATENATE(\"Deň \",DeňKalendára-DATE(YEAR(DeňKalendára),1,0)))","v":"Deň 250"},{"$f":"IF(WEEKDAY(DeňKalendára)=HodnotaZačiatkuTýždňa,CONCATENATE(\"Týždeň \",WEEKNUM(DeňKalendára),\"/Deň \",DeňKalendára-DATE(YEAR(DeňKalendára),1,0)),CONCATENATE(\"Deň \",DeňKalendára-DATE(YEAR(DeňKalendára),1,0)))","v":"Deň 251"}]
[]
[null,null,{"$f":"DniATýždne+DATE(KalendárnyRok,9,1)-WEEKDAY(DATE(KalendárnyRok,9,1),(ZačiatokTýždňa=\"PO\")+1)+15","v":"2018-09-09"},"2018-09-10","2018-09-11","2018-09-12","2018-09-13","2018-09-14","2018-09-15"]
[null,null,{"$f":"IF(WEEKDAY(DeňKalendára)=HodnotaZačiatkuTýždňa,CONCATENATE(\"Týždeň \",WEEKNUM(DeňKalendára),\"/Deň \",DeňKalendára-DATE(YEAR(DeňKalendára),1,0)),CONCATENATE(\"Deň \",DeňKalendára-DATE(YEAR(DeňKalendára),1,0)))","v":"Týždeň 37/Deň 252"},{"$f":"IF(WEEKDAY(DeňKalendára)=HodnotaZačiatkuTýždňa,CONCATENATE(\"Týždeň \",WEEKNUM(DeňKalendára),\"/Deň \",DeňKalendára-DATE(YEAR(DeňKalendára),1,0)),CONCATENATE(\"Deň \",DeňKalendára-DATE(YEAR(DeňKalendára),1,0)))","v":"Deň 253"},{"$f":"IF(WEEKDAY(DeňKalendára)=HodnotaZačiatkuTýždňa,CONCATENATE(\"Týždeň \",WEEKNUM(DeňKalendára),\"/Deň \",DeňKalendára-DATE(YEAR(DeňKalendára),1,0)),CONCATENATE(\"Deň \",DeňKalendára-DATE(YEAR(DeňKalendára),1,0)))","v":"Deň 254"},{"$f":"IF(WEEKDAY(DeňKalendára)=HodnotaZačiatkuTýždňa,CONCATENATE(\"Týždeň \",WEEKNUM(DeňKalendára),\"/Deň \",DeňKalendára-DATE(YEAR(DeňKalendára),1,0)),CONCATENATE(\"Deň \",DeňKalendára-DATE(YEAR(DeňKalendára),1,0)))","v":"Deň 255"},{"$f":"IF(WEEKDAY(DeňKalendára)=HodnotaZačiatkuTýždňa,CONCATENATE(\"Týždeň \",WEEKNUM(DeňKalendára),\"/Deň \",DeňKalendára-DATE(YEAR(DeňKalendára),1,0)),CONCATENATE(\"Deň \",DeňKalendára-DATE(YEAR(DeňKalendára),1,0)))","v":"Deň 256"},{"$f":"IF(WEEKDAY(DeňKalendára)=HodnotaZačiatkuTýždňa,CONCATENATE(\"Týždeň \",WEEKNUM(DeňKalendára),\"/Deň \",DeňKalendára-DATE(YEAR(DeňKalendára),1,0)),CONCATENATE(\"Deň \",DeňKalendára-DATE(YEAR(DeňKalendára),1,0)))","v":"Deň 257"},{"$f":"IF(WEEKDAY(DeňKalendára)=HodnotaZačiatkuTýždňa,CONCATENATE(\"Týždeň \",WEEKNUM(DeňKalendára),\"/Deň \",DeňKalendára-DATE(YEAR(DeňKalendára),1,0)),CONCATENATE(\"Deň \",DeňKalendára-DATE(YEAR(DeňKalendára),1,0)))","v":"Deň 258"}]
[]
[null,null,{"$f":"DniATýždne+DATE(KalendárnyRok,9,1)-WEEKDAY(DATE(KalendárnyRok,9,1),(ZačiatokTýždňa=\"PO\")+1)+22","v":"2018-09-16"},"2018-09-17","2018-09-18","2018-09-19","2018-09-20","2018-09-21","2018-09-22"]
[null,null,{"$f":"IF(WEEKDAY(DeňKalendára)=HodnotaZačiatkuTýždňa,CONCATENATE(\"Týždeň \",WEEKNUM(DeňKalendára),\"/Deň \",DeňKalendára-DATE(YEAR(DeňKalendára),1,0)),CONCATENATE(\"Deň \",DeňKalendára-DATE(YEAR(DeňKalendára),1,0)))","v":"Týždeň 38/Deň 259"},{"$f":"IF(WEEKDAY(DeňKalendára)=HodnotaZačiatkuTýždňa,CONCATENATE(\"Týždeň \",WEEKNUM(DeňKalendára),\"/Deň \",DeňKalendára-DATE(YEAR(DeňKalendára),1,0)),CONCATENATE(\"Deň \",DeňKalendára-DATE(YEAR(DeňKalendára),1,0)))","v":"Deň 260"},{"$f":"IF(WEEKDAY(DeňKalendára)=HodnotaZačiatkuTýždňa,CONCATENATE(\"Týždeň \",WEEKNUM(DeňKalendára),\"/Deň \",DeňKalendára-DATE(YEAR(DeňKalendára),1,0)),CONCATENATE(\"Deň \",DeňKalendára-DATE(YEAR(DeňKalendára),1,0)))","v":"Deň 261"},{"$f":"IF(WEEKDAY(DeňKalendára)=HodnotaZačiatkuTýždňa,CONCATENATE(\"Týždeň \",WEEKNUM(DeňKalendára),\"/Deň \",DeňKalendára-DATE(YEAR(DeňKalendára),1,0)),CONCATENATE(\"Deň \",DeňKalendára-DATE(YEAR(DeňKalendára),1,0)))","v":"Deň 262"},{"$f":"IF(WEEKDAY(DeňKalendára)=HodnotaZačiatkuTýždňa,CONCATENATE(\"Týždeň \",WEEKNUM(DeňKalendára),\"/Deň \",DeňKalendára-DATE(YEAR(DeňKalendára),1,0)),CONCATENATE(\"Deň \",DeňKalendára-DATE(YEAR(DeňKalendára),1,0)))","v":"Deň 263"},{"$f":"IF(WEEKDAY(DeňKalendára)=HodnotaZačiatkuTýždňa,CONCATENATE(\"Týždeň \",WEEKNUM(DeňKalendára),\"/Deň \",DeňKalendára-DATE(YEAR(DeňKalendára),1,0)),CONCATENATE(\"Deň \",DeňKalendára-DATE(YEAR(DeňKalendára),1,0)))","v":"Deň 264"},{"$f":"IF(WEEKDAY(DeňKalendára)=HodnotaZačiatkuTýždňa,CONCATENATE(\"Týždeň \",WEEKNUM(DeňKalendára),\"/Deň \",DeňKalendára-DATE(YEAR(DeňKalendára),1,0)),CONCATENATE(\"Deň \",DeňKalendára-DATE(YEAR(DeňKalendára),1,0)))","v":"Deň 265"}]
[]
[null,null,{"$f":"DniATýždne+DATE(KalendárnyRok,9,1)-WEEKDAY(DATE(KalendárnyRok,9,1),(ZačiatokTýždňa=\"PO\")+1)+29","v":"2018-09-23"},"2018-09-24","2018-09-25","2018-09-26","2018-09-27","2018-09-28","2018-09-29"]
[null,null,{"$f":"IF(WEEKDAY(DeňKalendára)=HodnotaZačiatkuTýždňa,CONCATENATE(\"Týždeň \",WEEKNUM(DeňKalendára),\"/Deň \",DeňKalendára-DATE(YEAR(DeňKalendára),1,0)),CONCATENATE(\"Deň \",DeňKalendára-DATE(YEAR(DeňKalendára),1,0)))","v":"Týždeň 39/Deň 266"},{"$f":"IF(WEEKDAY(DeňKalendára)=HodnotaZačiatkuTýždňa,CONCATENATE(\"Týždeň \",WEEKNUM(DeňKalendára),\"/Deň \",DeňKalendára-DATE(YEAR(DeňKalendára),1,0)),CONCATENATE(\"Deň \",DeňKalendára-DATE(YEAR(DeňKalendára),1,0)))","v":"Deň 267"},{"$f":"IF(WEEKDAY(DeňKalendára)=HodnotaZačiatkuTýždňa,CONCATENATE(\"Týždeň \",WEEKNUM(DeňKalendára),\"/Deň \",DeňKalendára-DATE(YEAR(DeňKalendára),1,0)),CONCATENATE(\"Deň \",DeňKalendára-DATE(YEAR(DeňKalendára),1,0)))","v":"Deň 268"},{"$f":"IF(WEEKDAY(DeňKalendára)=HodnotaZačiatkuTýždňa,CONCATENATE(\"Týždeň \",WEEKNUM(DeňKalendára),\"/Deň \",DeňKalendára-DATE(YEAR(DeňKalendára),1,0)),CONCATENATE(\"Deň \",DeňKalendára-DATE(YEAR(DeňKalendára),1,0)))","v":"Deň 269"},{"$f":"IF(WEEKDAY(DeňKalendára)=HodnotaZačiatkuTýždňa,CONCATENATE(\"Týždeň \",WEEKNUM(DeňKalendára),\"/Deň \",DeňKalendára-DATE(YEAR(DeňKalendára),1,0)),CONCATENATE(\"Deň \",DeňKalendára-DATE(YEAR(DeňKalendára),1,0)))","v":"Deň 270"},{"$f":"IF(WEEKDAY(DeňKalendára)=HodnotaZačiatkuTýždňa,CONCATENATE(\"Týždeň \",WEEKNUM(DeňKalendára),\"/Deň \",DeňKalendára-DATE(YEAR(DeňKalendára),1,0)),CONCATENATE(\"Deň \",DeňKalendára-DATE(YEAR(DeňKalendára),1,0)))","v":"Deň 271"},{"$f":"IF(WEEKDAY(DeňKalendára)=HodnotaZačiatkuTýždňa,CONCATENATE(\"Týždeň \",WEEKNUM(DeňKalendára),\"/Deň \",DeňKalendára-DATE(YEAR(DeňKalendára),1,0)),CONCATENATE(\"Deň \",DeňKalendára-DATE(YEAR(DeňKalendára),1,0)))","v":"Deň 272"}]
[{"$nulls":4},"POZNÁMKY"]
[]
[null,null,{"$f":"DniATýždne+DATE(KalendárnyRok,9,1)-WEEKDAY(DATE(KalendárnyRok,9,1),(ZačiatokTýždňa=\"PO\")+1)+36","v":"2018-09-30"},"2018-10-01"]
[null,null,{"$f":"IF(WEEKDAY(DeňKalendára)=HodnotaZačiatkuTýždňa,CONCATENATE(\"Týždeň \",WEEKNUM(DeňKalendára),\"/Deň \",DeňKalendára-DATE(YEAR(DeňKalendára),1,0)),CONCATENATE(\"Deň \",DeňKalendára-DATE(YEAR(DeňKalendára),1,0)))","v":"Týždeň 40/Deň 273"},{"$f":"IF(WEEKDAY(DeňKalendára)=HodnotaZačiatkuTýždňa,CONCATENATE(\"Týždeň \",WEEKNUM(DeňKalendára),\"/Deň \",DeňKalendára-DATE(YEAR(DeňKalendára),1,0)),CONCATENATE(\"Deň \",DeňKalendára-DATE(YEAR(DeňKalendára),1,0)))","v":"Deň 274"}]

{"sheet":"OKT","index":9,"n_rows":20,"n_cols":9,"rows_kept":20,"merged":[[16,2,17,2],[17,4,19,8]]}
[null,"OKT",{"$f":"UPPER(TEXT(ZačiatokTýždňa,\"aaa\"))","v":"NE"},{"$f":"UPPER(TEXT(D3,\"aaa\"))","v":"PO"},"UT","ST","ŠT","PI","SO"]
[null,{"$f":"KalendárnyRok","v":2018}]
[null,null,{"$f":"DniATýždne+DATE(KalendárnyRok,10,1)-WEEKDAY(DATE(KalendárnyRok,10,1),(ZačiatokTýždňa=\"PO\")+1)+1","v":"2018-09-30"},"2018-10-01","2018-10-02","2018-10-03","2018-10-04","2018-10-05","2018-10-06"]
[null,null,{"$f":"IF(DAY(DeňKalendára)=1,CONCATENATE(\"Týždeň \",WEEKNUM(DeňKalendára),\"/Deň \",DeňKalendára-DATE(YEAR(DeňKalendára),1,0)),CONCATENATE(\"Deň \",DeňKalendára-DATE(YEAR(DeňKalendára),1,0)))","v":"Deň 273"},{"$f":"IF(DAY(DeňKalendára)=1,CONCATENATE(\"Týždeň \",WEEKNUM(DeňKalendára),\"/Deň \",DeňKalendára-DATE(YEAR(DeňKalendára),1,0)),CONCATENATE(\"Deň \",DeňKalendára-DATE(YEAR(DeňKalendára),1,0)))","v":"Týždeň 40/Deň 274"},{"$f":"IF(DAY(DeňKalendára)=1,CONCATENATE(\"Týždeň \",WEEKNUM(DeňKalendára),\"/Deň \",DeňKalendára-DATE(YEAR(DeňKalendára),1,0)),CONCATENATE(\"Deň \",DeňKalendára-DATE(YEAR(DeňKalendára),1,0)))","v":"Deň 275"},{"$f":"IF(DAY(DeňKalendára)=1,CONCATENATE(\"Týždeň \",WEEKNUM(DeňKalendára),\"/Deň \",DeňKalendára-DATE(YEAR(DeňKalendára),1,0)),CONCATENATE(\"Deň \",DeňKalendára-DATE(YEAR(DeňKalendára),1,0)))","v":"Deň 276"},{"$f":"IF(DAY(DeňKalendára)=1,CONCATENATE(\"Týždeň \",WEEKNUM(DeňKalendára),\"/Deň \",DeňKalendára-DATE(YEAR(DeňKalendára),1,0)),CONCATENATE(\"Deň \",DeňKalendára-DATE(YEAR(DeňKalendára),1,0)))","v":"Deň 277"},{"$f":"IF(DAY(DeňKalendára)=1,CONCATENATE(\"Týždeň \",WEEKNUM(DeňKalendára),\"/Deň \",DeňKalendára-DATE(YEAR(DeňKalendára),1,0)),CONCATENATE(\"Deň \",DeňKalendára-DATE(YEAR(DeňKalendára),1,0)))","v":"Deň 278"},{"$f":"IF(DAY(DeňKalendára)=1,CONCATENATE(\"Týždeň \",WEEKNUM(DeňKalendára),\"/Deň \",DeňKalendára-DATE(YEAR(DeňKalendára),1,0)),CONCATENATE(\"Deň \",DeňKalendára-DATE(YEAR(DeňKalendára),1,0)))","v":"Deň 279"}]
[]
[null,null,{"$f":"DniATýždne+DATE(KalendárnyRok,10,1)-WEEKDAY(DATE(KalendárnyRok,10,1),(ZačiatokTýždňa=\"PO\")+1)+8","v":"2018-10-07"},"2018-10-08","2018-10-09","2018-10-10","2018-10-11","2018-10-12","2018-10-13"]
[null,null,{"$f":"IF(WEEKDAY(DeňKalendára)=HodnotaZačiatkuTýždňa,CONCATENATE(\"Týždeň \",WEEKNUM(DeňKalendára),\"/Deň \",DeňKalendára-DATE(YEAR(DeňKalendára),1,0)),CONCATENATE(\"Deň \",DeňKalendára-DATE(YEAR(DeňKalendára),1,0)))","v":"Týždeň 41/Deň 280"},{"$f":"IF(WEEKDAY(DeňKalendára)=HodnotaZačiatkuTýždňa,CONCATENATE(\"Týždeň \",WEEKNUM(DeňKalendára),\"/Deň \",DeňKalendára-DATE(YEAR(DeňKalendára),1,0)),CONCATENATE(\"Deň \",DeňKalendára-DATE(YEAR(DeňKalendára),1,0)))","v":"Deň 281"},{"$f":"IF(WEEKDAY(DeňKalendára)=HodnotaZačiatkuTýždňa,CONCATENATE(\"Týždeň \",WEEKNUM(DeňKalendára),\"/Deň \",DeňKalendára-DATE(YEAR(DeňKalendára),1,0)),CONCATENATE(\"Deň \",DeňKalendára-DATE(YEAR(DeňKalendára),1,0)))","v":"Deň 282"},{"$f":"IF(WEEKDAY(DeňKalendára)=HodnotaZačiatkuTýždňa,CONCATENATE(\"Týždeň \",WEEKNUM(DeňKalendára),\"/Deň \",DeňKalendára-DATE(YEAR(DeňKalendára),1,0)),CONCATENATE(\"Deň \",DeňKalendára-DATE(YEAR(DeňKalendára),1,0)))","v":"Deň 283"},{"$f":"IF(WEEKDAY(DeňKalendára)=HodnotaZačiatkuTýždňa,CONCATENATE(\"Týždeň \",WEEKNUM(DeňKalendára),\"/Deň \",DeňKalendára-DATE(YEAR(DeňKalendára),1,0)),CONCATENATE(\"Deň \",DeňKalendára-DATE(YEAR(DeňKalendára),1,0)))","v":"Deň 284"},{"$f":"IF(WEEKDAY(DeňKalendára)=HodnotaZačiatkuTýždňa,CONCATENATE(\"Týždeň \",WEEKNUM(DeňKalendára),\"/Deň \",DeňKalendára-DATE(YEAR(DeňKalendára),1,0)),CONCATENATE(\"Deň \",DeňKalendára-DATE(YEAR(DeňKalendára),1,0)))","v":"Deň 285"},{"$f":"IF(WEEKDAY(DeňKalendára)=HodnotaZačiatkuTýždňa,CONCATENATE(\"Týždeň \",WEEKNUM(DeňKalendára),\"/Deň \",DeňKalendára-DATE(YEAR(DeňKalendára),1,0)),CONCATENATE(\"Deň \",DeňKalendára-DATE(YEAR(DeňKalendára),1,0)))","v":"Deň 286"}]
[]
[null,null,{"$f":"DniATýždne+DATE(KalendárnyRok,10,1)-WEEKDAY(DATE(KalendárnyRok,10,1),(ZačiatokTýždňa=\"PO\")+1)+15","v":"2018-10-14"},"2018-10-15","2018-10-16","2018-10-17","2018-10-18","2018-10-19","2018-10-20"]
[null,null,{"$f":"IF(WEEKDAY(DeňKalendára)=HodnotaZačiatkuTýždňa,CONCATENATE(\"Týždeň \",WEEKNUM(DeňKalendára),\"/Deň \",DeňKalendára-DATE(YEAR(DeňKalendára),1,0)),CONCATENATE(\"Deň \",DeňKalendára-DATE(YEAR(DeňKalendára),1,0)))","v":"Týždeň 42/Deň 287"},{"$f":"IF(WEEKDAY(DeňKalendára)=HodnotaZačiatkuTýždňa,CONCATENATE(\"Týždeň \",WEEKNUM(DeňKalendára),\"/Deň \",DeňKalendára-DATE(YEAR(DeňKalendára),1,0)),CONCATENATE(\"Deň \",DeňKalendára-DATE(YEAR(DeňKalendára),1,0)))","v":"Deň 288"},{"$f":"IF(WEEKDAY(DeňKalendára)=HodnotaZačiatkuTýždňa,CONCATENATE(\"Týždeň \",WEEKNUM(DeňKalendára),\"/Deň \",DeňKalendára-DATE(YEAR(DeňKalendára),1,0)),CONCATENATE(\"Deň \",DeňKalendára-DATE(YEAR(DeňKalendára),1,0)))","v":"Deň 289"},{"$f":"IF(WEEKDAY(DeňKalendára)=HodnotaZačiatkuTýždňa,CONCATENATE(\"Týždeň \",WEEKNUM(DeňKalendára),\"/Deň \",DeňKalendára-DATE(YEAR(DeňKalendára),1,0)),CONCATENATE(\"Deň \",DeňKalendára-DATE(YEAR(DeňKalendára),1,0)))","v":"Deň 290"},{"$f":"IF(WEEKDAY(DeňKalendára)=HodnotaZačiatkuTýždňa,CONCATENATE(\"Týždeň \",WEEKNUM(DeňKalendára),\"/Deň \",DeňKalendára-DATE(YEAR(DeňKalendára),1,0)),CONCATENATE(\"Deň \",DeňKalendára-DATE(YEAR(DeňKalendára),1,0)))","v":"Deň 291"},{"$f":"IF(WEEKDAY(DeňKalendára)=HodnotaZačiatkuTýždňa,CONCATENATE(\"Týždeň \",WEEKNUM(DeňKalendára),\"/Deň \",DeňKalendára-DATE(YEAR(DeňKalendára),1,0)),CONCATENATE(\"Deň \",DeňKalendára-DATE(YEAR(DeňKalendára),1,0)))","v":"Deň 292"},{"$f":"IF(WEEKDAY(DeňKalendára)=HodnotaZačiatkuTýždňa,CONCATENATE(\"Týždeň \",WEEKNUM(DeňKalendára),\"/Deň \",DeňKalendára-DATE(YEAR(DeňKalendára),1,0)),CONCATENATE(\"Deň \",DeňKalendára-DATE(YEAR(DeňKalendára),1,0)))","v":"Deň 293"}]
[]
[null,null,{"$f":"DniATýždne+DATE(KalendárnyRok,10,1)-WEEKDAY(DATE(KalendárnyRok,10,1),(ZačiatokTýždňa=\"PO\")+1)+22","v":"2018-10-21"},"2018-10-22","2018-10-23","2018-10-24","2018-10-25","2018-10-26","2018-10-27"]
[null,null,{"$f":"IF(WEEKDAY(DeňKalendára)=HodnotaZačiatkuTýždňa,CONCATENATE(\"Týždeň \",WEEKNUM(DeňKalendára),\"/Deň \",DeňKalendára-DATE(YEAR(DeňKalendára),1,0)),CONCATENATE(\"Deň \",DeňKalendára-DATE(YEAR(DeňKalendára),1,0)))","v":"Týždeň 43/Deň 294"},{"$f":"IF(WEEKDAY(DeňKalendára)=HodnotaZačiatkuTýždňa,CONCATENATE(\"Týždeň \",WEEKNUM(DeňKalendára),\"/Deň \",DeňKalendára-DATE(YEAR(DeňKalendára),1,0)),CONCATENATE(\"Deň \",DeňKalendára-DATE(YEAR(DeňKalendára),1,0)))","v":"Deň 295"},{"$f":"IF(WEEKDAY(DeňKalendára)=HodnotaZačiatkuTýždňa,CONCATENATE(\"Týždeň \",WEEKNUM(DeňKalendára),\"/Deň \",DeňKalendára-DATE(YEAR(DeňKalendára),1,0)),CONCATENATE(\"Deň \",DeňKalendára-DATE(YEAR(DeňKalendára),1,0)))","v":"Deň 296"},{"$f":"IF(WEEKDAY(DeňKalendára)=HodnotaZačiatkuTýždňa,CONCATENATE(\"Týždeň \",WEEKNUM(DeňKalendára),\"/Deň \",DeňKalendára-DATE(YEAR(DeňKalendára),1,0)),CONCATENATE(\"Deň \",DeňKalendára-DATE(YEAR(DeňKalendára),1,0)))","v":"Deň 297"},{"$f":"IF(WEEKDAY(DeňKalendára)=HodnotaZačiatkuTýždňa,CONCATENATE(\"Týždeň \",WEEKNUM(DeňKalendára),\"/Deň \",DeňKalendára-DATE(YEAR(DeňKalendára),1,0)),CONCATENATE(\"Deň \",DeňKalendára-DATE(YEAR(DeňKalendára),1,0)))","v":"Deň 298"},{"$f":"IF(WEEKDAY(DeňKalendára)=HodnotaZačiatkuTýždňa,CONCATENATE(\"Týždeň \",WEEKNUM(DeňKalendára),\"/Deň \",DeňKalendára-DATE(YEAR(DeňKalendára),1,0)),CONCATENATE(\"Deň \",DeňKalendára-DATE(YEAR(DeňKalendára),1,0)))","v":"Deň 299"},{"$f":"IF(WEEKDAY(DeňKalendára)=HodnotaZačiatkuTýždňa,CONCATENATE(\"Týždeň \",WEEKNUM(DeňKalendára),\"/Deň \",DeňKalendára-DATE(YEAR(DeňKalendára),1,0)),CONCATENATE(\"Deň \",DeňKalendára-DATE(YEAR(DeňKalendára),1,0)))","v":"Deň 300"}]
[]
[null,null,{"$f":"DniATýždne+DATE(KalendárnyRok,10,1)-WEEKDAY(DATE(KalendárnyRok,10,1),(ZačiatokTýždňa=\"PO\")+1)+29","v":"2018-10-28"},"2018-10-29","2018-10-30","2018-10-31","2018-11-01","2018-11-02","2018-11-03"]
[null,null,{"$f":"IF(WEEKDAY(DeňKalendára)=HodnotaZačiatkuTýždňa,CONCATENATE(\"Týždeň \",WEEKNUM(DeňKalendára),\"/Deň \",DeňKalendára-DATE(YEAR(DeňKalendára),1,0)),CONCATENATE(\"Deň \",DeňKalendára-DATE(YEAR(DeňKalendára),1,0)))","v":"Týždeň 44/Deň 301"},{"$f":"IF(WEEKDAY(DeňKalendára)=HodnotaZačiatkuTýždňa,CONCATENATE(\"Týždeň \",WEEKNUM(DeňKalendára),\"/Deň \",DeňKalendára-DATE(YEAR(DeňKalendára),1,0)),CONCATENATE(\"Deň \",DeňKalendára-DATE(YEAR(DeňKalendára),1,0)))","v":"Deň 302"},{"$f":"IF(WEEKDAY(DeňKalendára)=HodnotaZačiatkuTýždňa,CONCATENATE(\"Týždeň \",WEEKNUM(DeňKalendára),\"/Deň \",DeňKalendára-DATE(YEAR(DeňKalendára),1,0)),CONCATENATE(\"Deň \",DeňKalendára-DATE(YEAR(DeňKalendára),1,0)))","v":"Deň 303"},{"$f":"IF(WEEKDAY(DeňKalendára)=HodnotaZačiatkuTýždňa,CONCATENATE(\"Týždeň \",WEEKNUM(DeňKalendára),\"/Deň \",DeňKalendára-DATE(YEAR(DeňKalendára),1,0)),CONCATENATE(\"Deň \",DeňKalendára-DATE(YEAR(DeňKalendára),1,0)))","v":"Deň 304"},{"$f":"IF(WEEKDAY(DeňKalendára)=HodnotaZačiatkuTýždňa,CONCATENATE(\"Týždeň \",WEEKNUM(DeňKalendára),\"/Deň \",DeňKalendára-DATE(YEAR(DeňKalendára),1,0)),CONCATENATE(\"Deň \",DeňKalendára-DATE(YEAR(DeňKalendára),1,0)))","v":"Deň 305"},{"$f":"IF(WEEKDAY(DeňKalendára)=HodnotaZačiatkuTýždňa,CONCATENATE(\"Týždeň \",WEEKNUM(DeňKalendára),\"/Deň \",DeňKalendára-DATE(YEAR(DeňKalendára),1,0)),CONCATENATE(\"Deň \",DeňKalendára-DATE(YEAR(DeňKalendára),1,0)))","v":"Deň 306"},{"$f":"IF(WEEKDAY(DeňKalendára)=HodnotaZačiatkuTýždňa,CONCATENATE(\"Týždeň \",WEEKNUM(DeňKalendára),\"/Deň \",DeňKalendára-DATE(YEAR(DeňKalendára),1,0)),CONCATENATE(\"Deň \",DeňKalendára-DATE(YEAR(DeňKalendára),1,0)))","v":"Deň 307"}]
[{"$nulls":4},"POZNÁMKY"]
[]
[null,null,{"$f":"DniATýždne+DATE(KalendárnyRok,10,1)-WEEKDAY(DATE(KalendárnyRok,10,1),(ZačiatokTýždňa=\"PO\")+1)+36","v":"2018-11-04"},"2018-11-05"]
[null,null,{"$f":"IF(WEEKDAY(DeňKalendára)=HodnotaZačiatkuTýždňa,CONCATENATE(\"Týždeň \",WEEKNUM(DeňKalendára),\"/Deň \",DeňKalendára-DATE(YEAR(DeňKalendára),1,0)),CONCATENATE(\"Deň \",DeňKalendára-DATE(YEAR(DeňKalendára),1,0)))","v":"Týždeň 45/Deň 308"},{"$f":"IF(WEEKDAY(DeňKalendára)=HodnotaZačiatkuTýždňa,CONCATENATE(\"Týždeň \",WEEKNUM(DeňKalendára),\"/Deň \",DeňKalendára-DATE(YEAR(DeňKalendára),1,0)),CONCATENATE(\"Deň \",DeňKalendára-DATE(YEAR(DeňKalendára),1,0)))","v":"Deň 309"}]

{"sheet":"NOV","index":10,"n_rows":20,"n_cols":9,"rows_kept":20,"merged":[[16,2,17,2],[17,4,19,8]]}
[null,"NOV",{"$f":"UPPER(TEXT(ZačiatokTýždňa,\"aaa\"))","v":"NE"},{"$f":"UPPER(TEXT(D3,\"aaa\"))","v":"PO"},"UT","ST","ŠT","PI","SO"]
[null,{"$f":"KalendárnyRok","v":2018}]
[null,null,{"$f":"DniATýždne+DATE(KalendárnyRok,11,1)-WEEKDAY(DATE(KalendárnyRok,11,1),(ZačiatokTýždňa=\"PO\")+1)+1","v":"2018-10-28"},"2018-10-29","2018-10-30","2018-10-31","2018-11-01","2018-11-02","2018-11-03"]
[null,null,{"$f":"IF(DAY(DeňKalendára)=1,CONCATENATE(\"Týždeň \",WEEKNUM(DeňKalendára),\"/Deň \",DeňKalendára-DATE(YEAR(DeňKalendára),1,0)),CONCATENATE(\"Deň \",DeňKalendára-DATE(YEAR(DeňKalendára),1,0)))","v":"Deň 301"},{"$f":"IF(DAY(DeňKalendára)=1,CONCATENATE(\"Týždeň \",WEEKNUM(DeňKalendára),\"/Deň \",DeňKalendára-DATE(YEAR(DeňKalendára),1,0)),CONCATENATE(\"Deň \",DeňKalendára-DATE(YEAR(DeňKalendára),1,0)))","v":"Deň 302"},{"$f":"IF(DAY(DeňKalendára)=1,CONCATENATE(\"Týždeň \",WEEKNUM(DeňKalendára),\"/Deň \",DeňKalendára-DATE(YEAR(DeňKalendára),1,0)),CONCATENATE(\"Deň \",DeňKalendára-DATE(YEAR(DeňKalendára),1,0)))","v":"Deň 303"},{"$f":"IF(DAY(DeňKalendára)=1,CONCATENATE(\"Týždeň \",WEEKNUM(DeňKalendára),\"/Deň \",DeňKalendára-DATE(YEAR(DeňKalendára),1,0)),CONCATENATE(\"Deň \",DeňKalendára-DATE(YEAR(DeňKalendára),1,0)))","v":"Deň 304"},{"$f":"IF(DAY(DeňKalendára)=1,CONCATENATE(\"Týždeň \",WEEKNUM(DeňKalendára),\"/Deň \",DeňKalendára-DATE(YEAR(DeňKalendára),1,0)),CONCATENATE(\"Deň \",DeňKalendára-DATE(YEAR(DeňKalendára),1,0)))","v":"Týždeň 44/Deň 305"},{"$f":"IF(DAY(DeňKalendára)=1,CONCATENATE(\"Týždeň \",WEEKNUM(DeňKalendára),\"/Deň \",DeňKalendára-DATE(YEAR(DeňKalendára),1,0)),CONCATENATE(\"Deň \",DeňKalendára-DATE(YEAR(DeňKalendára),1,0)))","v":"Deň 306"},{"$f":"IF(DAY(DeňKalendára)=1,CONCATENATE(\"Týždeň \",WEEKNUM(DeňKalendára),\"/Deň \",DeňKalendára-DATE(YEAR(DeňKalendára),1,0)),CONCATENATE(\"Deň \",DeňKalendára-DATE(YEAR(DeňKalendára),1,0)))","v":"Deň 307"}]
[]
[null,null,{"$f":"DniATýždne+DATE(KalendárnyRok,11,1)-WEEKDAY(DATE(KalendárnyRok,11,1),(ZačiatokTýždňa=\"PO\")+1)+8","v":"2018-11-04"},"2018-11-05","2018-11-06","2018-11-07","2018-11-08","2018-11-09","2018-11-10"]
[null,null,{"$f":"IF(WEEKDAY(DeňKalendára)=HodnotaZačiatkuTýždňa,CONCATENATE(\"Týždeň \",WEEKNUM(DeňKalendára),\"/Deň \",DeňKalendára-DATE(YEAR(DeňKalendára),1,0)),CONCATENATE(\"Deň \",DeňKalendára-DATE(YEAR(DeňKalendára),1,0)))","v":"Týždeň 45/Deň 308"},{"$f":"IF(WEEKDAY(DeňKalendára)=HodnotaZačiatkuTýždňa,CONCATENATE(\"Týždeň \",WEEKNUM(DeňKalendára),\"/Deň \",DeňKalendára-DATE(YEAR(DeňKalendára),1,0)),CONCATENATE(\"Deň \",DeňKalendára-DATE(YEAR(DeňKalendára),1,0)))","v":"Deň 309"},{"$f":"IF(WEEKDAY(DeňKalendára)=HodnotaZačiatkuTýždňa,CONCATENATE(\"Týždeň \",WEEKNUM(DeňKalendára),\"/Deň \",DeňKalendára-DATE(YEAR(DeňKalendára),1,0)),CONCATENATE(\"Deň \",DeňKalendára-DATE(YEAR(DeňKalendára),1,0)))","v":"Deň 310"},{"$f":"IF(WEEKDAY(DeňKalendára)=HodnotaZačiatkuTýždňa,CONCATENATE(\"Týždeň \",WEEKNUM(DeňKalendára),\"/Deň \",DeňKalendára-DATE(YEAR(DeňKalendára),1,0)),CONCATENATE(\"Deň \",DeňKalendára-DATE(YEAR(DeňKalendára),1,0)))","v":"Deň 311"},{"$f":"IF(WEEKDAY(DeňKalendára)=HodnotaZačiatkuTýždňa,CONCATENATE(\"Týždeň \",WEEKNUM(DeňKalendára),\"/Deň \",DeňKalendára-DATE(YEAR(DeňKalendára),1,0)),CONCATENATE(\"Deň \",DeňKalendára-DATE(YEAR(DeňKalendára),1,0)))","v":"Deň 312"},{"$f":"IF(WEEKDAY(DeňKalendára)=HodnotaZačiatkuTýždňa,CONCATENATE(\"Týždeň \",WEEKNUM(DeňKalendára),\"/Deň \",DeňKalendára-DATE(YEAR(DeňKalendára),1,0)),CONCATENATE(\"Deň \",DeňKalendára-DATE(YEAR(DeňKalendára),1,0)))","v":"Deň 313"},{"$f":"IF(WEEKDAY(DeňKalendára)=HodnotaZačiatkuTýždňa,CONCATENATE(\"Týždeň \",WEEKNUM(DeňKalendára),\"/Deň \",DeňKalendára-DATE(YEAR(DeňKalendára),1,0)),CONCATENATE(\"Deň \",DeňKalendára-DATE(YEAR(DeňKalendára),1,0)))","v":"Deň 314"}]
[]
[null,null,{"$f":"DniATýždne+DATE(KalendárnyRok,11,1)-WEEKDAY(DATE(KalendárnyRok,11,1),(ZačiatokTýždňa=\"PO\")+1)+15","v":"2018-11-11"},"2018-11-12","2018-11-13","2018-11-14","2018-11-15","2018-11-16","2018-11-17"]
[null,null,{"$f":"IF(WEEKDAY(DeňKalendára)=HodnotaZačiatkuTýždňa,CONCATENATE(\"Týždeň \",WEEKNUM(DeňKalendára),\"/Deň \",DeňKalendára-DATE(YEAR(DeňKalendára),1,0)),CONCATENATE(\"Deň \",DeňKalendára-DATE(YEAR(DeňKalendára),1,0)))","v":"Týždeň 46/Deň 315"},{"$f":"IF(WEEKDAY(DeňKalendára)=HodnotaZačiatkuTýždňa,CONCATENATE(\"Týždeň \",WEEKNUM(DeňKalendára),\"/Deň \",DeňKalendára-DATE(YEAR(DeňKalendára),1,0)),CONCATENATE(\"Deň \",DeňKalendára-DATE(YEAR(DeňKalendára),1,0)))","v":"Deň 316"},{"$f":"IF(WEEKDAY(DeňKalendára)=HodnotaZačiatkuTýždňa,CONCATENATE(\"Týždeň \",WEEKNUM(DeňKalendára),\"/Deň \",DeňKalendára-DATE(YEAR(DeňKalendára),1,0)),CONCATENATE(\"Deň \",DeňKalendára-DATE(YEAR(DeňKalendára),1,0)))","v":"Deň 317"},{"$f":"IF(WEEKDAY(DeňKalendára)=HodnotaZačiatkuTýždňa,CONCATENATE(\"Týždeň \",WEEKNUM(DeňKalendára),\"/Deň \",DeňKalendára-DATE(YEAR(DeňKalendára),1,0)),CONCATENATE(\"Deň \",DeňKalendára-DATE(YEAR(DeňKalendára),1,0)))","v":"Deň 318"},{"$f":"IF(WEEKDAY(DeňKalendára)=HodnotaZačiatkuTýždňa,CONCATENATE(\"Týždeň \",WEEKNUM(DeňKalendára),\"/Deň \",DeňKalendára-DATE(YEAR(DeňKalendára),1,0)),CONCATENATE(\"Deň \",DeňKalendára-DATE(YEAR(DeňKalendára),1,0)))","v":"Deň 319"},{"$f":"IF(WEEKDAY(DeňKalendára)=HodnotaZačiatkuTýždňa,CONCATENATE(\"Týždeň \",WEEKNUM(DeňKalendára),\"/Deň \",DeňKalendára-DATE(YEAR(DeňKalendára),1,0)),CONCATENATE(\"Deň \",DeňKalendára-DATE(YEAR(DeňKalendára),1,0)))","v":"Deň 320"},{"$f":"IF(WEEKDAY(DeňKalendára)=HodnotaZačiatkuTýždňa,CONCATENATE(\"Týždeň \",WEEKNUM(DeňKalendára),\"/Deň \",DeňKalendára-DATE(YEAR(DeňKalendára),1,0)),CONCATENATE(\"Deň \",DeňKalendára-DATE(YEAR(DeňKalendára),1,0)))","v":"Deň 321"}]
[]
[null,null,{"$f":"DniATýždne+DATE(KalendárnyRok,11,1)-WEEKDAY(DATE(KalendárnyRok,11,1),(ZačiatokTýždňa=\"PO\")+1)+22","v":"2018-11-18"},"2018-11-19","2018-11-20","2018-11-21","2018-11-22","2018-11-23","2018-11-24"]
[null,null,{"$f":"IF(WEEKDAY(DeňKalendára)=HodnotaZačiatkuTýždňa,CONCATENATE(\"Týždeň \",WEEKNUM(DeňKalendára),\"/Deň \",DeňKalendára-DATE(YEAR(DeňKalendára),1,0)),CONCATENATE(\"Deň \",DeňKalendára-DATE(YEAR(DeňKalendára),1,0)))","v":"Týždeň 47/Deň 322"},{"$f":"IF(WEEKDAY(DeňKalendára)=HodnotaZačiatkuTýždňa,CONCATENATE(\"Týždeň \",WEEKNUM(DeňKalendára),\"/Deň \",DeňKalendára-DATE(YEAR(DeňKalendára),1,0)),CONCATENATE(\"Deň \",DeňKalendára-DATE(YEAR(DeňKalendára),1,0)))","v":"Deň 323"},{"$f":"IF(WEEKDAY(DeňKalendára)=HodnotaZačiatkuTýždňa,CONCATENATE(\"Týždeň \",WEEKNUM(DeňKalendára),\"/Deň \",DeňKalendára-DATE(YEAR(DeňKalendára),1,0)),CONCATENATE(\"Deň \",DeňKalendára-DATE(YEAR(DeňKalendára),1,0)))","v":"Deň 324"},{"$f":"IF(WEEKDAY(DeňKalendára)=HodnotaZačiatkuTýždňa,CONCATENATE(\"Týždeň \",WEEKNUM(DeňKalendára),\"/Deň \",DeňKalendára-DATE(YEAR(DeňKalendára),1,0)),CONCATENATE(\"Deň \",DeňKalendára-DATE(YEAR(DeňKalendára),1,0)))","v":"Deň 325"},{"$f":"IF(WEEKDAY(DeňKalendára)=HodnotaZačiatkuTýždňa,CONCATENATE(\"Týždeň \",WEEKNUM(DeňKalendára),\"/Deň \",DeňKalendára-DATE(YEAR(DeňKalendára),1,0)),CONCATENATE(\"Deň \",DeňKalendára-DATE(YEAR(DeňKalendára),1,0)))","v":"Deň 326"},{"$f":"IF(WEEKDAY(DeňKalendára)=HodnotaZačiatkuTýždňa,CONCATENATE(\"Týždeň \",WEEKNUM(DeňKalendára),\"/Deň \",DeňKalendára-DATE(YEAR(DeňKalendára),1,0)),CONCATENATE(\"Deň \",DeňKalendára-DATE(YEAR(DeňKalendára),1,0)))","v":"Deň 327"},{"$f":"IF(WEEKDAY(DeňKalendára)=HodnotaZačiatkuTýždňa,CONCATENATE(\"Týždeň \",WEEKNUM(DeňKalendára),\"/Deň \",DeňKalendára-DATE(YEAR(DeňKalendára),1,0)),CONCATENATE(\"Deň \",DeňKalendára-DATE(YEAR(DeňKalendára),1,0)))","v":"Deň 328"}]
[]
[null,null,{"$f":"DniATýždne+DATE(KalendárnyRok,11,1)-WEEKDAY(DATE(KalendárnyRok,11,1),(ZačiatokTýždňa=\"PO\")+1)+29","v":"2018-11-25"},"2018-11-26","2018-11-27","2018-11-28","2018-11-29","2018-11-30","2018-12-01"]
[null,null,{"$f":"IF(WEEKDAY(DeňKalendára)=HodnotaZačiatkuTýždňa,CONCATENATE(\"Týždeň \",WEEKNUM(DeňKalendára),\"/Deň \",DeňKalendára-DATE(YEAR(DeňKalendára),1,0)),CONCATENATE(\"Deň \",DeňKalendára-DATE(YEAR(DeňKalendára),1,0)))","v":"Týždeň 48/Deň 329"},{"$f":"IF(WEEKDAY(DeňKalendára)=HodnotaZačiatkuTýždňa,CONCATENATE(\"Týždeň \",WEEKNUM(DeňKalendára),\"/Deň \",DeňKalendára-DATE(YEAR(DeňKalendára),1,0)),CONCATENATE(\"Deň \",DeňKalendára-DATE(YEAR(DeňKalendára),1,0)))","v":"Deň 330"},{"$f":"IF(WEEKDAY(DeňKalendára)=HodnotaZačiatkuTýždňa,CONCATENATE(\"Týždeň \",WEEKNUM(DeňKalendára),\"/Deň \",DeňKalendára-DATE(YEAR(DeňKalendára),1,0)),CONCATENATE(\"Deň \",DeňKalendára-DATE(YEAR(DeňKalendára),1,0)))","v":"Deň 331"},{"$f":"IF(WEEKDAY(DeňKalendára)=HodnotaZačiatkuTýždňa,CONCATENATE(\"Týždeň \",WEEKNUM(DeňKalendára),\"/Deň \",DeňKalendára-DATE(YEAR(DeňKalendára),1,0)),CONCATENATE(\"Deň \",DeňKalendára-DATE(YEAR(DeňKalendára),1,0)))","v":"Deň 332"},{"$f":"IF(WEEKDAY(DeňKalendára)=HodnotaZačiatkuTýždňa,CONCATENATE(\"Týždeň \",WEEKNUM(DeňKalendára),\"/Deň \",DeňKalendára-DATE(YEAR(DeňKalendára),1,0)),CONCATENATE(\"Deň \",DeňKalendára-DATE(YEAR(DeňKalendára),1,0)))","v":"Deň 333"},{"$f":"IF(WEEKDAY(DeňKalendára)=HodnotaZačiatkuTýždňa,CONCATENATE(\"Týždeň \",WEEKNUM(DeňKalendára),\"/Deň \",DeňKalendára-DATE(YEAR(DeňKalendára),1,0)),CONCATENATE(\"Deň \",DeňKalendára-DATE(YEAR(DeňKalendára),1,0)))","v":"Deň 334"},{"$f":"IF(WEEKDAY(DeňKalendára)=HodnotaZačiatkuTýždňa,CONCATENATE(\"Týždeň \",WEEKNUM(DeňKalendára),\"/Deň \",DeňKalendára-DATE(YEAR(DeňKalendára),1,0)),CONCATENATE(\"Deň \",DeňKalendára-DATE(YEAR(DeňKalendára),1,0)))","v":"Deň 335"}]
[{"$nulls":4},"POZNÁMKY"]
[]
[null,null,{"$f":"DniATýždne+DATE(KalendárnyRok,11,1)-WEEKDAY(DATE(KalendárnyRok,11,1),(ZačiatokTýždňa=\"PO\")+1)+36","v":"2018-12-02"},"2018-12-03"]
[null,null,{"$f":"IF(WEEKDAY(DeňKalendára)=HodnotaZačiatkuTýždňa,CONCATENATE(\"Týždeň \",WEEKNUM(DeňKalendára),\"/Deň \",DeňKalendára-DATE(YEAR(DeňKalendára),1,0)),CONCATENATE(\"Deň \",DeňKalendára-DATE(YEAR(DeňKalendára),1,0)))","v":"Týždeň 49/Deň 336"},{"$f":"IF(WEEKDAY(DeňKalendára)=HodnotaZačiatkuTýždňa,CONCATENATE(\"Týždeň \",WEEKNUM(DeňKalendára),\"/Deň \",DeňKalendára-DATE(YEAR(DeňKalendára),1,0)),CONCATENATE(\"Deň \",DeňKalendára-DATE(YEAR(DeňKalendára),1,0)))","v":"Deň 337"}]

{"sheet":"DEC","index":11,"n_rows":20,"n_cols":9,"rows_kept":20,"merged":[[16,2,17,2],[17,4,19,8]]}
[null,"DEC",{"$f":"UPPER(TEXT(ZačiatokTýždňa,\"aaa\"))","v":"NE"},{"$f":"UPPER(TEXT(D3,\"aaa\"))","v":"PO"},"UT","ST","ŠT","PI","SO"]
[null,{"$f":"KalendárnyRok","v":2018}]
[null,null,{"$f":"DniATýždne+DATE(KalendárnyRok,12,1)-WEEKDAY(DATE(KalendárnyRok,12,1),(ZačiatokTýždňa=\"PO\")+1)+1","v":"2018-11-25"},"2018-11-26","2018-11-27","2018-11-28","2018-11-29","2018-11-30","2018-12-01"]
[null,null,{"$f":"IF(DAY(DeňKalendára)=1,CONCATENATE(\"Týždeň \",WEEKNUM(DeňKalendára),\"/Deň \",DeňKalendára-DATE(YEAR(DeňKalendára),1,0)),CONCATENATE(\"Deň \",DeňKalendára-DATE(YEAR(DeňKalendára),1,0)))","v":"Deň 329"},{"$f":"IF(DAY(DeňKalendára)=1,CONCATENATE(\"Týždeň \",WEEKNUM(DeňKalendára),\"/Deň \",DeňKalendára-DATE(YEAR(DeňKalendára),1,0)),CONCATENATE(\"Deň \",DeňKalendára-DATE(YEAR(DeňKalendára),1,0)))","v":"Deň 330"},{"$f":"IF(DAY(DeňKalendára)=1,CONCATENATE(\"Týždeň \",WEEKNUM(DeňKalendára),\"/Deň \",DeňKalendára-DATE(YEAR(DeňKalendára),1,0)),CONCATENATE(\"Deň \",DeňKalendára-DATE(YEAR(DeňKalendára),1,0)))","v":"Deň 331"},{"$f":"IF(DAY(DeňKalendára)=1,CONCATENATE(\"Týždeň \",WEEKNUM(DeňKalendára),\"/Deň \",DeňKalendára-DATE(YEAR(DeňKalendára),1,0)),CONCATENATE(\"Deň \",DeňKalendára-DATE(YEAR(DeňKalendára),1,0)))","v":"Deň 332"},{"$f":"IF(DAY(DeňKalendára)=1,CONCATENATE(\"Týždeň \",WEEKNUM(DeňKalendára),\"/Deň \",DeňKalendára-DATE(YEAR(DeňKalendára),1,0)),CONCATENATE(\"Deň \",DeňKalendára-DATE(YEAR(DeňKalendára),1,0)))","v":"Deň 333"},{"$f":"IF(DAY(DeňKalendára)=1,CONCATENATE(\"Týždeň \",WEEKNUM(DeňKalendára),\"/Deň \",DeňKalendára-DATE(YEAR(DeňKalendára),1,0)),CONCATENATE(\"Deň \",DeňKalendára-DATE(YEAR(DeňKalendára),1,0)))","v":"Deň 334"},{"$f":"IF(DAY(DeňKalendára)=1,CONCATENATE(\"Týždeň \",WEEKNUM(DeňKalendára),\"/Deň \",DeňKalendára-DATE(YEAR(DeňKalendára),1,0)),CONCATENATE(\"Deň \",DeňKalendára-DATE(YEAR(DeňKalendára),1,0)))","v":"Týždeň 48/Deň 335"}]
[]
[null,null,{"$f":"DniATýždne+DATE(KalendárnyRok,12,1)-WEEKDAY(DATE(KalendárnyRok,12,1),(ZačiatokTýždňa=\"PO\")+1)+8","v":"2018-12-02"},"2018-12-03","2018-12-04","2018-12-05","2018-12-06","2018-12-07","2018-12-08"]
[null,null,{"$f":"IF(WEEKDAY(DeňKalendára)=HodnotaZačiatkuTýždňa,CONCATENATE(\"Týždeň \",WEEKNUM(DeňKalendára),\"/Deň \",DeňKalendára-DATE(YEAR(DeňKalendára),1,0)),CONCATENATE(\"Deň \",DeňKalendára-DATE(YEAR(DeňKalendára),1,0)))","v":"Týždeň 49/Deň 336"},{"$f":"IF(WEEKDAY(DeňKalendára)=HodnotaZačiatkuTýždňa,CONCATENATE(\"Týždeň \",WEEKNUM(DeňKalendára),\"/Deň \",DeňKalendára-DATE(YEAR(DeňKalendára),1,0)),CONCATENATE(\"Deň \",DeňKalendára-DATE(YEAR(DeňKalendára),1,0)))","v":"Deň 337"},{"$f":"IF(WEEKDAY(DeňKalendára)=HodnotaZačiatkuTýždňa,CONCATENATE(\"Týždeň \",WEEKNUM(DeňKalendára),\"/Deň \",DeňKalendára-DATE(YEAR(DeňKalendára),1,0)),CONCATENATE(\"Deň \",DeňKalendára-DATE(YEAR(DeňKalendára),1,0)))","v":"Deň 338"},{"$f":"IF(WEEKDAY(DeňKalendára)=HodnotaZačiatkuTýždňa,CONCATENATE(\"Týždeň \",WEEKNUM(DeňKalendára),\"/Deň \",DeňKalendára-DATE(YEAR(DeňKalendára),1,0)),CONCATENATE(\"Deň \",DeňKalendára-DATE(YEAR(DeňKalendára),1,0)))","v":"Deň 339"},{"$f":"IF(WEEKDAY(DeňKalendára)=HodnotaZačiatkuTýždňa,CONCATENATE(\"Týždeň \",WEEKNUM(DeňKalendára),\"/Deň \",DeňKalendára-DATE(YEAR(DeňKalendára),1,0)),CONCATENATE(\"Deň \",DeňKalendára-DATE(YEAR(DeňKalendára),1,0)))","v":"Deň 340"},{"$f":"IF(WEEKDAY(DeňKalendára)=HodnotaZačiatkuTýždňa,CONCATENATE(\"Týždeň \",WEEKNUM(DeňKalendára),\"/Deň \",DeňKalendára-DATE(YEAR(DeňKalendára),1,0)),CONCATENATE(\"Deň \",DeňKalendára-DATE(YEAR(DeňKalendára),1,0)))","v":"Deň 341"},{"$f":"IF(WEEKDAY(DeňKalendára)=HodnotaZačiatkuTýždňa,CONCATENATE(\"Týždeň \",WEEKNUM(DeňKalendára),\"/Deň \",DeňKalendára-DATE(YEAR(DeňKalendára),1,0)),CONCATENATE(\"Deň \",DeňKalendára-DATE(YEAR(DeňKalendára),1,0)))","v":"Deň 342"}]
[]
[null,null,{"$f":"DniATýždne+DATE(KalendárnyRok,12,1)-WEEKDAY(DATE(KalendárnyRok,12,1),(ZačiatokTýždňa=\"PO\")+1)+15","v":"2018-12-09"},"2018-12-10","2018-12-11","2018-12-12","2018-12-13","2018-12-14","2018-12-15"]
[null,null,{"$f":"IF(WEEKDAY(DeňKalendára)=HodnotaZačiatkuTýždňa,CONCATENATE(\"Týždeň \",WEEKNUM(DeňKalendára),\"/Deň \",DeňKalendára-DATE(YEAR(DeňKalendára),1,0)),CONCATENATE(\"Deň \",DeňKalendára-DATE(YEAR(DeňKalendára),1,0)))","v":"Týždeň 50/Deň 343"},{"$f":"IF(WEEKDAY(DeňKalendára)=HodnotaZačiatkuTýždňa,CONCATENATE(\"Týždeň \",WEEKNUM(DeňKalendára),\"/Deň \",DeňKalendára-DATE(YEAR(DeňKalendára),1,0)),CONCATENATE(\"Deň \",DeňKalendára-DATE(YEAR(DeňKalendára),1,0)))","v":"Deň 344"},{"$f":"IF(WEEKDAY(DeňKalendára)=HodnotaZačiatkuTýždňa,CONCATENATE(\"Týždeň \",WEEKNUM(DeňKalendára),\"/Deň \",DeňKalendára-DATE(YEAR(DeňKalendára),1,0)),CONCATENATE(\"Deň \",DeňKalendára-DATE(YEAR(DeňKalendára),1,0)))","v":"Deň 345"},{"$f":"IF(WEEKDAY(DeňKalendára)=HodnotaZačiatkuTýždňa,CONCATENATE(\"Týždeň \",WEEKNUM(DeňKalendára),\"/Deň \",DeňKalendára-DATE(YEAR(DeňKalendára),1,0)),CONCATENATE(\"Deň \",DeňKalendára-DATE(YEAR(DeňKalendára),1,0)))","v":"Deň 346"},{"$f":"IF(WEEKDAY(DeňKalendára)=HodnotaZačiatkuTýždňa,CONCATENATE(\"Týždeň \",WEEKNUM(DeňKalendára),\"/Deň \",DeňKalendára-DATE(YEAR(DeňKalendára),1,0)),CONCATENATE(\"Deň \",DeňKalendára-DATE(YEAR(DeňKalendára),1,0)))","v":"Deň 347"},{"$f":"IF(WEEKDAY(DeňKalendára)=HodnotaZačiatkuTýždňa,CONCATENATE(\"Týždeň \",WEEKNUM(DeňKalendára),\"/Deň \",DeňKalendára-DATE(YEAR(DeňKalendára),1,0)),CONCATENATE(\"Deň \",DeňKalendára-DATE(YEAR(DeňKalendára),1,0)))","v":"Deň 348"},{"$f":"IF(WEEKDAY(DeňKalendára)=HodnotaZačiatkuTýždňa,CONCATENATE(\"Týždeň \",WEEKNUM(DeňKalendára),\"/Deň \",DeňKalendára-DATE(YEAR(DeňKalendára),1,0)),CONCATENATE(\"Deň \",DeňKalendára-DATE(YEAR(DeňKalendára),1,0)))","v":"Deň 349"}]
[]
[null,null,{"$f":"DniATýždne+DATE(KalendárnyRok,12,1)-WEEKDAY(DATE(KalendárnyRok,12,1),(ZačiatokTýždňa=\"PO\")+1)+22","v":"2018-12-16"},"2018-12-17","2018-12-18","2018-12-19","2018-12-20","2018-12-21","2018-12-22"]
[null,null,{"$f":"IF(WEEKDAY(DeňKalendára)=HodnotaZačiatkuTýždňa,CONCATENATE(\"Týždeň \",WEEKNUM(DeňKalendára),\"/Deň \",DeňKalendára-DATE(YEAR(DeňKalendára),1,0)),CONCATENATE(\"Deň \",DeňKalendára-DATE(YEAR(DeňKalendára),1,0)))","v":"Týždeň 51/Deň 350"},{"$f":"IF(WEEKDAY(DeňKalendára)=HodnotaZačiatkuTýždňa,CONCATENATE(\"Týždeň \",WEEKNUM(DeňKalendára),\"/Deň \",DeňKalendára-DATE(YEAR(DeňKalendára),1,0)),CONCATENATE(\"Deň \",DeňKalendára-DATE(YEAR(DeňKalendára),1,0)))","v":"Deň 351"},{"$f":"IF(WEEKDAY(DeňKalendára)=HodnotaZačiatkuTýždňa,CONCATENATE(\"Týždeň \",WEEKNUM(DeňKalendára),\"/Deň \",DeňKalendára-DATE(YEAR(DeňKalendára),1,0)),CONCATENATE(\"Deň \",DeňKalendára-DATE(YEAR(DeňKalendára),1,0)))","v":"Deň 352"},{"$f":"IF(WEEKDAY(DeňKalendára)=HodnotaZačiatkuTýždňa,CONCATENATE(\"Týždeň \",WEEKNUM(DeňKalendára),\"/Deň \",DeňKalendára-DATE(YEAR(DeňKalendára),1,0)),CONCATENATE(\"Deň \",DeňKalendára-DATE(YEAR(DeňKalendára),1,0)))","v":"Deň 353"},{"$f":"IF(WEEKDAY(DeňKalendára)=HodnotaZačiatkuTýždňa,CONCATENATE(\"Týždeň \",WEEKNUM(DeňKalendára),\"/Deň \",DeňKalendára-DATE(YEAR(DeňKalendára),1,0)),CONCATENATE(\"Deň \",DeňKalendára-DATE(YEAR(DeňKalendára),1,0)))","v":"Deň 354"},{"$f":"IF(WEEKDAY(DeňKalendára)=HodnotaZačiatkuTýždňa,CONCATENATE(\"Týždeň \",WEEKNUM(DeňKalendára),\"/Deň \",DeňKalendára-DATE(YEAR(DeňKalendára),1,0)),CONCATENATE(\"Deň \",DeňKalendára-DATE(YEAR(DeňKalendára),1,0)))","v":"Deň 355"},{"$f":"IF(WEEKDAY(DeňKalendára)=HodnotaZačiatkuTýždňa,CONCATENATE(\"Týždeň \",WEEKNUM(DeňKalendára),\"/Deň \",DeňKalendára-DATE(YEAR(DeňKalendára),1,0)),CONCATENATE(\"Deň \",DeňKalendára-DATE(YEAR(DeňKalendára),1,0)))","v":"Deň 356"}]
[]
[null,null,{"$f":"DniATýždne+DATE(KalendárnyRok,12,1)-WEEKDAY(DATE(KalendárnyRok,12,1),(ZačiatokTýždňa=\"PO\")+1)+29","v":"2018-12-23"},"2018-12-24","2018-12-25","2018-12-26","2018-12-27","2018-12-28","2018-12-29"]
[null,null,{"$f":"IF(WEEKDAY(DeňKalendára)=HodnotaZačiatkuTýždňa,CONCATENATE(\"Týždeň \",WEEKNUM(DeňKalendára),\"/Deň \",DeňKalendára-DATE(YEAR(DeňKalendára),1,0)),CONCATENATE(\"Deň \",DeňKalendára-DATE(YEAR(DeňKalendára),1,0)))","v":"Týždeň 52/Deň 357"},{"$f":"IF(WEEKDAY(DeňKalendára)=HodnotaZačiatkuTýždňa,CONCATENATE(\"Týždeň \",WEEKNUM(DeňKalendára),\"/Deň \",DeňKalendára-DATE(YEAR(DeňKalendára),1,0)),CONCATENATE(\"Deň \",DeňKalendára-DATE(YEAR(DeňKalendára),1,0)))","v":"Deň 358"},{"$f":"IF(WEEKDAY(DeňKalendára)=HodnotaZačiatkuTýždňa,CONCATENATE(\"Týždeň \",WEEKNUM(DeňKalendára),\"/Deň \",DeňKalendára-DATE(YEAR(DeňKalendára),1,0)),CONCATENATE(\"Deň \",DeňKalendára-DATE(YEAR(DeňKalendára),1,0)))","v":"Deň 359"},{"$f":"IF(WEEKDAY(DeňKalendára)=HodnotaZačiatkuTýždňa,CONCATENATE(\"Týždeň \",WEEKNUM(DeňKalendára),\"/Deň \",DeňKalendára-DATE(YEAR(DeňKalendára),1,0)),CONCATENATE(\"Deň \",DeňKalendára-DATE(YEAR(DeňKalendára),1,0)))","v":"Deň 360"},{"$f":"IF(WEEKDAY(DeňKalendára)=HodnotaZačiatkuTýždňa,CONCATENATE(\"Týždeň \",WEEKNUM(DeňKalendára),\"/Deň \",DeňKalendára-DATE(YEAR(DeňKalendára),1,0)),CONCATENATE(\"Deň \",DeňKalendára-DATE(YEAR(DeňKalendára),1,0)))","v":"Deň 361"},{"$f":"IF(WEEKDAY(DeňKalendára)=HodnotaZačiatkuTýždňa,CONCATENATE(\"Týždeň \",WEEKNUM(DeňKalendára),\"/Deň \",DeňKalendára-DATE(YEAR(DeňKalendára),1,0)),CONCATENATE(\"Deň \",DeňKalendára-DATE(YEAR(DeňKalendára),1,0)))","v":"Deň 362"},{"$f":"IF(WEEKDAY(DeňKalendára)=HodnotaZačiatkuTýždňa,CONCATENATE(\"Týždeň \",WEEKNUM(DeňKalendára),\"/Deň \",DeňKalendára-DATE(YEAR(DeňKalendára),1,0)),CONCATENATE(\"Deň \",DeňKalendára-DATE(YEAR(DeňKalendára),1,0)))","v":"Deň 363"}]
[{"$nulls":4},"POZNÁMKY"]
[]
[null,null,{"$f":"DniATýždne+DATE(KalendárnyRok,12,1)-WEEKDAY(DATE(KalendárnyRok,12,1),(ZačiatokTýždňa=\"PO\")+1)+36","v":"2018-12-30"},"2018-12-31"]
[null,null,{"$f":"IF(WEEKDAY(DeňKalendára)=HodnotaZačiatkuTýždňa,CONCATENATE(\"Týždeň \",WEEKNUM(DeňKalendára),\"/Deň \",DeňKalendára-DATE(YEAR(DeňKalendára),1,0)),CONCATENATE(\"Deň \",DeňKalendára-DATE(YEAR(DeňKalendára),1,0)))","v":"Týždeň 53/Deň 364"},{"$f":"IF(WEEKDAY(DeňKalendára)=HodnotaZačiatkuTýždňa,CONCATENATE(\"Týždeň \",WEEKNUM(DeňKalendára),\"/Deň \",DeňKalendára-DATE(YEAR(DeňKalendára),1,0)),CONCATENATE(\"Deň \",DeňKalendára-DATE(YEAR(DeňKalendára),1,0)))","v":"Deň 365"}]